Department Family,Entity,Payment Date,Expense Type,Expense Area,Supplier,Transaction Number,Amount,Description
DFE,Skills Funding Agency,15/11/2016,Bank Charges,Strategic Finance - Financial Control Accounting Services,ROYAL BANK OF SCOTLAND,BANKCHARGES_328,58.6,Bank Charge
DFE,Skills Funding Agency,30/11/2016,Bank Charges,Strategic Finance - Financial Control Accounting Services,ROYAL BANK OF SCOTLAND,BANKCHARGES_329,141.93,Bank Charge
DFE,Skills Funding Agency,30/11/2016,Bank Charges,Strategic Finance - Financial Control Accounting Services,RBS European Social Fund Account,BANKCHARGES_330,25,Bank Charge
DFE,Skills Funding Agency,28/11/2016,Government Procurement Card,Various,ROYAL BANK OF SCOTLAND,DD_379,62650.52,Payment Card
DFE,Skills Funding Agency,30/11/2016,Professional Services,Finance Division - Accounting Services,COMPANIES HOUSE,DD_380,4,Purchase Invoice
DFE,Skills Funding Agency,28/12/2016,Stationery General,Various,BANNER BUSINESS SUPPLIES LTD,DD_378,986.93,Payment Card
DFE,Skills Funding Agency,28/12/2016,Self-Drive Car Hire,Various,ENTERPRISE RENT A CAR UK LTD,DD_378,4127.08,Payment Card
DFE,Skills Funding Agency,28/12/2016,"Travel, Subsistence & Accommodation",Various,REDFERN,DD_378,72594.48,Payment Card
DFE,Skills Funding Agency,25/11/2016,Principal Civil Service Pension Scheme,Various - Staff Payroll,CIVIL SUPERANNUATION VOTE,PAYCHAPSAUTO_569,588042.85,Payroll
DFE,Skills Funding Agency,30/11/2016,Funding Advances,None,CANTERBURY COLLEGE,PAYCHAPSAUTO_570,1200000,Programme Template
DFE,Skills Funding Agency,22/12/2016,Flexible Benefits Administration,HR - Human Resources,EDENRED,PAYCHAPSAUTO_568,588.61,Payroll
DFE,Skills Funding Agency,22/12/2016,Flexible Benefits Provider Payover,HR - Human Resources,EDENRED,PAYCHAPSAUTO_568,14014.71,Payroll
DFE,Skills Funding Agency,25/11/2016,Provision Utilised - Early Retirement,Strategic Finance - Financial Control Corporate Controls,CAPITA HARTSHEAD,PREMRETIRE_351,5257.34,Payroll
DFE,Skills Funding Agency,25/11/2016,Provision Utilised - Early Retirement,Strategic Finance - Financial Control Corporate Controls,CAPITA HARTSHEAD,PREMRETIRE_353,62337.57,Payroll
DFE,Skills Funding Agency,25/11/2016,Provision Utilised - Early Retirement,Strategic Finance - Financial Control Corporate Controls,CAPITA HARTSHEAD,PREMRETIRE_352,133098.73,Payroll
DFE,Skills Funding Agency,28/11/2016,Provision Utilised - Early Retirement,Strategic Finance - Financial Control Corporate Controls,CAPITA HARTSHEAD,PREMRETIRE_354,141482.45,Payroll
DFE,Skills Funding Agency,25/11/2016,Salaries Control,Various - Staff Payroll,Staff Members,WC_476,1526180.53,Payroll
DFE,Skills Funding Agency,28/10/2016,Young People's Helpline,Main Funding,ALPS PARTNERSHIP LTD,SPINVB_33079,2099.24,Purchase Invoice
DFE,Skills Funding Agency,28/10/2016,Young People's Helpline,Main Funding,CITY DIGITAL LTD,SPINVB_33091,864,Purchase Invoice
DFE,Skills Funding Agency,28/10/2016,Young People's Helpline,Main Funding,CITY DIGITAL LTD,SPINVB_33108,197.59,Purchase Invoice
DFE,Skills Funding Agency,28/10/2016,Young People's Helpline,Main Funding,MANAGEMENT LEARNING RESOURCES LTD,SPINVB_33090,4493.93,Purchase Invoice
DFE,Skills Funding Agency,28/10/2016,Young People's Helpline,Main Funding,SPORTCEL MARKETING LTD,SPINVB_33092,6000,Purchase Invoice
DFE,Skills Funding Agency,28/10/2016,Temporary Staff,Apprenticeships & Delivery Services - Executive Office,CAPITA BUSINESS SERVICES LTD,IPINVELECT3_2147,8744.34,Purchase Invoice
DFE,Skills Funding Agency,28/10/2016,Temporary Staff,Apprenticeships & Delivery Services - Executive Office,HAYS SPECIALIST RECRUITMENT LTD,IPINVELECT3_2146,719.46,Purchase Invoice
DFE,Skills Funding Agency,28/10/2016,Temporary Staff,Apprenticeships & Delivery Services - Executive Office,SF RECRUITMENT LTD,SPINVB_32752,701.56,Purchase Invoice
DFE,Skills Funding Agency,28/10/2016,Temporary Staff,Apprenticeships & Delivery Services - Executive Office,SF RECRUITMENT LTD,SPINVB_33081,790.42,Purchase Invoice
DFE,Skills Funding Agency,28/10/2016,Temporary Staff,Apprenticeships & Delivery Services - Executive Office,SF RECRUITMENT LTD,SPINVB_33082,267.84,Purchase Invoice
DFE,Skills Funding Agency,28/10/2016,Temporary Staff,Chief Executive Office - Executive Office,HAYS SPECIALIST RECRUITMENT LTD,IPINVELECT3_2146,2576.7,Purchase Invoice
DFE,Skills Funding Agency,28/10/2016,Temporary Staff,Operations Finance - Executive Office,HAYS SPECIALIST RECRUITMENT LTD,IPINVELECT3_2146,1920,Purchase Invoice
DFE,Skills Funding Agency,28/10/2016,Temporary Staff,Funding & Programmes - Executive Office,CAPITA BUSINESS SERVICES LTD,IPINVELECT3_2147,30088.12,Purchase Invoice
DFE,Skills Funding Agency,28/10/2016,Temporary Staff,Funding & Programmes - Executive Office,HAYS SPECIALIST RECRUITMENT LTD,IPINVELECT3_2146,5847.17,Purchase Invoice
DFE,Skills Funding Agency,28/10/2016,Temporary Staff,Operations ICT - Information & Communication Technology - Technical,CAPITA BUSINESS SERVICES LTD,IPINVELECT3_2147,2111.28,Purchase Invoice
DFE,Skills Funding Agency,28/10/2016,Temporary Staff,Operations ICT - Information & Communication Technology - Technical,HAYS SPECIALIST RECRUITMENT LTD,IPINVELECT3_2146,5001.9,Purchase Invoice
DFE,Skills Funding Agency,28/10/2016,Temporary Staff,Operations ICT - Information & Communication Technology - Technical,LA INTERNATIONAL,SPINVB_33093,3165,Purchase Invoice
DFE,Skills Funding Agency,28/10/2016,Temporary Staff,Operations ICT - Projects,CAPITA BUSINESS SERVICES LTD,IPINVELECT3_2147,5904.42,Purchase Invoice
DFE,Skills Funding Agency,28/10/2016,Temporary Staff,Data Science,CAPITA BUSINESS SERVICES LTD,IPINVELECT3_2147,2802.48,Purchase Invoice
DFE,Skills Funding Agency,28/10/2016,Temporary Staff,Transaction Unit,GOODMAN MASSON RECRUITMENT SERVICES LTD,SPINVB_33109,1900.8,Purchase Invoice
DFE,Skills Funding Agency,28/10/2016,Temporary Staff,Transaction Unit,MICHAEL PAGE INTERNATIONAL RECRUITMENT LTD,SPINVB_33077,2636.1,Purchase Invoice
DFE,Skills Funding Agency,28/10/2016,Temporary Staff,Transaction Unit,MICHAEL PAGE INTERNATIONAL RECRUITMENT LTD,SPINVB_33078,2108.88,Purchase Invoice
DFE,Skills Funding Agency,28/10/2016,Catering Contracts,Chief Executive Office - Executive Office,DEPARTMENT FOR BUSINESS INNOVATION & SKILLS (NEWPORT),SPINVB_33100,839.94,Purchase Invoice
DFE,Skills Funding Agency,28/10/2016,Room Hire,Chief Executive Office - Executive Office,DEPARTMENT FOR BUSINESS INNOVATION & SKILLS (NEWPORT),SPINVB_33100,3313.5,Purchase Invoice
DFE,Skills Funding Agency,28/10/2016,Landline Telephone Service,Operations ICT - Technical Design Authority,UNIFY ENTERPRISE COMMUNICATIONS LTD,SPINVB_33088,20707.74,Purchase Invoice
DFE,Skills Funding Agency,28/10/2016,Professional Services,Operations ICT - Technical Design Authority,SPECIALIST COMPUTER CENTRES PLC,SPINVB_33097,5085.04,Purchase Invoice
DFE,Skills Funding Agency,28/10/2016,Professional Services,Operations ICT - Technical Design Authority,SPECIALIST COMPUTER CENTRES PLC,SPINVB_33099,4083.73,Purchase Invoice
DFE,Skills Funding Agency,28/10/2016,Professional Services,Operations ICT - Technical Design Authority,SPECIALIST COMPUTER CENTRES PLC,SPINVB_33104,2814,Purchase Invoice
DFE,Skills Funding Agency,28/10/2016,Hosting,Operations ICT - Technical Design Authority,SPECIALIST COMPUTER CENTRES PLC,SPINVB_33098,28800,Purchase Invoice
DFE,Skills Funding Agency,28/10/2016,Managed IT Service,Funding & Programmes - Executive Office,INTERACT CONSULTING LTD,SPINVB_33075,14400,Purchase Invoice
DFE,Skills Funding Agency,28/10/2016,Licences,Operations ICT - Technical Design Authority,PIREAN LIMITED,SPINVB_33107,589582.49,Purchase Invoice
DFE,Skills Funding Agency,28/10/2016,Support Services,Operations ICT - Technical Design Authority,SPECIALIST COMPUTER CENTRES PLC,SPINVB_33095,14400,Purchase Invoice
DFE,Skills Funding Agency,28/10/2016,Support Services,Operations ICT - Technical Design Authority,SPECIALIST COMPUTER CENTRES PLC,SPINVB_33096,3600,Purchase Invoice
DFE,Skills Funding Agency,28/10/2016,Support Services,Operations ICT - Technical Design Authority,SPECIALIST COMPUTER CENTRES PLC,SPINVB_33103,1287,Purchase Invoice
DFE,Skills Funding Agency,28/10/2016,Facilities Management,Chief Executive Office - Executive Office,DEPARTMENT FOR BUSINESS INNOVATION & SKILLS (NEWPORT),SPINVB_33101,62281.59,Purchase Invoice
DFE,Skills Funding Agency,01/11/2016,Career Development Loans - Programme Support Costs,Main Funding,CPM UNITED KINGDOM LTD,SPINVB_33059,1646.68,Purchase Invoice
DFE,Skills Funding Agency,01/11/2016,Young People's Helpline,Main Funding,VECTOR DISPLAY LTD,SPINVB_33122,2112,Purchase Invoice
DFE,Skills Funding Agency,01/11/2016,Young People's Helpline,Main Funding,WILLIAMS LEA LIMITED,SPINVB_32784,5400,Purchase Invoice
DFE,Skills Funding Agency,01/11/2016,Temporary Staff,Operations ICT - Information & Communication Technology - Technical,LA INTERNATIONAL,SPINVB_33061,3165,Purchase Invoice
DFE,Skills Funding Agency,01/11/2016,Temporary Staff,Operations ICT - Technical Design Authority,LA INTERNATIONAL,SPINVB_33062,3480,Purchase Invoice
DFE,Skills Funding Agency,01/11/2016,Temporary Staff,Operations ICT - Technical Design Authority,LA INTERNATIONAL,SPINVB_33063,4350,Purchase Invoice
DFE,Skills Funding Agency,01/11/2016,Temporary Staff,Operations ICT - Technical Design Authority,LA INTERNATIONAL,SPINVB_33094,4350,Purchase Invoice
DFE,Skills Funding Agency,01/11/2016,Professional Services,Funding & Programmes - Executive Office,CAPGEMINI UK PLC,SPINVB_32765,20664,Purchase Invoice
DFE,Skills Funding Agency,01/11/2016,Professional Services,Funding & Programmes - Executive Office,INSTITUTE OF INTERNAL AUDITORS UK & IRELAND LTD,SPINVB_33123,523.02,Purchase Invoice
DFE,Skills Funding Agency,01/11/2016,Professional Services,Operations ICT - Technical Design Authority,SPECIALIST COMPUTER CENTRES PLC,SPINVB_33102,4719,Purchase Invoice
DFE,Skills Funding Agency,01/11/2016,Managed IT Service,Funding & Programmes - Executive Office,ACUITY BUSINESS SOLUTIONS LTD,SPCRNB_1199,-960,Purchase Credit Note
DFE,Skills Funding Agency,01/11/2016,Managed IT Service,Funding & Programmes - Executive Office,ACUITY BUSINESS SOLUTIONS LTD,SPINVB_32803,20721,Purchase Invoice
DFE,Skills Funding Agency,01/11/2016,Managed IT Service,Funding & Programmes - Executive Office,LEIDOS INNOVATIONS UK LTD,SPINVB_32954,14250,Purchase Invoice
DFE,Skills Funding Agency,01/11/2016,Managed IT Service,Funding & Programmes - Executive Office,VALTECH LIMITED,SPCRNB_1200,-62430,Purchase Credit Note
DFE,Skills Funding Agency,01/11/2016,Managed IT Service,Funding & Programmes - Executive Office,VALTECH LIMITED,SPINVB_32900,62430,Purchase Invoice
DFE,Skills Funding Agency,01/11/2016,Managed IT Service,Funding & Programmes - Executive Office,VALTECH LIMITED,SPINVB_33110,62220,Purchase Invoice
DFE,Skills Funding Agency,01/11/2016,Licences,Funding & Programmes - Executive Office,BRAVOSOLUTION UK LTD,SPINVB_33089,18400,Purchase Invoice
DFE,Skills Funding Agency,01/11/2016,Licences,Funding & Programmes - Executive Office,CLAREMONT MARKETING COMMUNICATIONS LTD,SPINVB_33087,2400,Purchase Invoice
DFE,Skills Funding Agency,01/11/2016,Licences,Operations ICT - Information & Communication Technology - Technical,BYTES SOFTWARE SERVICES LTD,SPINVB_33047,33698.59,Purchase Invoice
DFE,Skills Funding Agency,01/11/2016,Support Services,Funding & Programmes - Executive Office,CLAREMONT MARKETING COMMUNICATIONS LTD,SPINVB_32859,10260,Purchase Invoice
DFE,Skills Funding Agency,01/11/2016,Support Services,Data Science,LEIDOS INNOVATIONS UK LTD,SPINVB_33014,1165.51,Purchase Invoice
DFE,Skills Funding Agency,02/11/2016,Next Step Development,Main Funding,TRIBAL EDUCATION LTD,SPCRNNO_475,-77575.2,Purchase Credit Note
DFE,Skills Funding Agency,02/11/2016,Next Step Development,Main Funding,TRIBAL EDUCATION LTD,SPINVB_32889,63091.2,Purchase Invoice
DFE,Skills Funding Agency,02/11/2016,Temporary Staff,Chief Executive Office - Executive Office,SF RECRUITMENT LTD,SPINVB_33084,1646.7,Purchase Invoice
DFE,Skills Funding Agency,02/11/2016,Temporary Staff,Chief Executive Office - Executive Office,SF RECRUITMENT LTD,SPINVB_33085,1646.7,Purchase Invoice
DFE,Skills Funding Agency,02/11/2016,Temporary Staff,Operations ICT - Information & Communication Technology - Technical,KELLY SERVICES UK LTD,SPINVB_33139,759.68,Purchase Invoice
DFE,Skills Funding Agency,02/11/2016,Training Materials,Data Science,Agency Staff Member,SCLAIM_46830,50,Staff Expenses Claim
DFE,Skills Funding Agency,02/11/2016,Diesel Car Mileage,Southern Division,Agency Staff Member,SCLAIM_46826,177.3,Staff Expenses Claim
DFE,Skills Funding Agency,02/11/2016,Diesel Car Mileage,Apprenticeships & Delivery Services - Executive Office,Agency Staff Member,SCLAIM_46818,27,Staff Expenses Claim
DFE,Skills Funding Agency,02/11/2016,Diesel Car Mileage,Large Companies Unit,Agency Staff Member,SCLAIM_46827,272.7,Staff Expenses Claim
DFE,Skills Funding Agency,02/11/2016,Diesel Car Mileage,Large Companies Unit,Agency Staff Member,SCLAIM_46843,265.95,Staff Expenses Claim
DFE,Skills Funding Agency,02/11/2016,Diesel Car Mileage,Employer & Provider Services North East & Yorkshire,Agency Staff Member,SCLAIM_46842,238.05,Staff Expenses Claim
DFE,Skills Funding Agency,02/11/2016,Diesel Car Mileage,Employer & Provider Services North West,Agency Staff Member,SCLAIM_46821,116.55,Staff Expenses Claim
DFE,Skills Funding Agency,02/11/2016,Diesel Car Mileage,Employer & Provider Services North West,Agency Staff Member,SCLAIM_46822,132.75,Staff Expenses Claim
DFE,Skills Funding Agency,02/11/2016,Diesel Car Mileage,Employer & Provider Services North West,Agency Staff Member,SCLAIM_46807,151.2,Staff Expenses Claim
DFE,Skills Funding Agency,02/11/2016,Diesel Car Mileage,Employer & Provider Services North West,Agency Staff Member,SCLAIM_46810,60.3,Staff Expenses Claim
DFE,Skills Funding Agency,02/11/2016,Diesel Car Mileage,National Careers & Learner Services,Agency Staff Member,SCLAIM_46844,83.7,Staff Expenses Claim
DFE,Skills Funding Agency,02/11/2016,Diesel Car Mileage,National Careers & Learner Services,Agency Staff Member,SCLAIM_46840,228.6,Staff Expenses Claim
DFE,Skills Funding Agency,02/11/2016,Diesel Car Mileage,Operations Finance - Executive Office,Agency Staff Member,SCLAIM_46820,396.9,Staff Expenses Claim
DFE,Skills Funding Agency,02/11/2016,Diesel Car Mileage,Operations Finance - Executive Office,Agency Staff Member,SCLAIM_46823,72,Staff Expenses Claim
DFE,Skills Funding Agency,02/11/2016,Diesel Car Mileage,Central Delivery Service - Leeds,Agency Staff Member,SCLAIM_46832,475.2,Staff Expenses Claim
DFE,Skills Funding Agency,02/11/2016,Diesel Car Mileage,Funding & Programmes - Executive Office,Agency Staff Member,SCLAIM_46813,356.4,Staff Expenses Claim
DFE,Skills Funding Agency,02/11/2016,Diesel Car Mileage,Funding & Programmes - Funding Policy Implementation Programmes,Agency Staff Member,SCLAIM_46845,48.6,Staff Expenses Claim
DFE,Skills Funding Agency,02/11/2016,Diesel Car Mileage,Funding & Programmes - Localism Policy Implementation,Agency Staff Member,SCLAIM_46835,617.4,Staff Expenses Claim
DFE,Skills Funding Agency,02/11/2016,Diesel Car Mileage,Funding & Programmes - Provider Management & Intervention South,Agency Staff Member,SCLAIM_46847,147.6,Staff Expenses Claim
DFE,Skills Funding Agency,02/11/2016,Petrol Car Mileage,Chief Executive Office - Communications,Agency Staff Member,SCLAIM_46837,19.8,Staff Expenses Claim
DFE,Skills Funding Agency,02/11/2016,Petrol Car Mileage,Employer & Provider Services North East & Yorkshire,Agency Staff Member,SCLAIM_46846,495,Staff Expenses Claim
DFE,Skills Funding Agency,02/11/2016,Petrol Car Mileage,Apprenticeships & Delivery Services - Apprenticeships & Employer Policy Implementation,Agency Staff Member,SCLAIM_46814,289.35,Staff Expenses Claim
DFE,Skills Funding Agency,02/11/2016,Petrol Car Mileage,National Careers & Learner Services,Agency Staff Member,SCLAIM_46841,240.3,Staff Expenses Claim
DFE,Skills Funding Agency,02/11/2016,Petrol Car Mileage,Operations Finance - Executive Office,Agency Staff Member,SCLAIM_46824,81,Staff Expenses Claim
DFE,Skills Funding Agency,02/11/2016,Petrol Car Mileage,Operations Finance - Executive Office,Agency Staff Member,SCLAIM_46825,40.5,Staff Expenses Claim
DFE,Skills Funding Agency,02/11/2016,Petrol Car Mileage,Central Delivery Service - European Social Fund - Audit Compliance,Agency Staff Member,SCLAIM_46836,194.4,Staff Expenses Claim
DFE,Skills Funding Agency,02/11/2016,Petrol Car Mileage,Central Delivery Service - European Social Fund - Audit Compliance,Agency Staff Member,SCLAIM_46848,289.8,Staff Expenses Claim
DFE,Skills Funding Agency,02/11/2016,Petrol Car Mileage,Central Delivery Service - European Social Fund - Audit Compliance,Agency Staff Member,SCLAIM_46831,38.7,Staff Expenses Claim
DFE,Skills Funding Agency,02/11/2016,Petrol Car Mileage,Central Delivery Service - European Social Fund - Audit Compliance,Agency Staff Member,SCLAIM_46819,164.7,Staff Expenses Claim
DFE,Skills Funding Agency,02/11/2016,Petrol Car Mileage,Central Delivery Service - European Social Fund - Audit Compliance,Agency Staff Member,SCLAIM_46838,133.2,Staff Expenses Claim
DFE,Skills Funding Agency,02/11/2016,Petrol Car Mileage,Funding & Programmes - Provider Management & Intervention South,Agency Staff Member,SCLAIM_46815,162.9,Staff Expenses Claim
DFE,Skills Funding Agency,02/11/2016,Petrol Car Mileage,Funding & Programmes - Provider Management & Intervention North,Agency Staff Member,SCLAIM_46812,56.7,Staff Expenses Claim
DFE,Skills Funding Agency,02/11/2016,Petrol Car Mileage,Intervention,Agency Staff Member,SCLAIM_46816,126,Staff Expenses Claim
DFE,Skills Funding Agency,02/11/2016,Petrol Car Mileage,Data Science,Agency Staff Member,SCLAIM_46830,54.5,Staff Expenses Claim
DFE,Skills Funding Agency,02/11/2016,Other Fuel Car Mileage,Employer & Provider Services North East & Yorkshire,Agency Staff Member,SCLAIM_46811,310.5,Staff Expenses Claim
DFE,Skills Funding Agency,02/11/2016,Diesel Car Mileage Passenger Supplement,Central Delivery Service - Leeds,Agency Staff Member,SCLAIM_46832,10.7,Staff Expenses Claim
DFE,Skills Funding Agency,02/11/2016,Subsistence,Southern Division,Agency Staff Member,SCLAIM_46826,38.75,Staff Expenses Claim
DFE,Skills Funding Agency,02/11/2016,Subsistence,Apprenticeships & Delivery Services - Executive Office,Agency Staff Member,SCLAIM_46818,30.19,Staff Expenses Claim
DFE,Skills Funding Agency,02/11/2016,Subsistence,Large Companies Unit,Agency Staff Member,SCLAIM_46827,36.59,Staff Expenses Claim
DFE,Skills Funding Agency,02/11/2016,Subsistence,Large Companies Unit,Agency Staff Member,SCLAIM_46843,42.5,Staff Expenses Claim
DFE,Skills Funding Agency,02/11/2016,Subsistence,Employer & Provider Services North East & Yorkshire,Agency Staff Member,SCLAIM_46842,23.1,Staff Expenses Claim
DFE,Skills Funding Agency,02/11/2016,Subsistence,Employer & Provider Services North West,Agency Staff Member,SCLAIM_46821,4.64,Staff Expenses Claim
DFE,Skills Funding Agency,02/11/2016,Subsistence,Apprenticeships & Delivery Services - Apprenticeships & Employer Policy Implementation,Agency Staff Member,SCLAIM_46814,8.9,Staff Expenses Claim
DFE,Skills Funding Agency,02/11/2016,Subsistence,Apprenticeships & Delivery Services - Marketing,Agency Staff Member,SCLAIM_46808,37.04,Staff Expenses Claim
DFE,Skills Funding Agency,02/11/2016,Subsistence,National Careers & Learner Services,Agency Staff Member,SCLAIM_46841,53.99,Staff Expenses Claim
DFE,Skills Funding Agency,02/11/2016,Subsistence,National Careers & Learner Services,Agency Staff Member,SCLAIM_46840,28.2,Staff Expenses Claim
DFE,Skills Funding Agency,02/11/2016,Subsistence,National Careers & Learner Services,Agency Staff Member,SCLAIM_46828,22.49,Staff Expenses Claim
DFE,Skills Funding Agency,02/11/2016,Subsistence,National Careers & Learner Services,Agency Staff Member,SCLAIM_46829,6.35,Staff Expenses Claim
DFE,Skills Funding Agency,02/11/2016,Subsistence,Operations Finance - Executive Office,Agency Staff Member,SCLAIM_46820,12.8,Staff Expenses Claim
DFE,Skills Funding Agency,02/11/2016,Subsistence,Operations Finance - Executive Office,Agency Staff Member,SCLAIM_46823,12.71,Staff Expenses Claim
DFE,Skills Funding Agency,02/11/2016,Subsistence,Operations Finance - Executive Office,Agency Staff Member,SCLAIM_46849,45.18,Staff Expenses Claim
DFE,Skills Funding Agency,02/11/2016,Subsistence,Finance Division - Provider Finance,Agency Staff Member,SCLAIM_46817,8.25,Staff Expenses Claim
DFE,Skills Funding Agency,02/11/2016,Subsistence,Finance Division - Provider Finance,Agency Staff Member,SCLAIM_46833,25.73,Staff Expenses Claim
DFE,Skills Funding Agency,02/11/2016,Subsistence,Central Delivery Service - European Social Fund - Audit Compliance,Agency Staff Member,SCLAIM_46848,11.2,Staff Expenses Claim
DFE,Skills Funding Agency,02/11/2016,Subsistence,Central Delivery Service - European Social Fund - Audit Compliance,Agency Staff Member,SCLAIM_46819,73.71,Staff Expenses Claim
DFE,Skills Funding Agency,02/11/2016,Subsistence,Central Delivery Service - European Social Fund - Audit Compliance,Agency Staff Member,SCLAIM_46838,34.57,Staff Expenses Claim
DFE,Skills Funding Agency,02/11/2016,Subsistence,Funding & Programmes - Executive Office,Agency Staff Member,SCLAIM_46813,37,Staff Expenses Claim
DFE,Skills Funding Agency,02/11/2016,Subsistence,Funding & Programmes - Funding Policy Implementation Programmes,Agency Staff Member,SCLAIM_46845,27.13,Staff Expenses Claim
DFE,Skills Funding Agency,02/11/2016,Subsistence,Funding & Programmes - Localism Policy Implementation,Agency Staff Member,SCLAIM_46835,34.06,Staff Expenses Claim
DFE,Skills Funding Agency,02/11/2016,Subsistence,Funding & Programmes - Provider Management & Intervention South,Agency Staff Member,SCLAIM_46815,19.45,Staff Expenses Claim
DFE,Skills Funding Agency,02/11/2016,Subsistence,Funding & Programmes - Provider Management & Intervention North,Agency Staff Member,SCLAIM_46812,5.8,Staff Expenses Claim
DFE,Skills Funding Agency,02/11/2016,Subsistence,Data Science,Agency Staff Member,SCLAIM_46830,100,Staff Expenses Claim
DFE,Skills Funding Agency,02/11/2016,Rail Warrants & Tickets,Apprenticeships & Delivery Services - Executive Office,Agency Staff Member,SCLAIM_46818,4.9,Staff Expenses Claim
DFE,Skills Funding Agency,02/11/2016,Rail Warrants & Tickets,Large Companies Unit,Agency Staff Member,SCLAIM_46843,20.5,Staff Expenses Claim
DFE,Skills Funding Agency,02/11/2016,Rail Warrants & Tickets,Employer & Provider Services North East & Yorkshire,Agency Staff Member,SCLAIM_46842,4.8,Staff Expenses Claim
DFE,Skills Funding Agency,02/11/2016,Rail Warrants & Tickets,National Careers & Learner Services,Agency Staff Member,SCLAIM_46834,15,Staff Expenses Claim
DFE,Skills Funding Agency,02/11/2016,Rail Warrants & Tickets,Operations Finance - Executive Office,Agency Staff Member,SCLAIM_46849,102,Staff Expenses Claim
DFE,Skills Funding Agency,02/11/2016,Rail Warrants & Tickets,Funding & Programmes - Funding Policy Implementation Programmes,Agency Staff Member,SCLAIM_46845,4.8,Staff Expenses Claim
DFE,Skills Funding Agency,02/11/2016,Rail Warrants & Tickets,Intervention,Agency Staff Member,SCLAIM_46816,4.4,Staff Expenses Claim
DFE,Skills Funding Agency,02/11/2016,Self-Drive Car Hire,Southern Division,Agency Staff Member,SCLAIM_46826,51.64,Staff Expenses Claim
DFE,Skills Funding Agency,02/11/2016,Self-Drive Car Hire,Operations Finance - Executive Office,Agency Staff Member,SCLAIM_46820,99.28,Staff Expenses Claim
DFE,Skills Funding Agency,02/11/2016,Self-Drive Car Hire,Finance Division - Provider Finance,Agency Staff Member,SCLAIM_46817,77.23,Staff Expenses Claim
DFE,Skills Funding Agency,02/11/2016,Self-Drive Car Hire,Central Delivery Service - Leeds,Agency Staff Member,SCLAIM_46832,35.03,Staff Expenses Claim
DFE,Skills Funding Agency,02/11/2016,Self-Drive Car Hire,Funding & Programmes - Provider Management & Intervention South,Agency Staff Member,SCLAIM_46815,55.51,Staff Expenses Claim
DFE,Skills Funding Agency,02/11/2016,Taxis,Large Companies Unit,Agency Staff Member,SCLAIM_46843,5,Staff Expenses Claim
DFE,Skills Funding Agency,02/11/2016,Taxis,Employer & Provider Services London,Agency Staff Member,SCLAIM_46839,7.05,Staff Expenses Claim
DFE,Skills Funding Agency,02/11/2016,Taxis,Apprenticeships & Delivery Services - Marketing,Agency Staff Member,SCLAIM_46808,37.2,Staff Expenses Claim
DFE,Skills Funding Agency,02/11/2016,Taxis,National Careers & Learner Services,Agency Staff Member,SCLAIM_46841,46.7,Staff Expenses Claim
DFE,Skills Funding Agency,02/11/2016,Taxis,Operations Finance - Executive Office,Agency Staff Member,SCLAIM_46809,29.9,Staff Expenses Claim
DFE,Skills Funding Agency,02/11/2016,Taxis,Operations Finance - Executive Office,Agency Staff Member,SCLAIM_46823,6.2,Staff Expenses Claim
DFE,Skills Funding Agency,02/11/2016,Taxis,Finance Division - Provider Finance,Agency Staff Member,SCLAIM_46833,14.7,Staff Expenses Claim
DFE,Skills Funding Agency,02/11/2016,Taxis,Central Delivery Service - European Social Fund - Audit Compliance,Agency Staff Member,SCLAIM_46819,8,Staff Expenses Claim
DFE,Skills Funding Agency,02/11/2016,Taxis,Central Delivery Service - European Social Fund - Audit Compliance,Agency Staff Member,SCLAIM_46838,20,Staff Expenses Claim
DFE,Skills Funding Agency,02/11/2016,Other Travel,Southern Division,Agency Staff Member,SCLAIM_46826,13,Staff Expenses Claim
DFE,Skills Funding Agency,02/11/2016,Other Travel,Apprenticeships & Delivery Services - Executive Office,Agency Staff Member,SCLAIM_46818,10,Staff Expenses Claim
DFE,Skills Funding Agency,02/11/2016,Other Travel,Large Companies Unit,Agency Staff Member,SCLAIM_46827,22.5,Staff Expenses Claim
DFE,Skills Funding Agency,02/11/2016,Other Travel,Large Companies Unit,Agency Staff Member,SCLAIM_46843,136.03,Staff Expenses Claim
DFE,Skills Funding Agency,02/11/2016,Other Travel,Employer & Provider Services North East & Yorkshire,Agency Staff Member,SCLAIM_46811,13,Staff Expenses Claim
DFE,Skills Funding Agency,02/11/2016,Other Travel,Employer & Provider Services North East & Yorkshire,Agency Staff Member,SCLAIM_46846,3.8,Staff Expenses Claim
DFE,Skills Funding Agency,02/11/2016,Other Travel,Employer & Provider Services North East & Yorkshire,Agency Staff Member,SCLAIM_46842,38.1,Staff Expenses Claim
DFE,Skills Funding Agency,02/11/2016,Other Travel,Employer & Provider Services North West,Agency Staff Member,SCLAIM_46821,29.5,Staff Expenses Claim
DFE,Skills Funding Agency,02/11/2016,Other Travel,Employer & Provider Services North West,Agency Staff Member,SCLAIM_46822,15.5,Staff Expenses Claim
DFE,Skills Funding Agency,02/11/2016,Other Travel,National Careers & Learner Services,Agency Staff Member,SCLAIM_46844,15.5,Staff Expenses Claim
DFE,Skills Funding Agency,02/11/2016,Other Travel,National Careers & Learner Services,Agency Staff Member,SCLAIM_46841,58.6,Staff Expenses Claim
DFE,Skills Funding Agency,02/11/2016,Other Travel,National Careers & Learner Services,Agency Staff Member,SCLAIM_46840,66.5,Staff Expenses Claim
DFE,Skills Funding Agency,02/11/2016,Other Travel,Operations Finance - Executive Office,Agency Staff Member,SCLAIM_46824,14,Staff Expenses Claim
DFE,Skills Funding Agency,02/11/2016,Other Travel,Operations Finance - Executive Office,Agency Staff Member,SCLAIM_46825,7,Staff Expenses Claim
DFE,Skills Funding Agency,02/11/2016,Other Travel,Operations Finance - Executive Office,Agency Staff Member,SCLAIM_46820,104,Staff Expenses Claim
DFE,Skills Funding Agency,02/11/2016,Other Travel,Finance Division - Provider Finance,Agency Staff Member,SCLAIM_46817,16.5,Staff Expenses Claim
DFE,Skills Funding Agency,02/11/2016,Other Travel,Finance Division - Provider Finance,Agency Staff Member,SCLAIM_46833,12.6,Staff Expenses Claim
DFE,Skills Funding Agency,02/11/2016,Other Travel,Central Delivery Service - Leeds,Agency Staff Member,SCLAIM_46832,4,Staff Expenses Claim
DFE,Skills Funding Agency,02/11/2016,Other Travel,Central Delivery Service - European Social Fund - Audit Compliance,Agency Staff Member,SCLAIM_46836,3,Staff Expenses Claim
DFE,Skills Funding Agency,02/11/2016,Other Travel,Central Delivery Service - European Social Fund - Audit Compliance,Agency Staff Member,SCLAIM_46848,7,Staff Expenses Claim
DFE,Skills Funding Agency,02/11/2016,Other Travel,Central Delivery Service - European Social Fund - Audit Compliance,Agency Staff Member,SCLAIM_46831,10.8,Staff Expenses Claim
DFE,Skills Funding Agency,02/11/2016,Other Travel,Central Delivery Service - European Social Fund - Audit Compliance,Agency Staff Member,SCLAIM_46819,42.2,Staff Expenses Claim
DFE,Skills Funding Agency,02/11/2016,Other Travel,Central Delivery Service - European Social Fund - Audit Compliance,Agency Staff Member,SCLAIM_46838,20.5,Staff Expenses Claim
DFE,Skills Funding Agency,02/11/2016,Other Travel,Funding & Programmes - Executive Office,Agency Staff Member,SCLAIM_46813,6.5,Staff Expenses Claim
DFE,Skills Funding Agency,02/11/2016,Other Travel,Funding & Programmes - Localism Policy Implementation,Agency Staff Member,SCLAIM_46835,8,Staff Expenses Claim
DFE,Skills Funding Agency,02/11/2016,Other Travel,Funding & Programmes - Provider Management & Intervention South,Agency Staff Member,SCLAIM_46847,37,Staff Expenses Claim
DFE,Skills Funding Agency,02/11/2016,Other Travel,Funding & Programmes - Provider Management & Intervention South,Agency Staff Member,SCLAIM_46815,11,Staff Expenses Claim
DFE,Skills Funding Agency,02/11/2016,Other Travel,Funding & Programmes - Provider Management & Intervention North,Agency Staff Member,SCLAIM_46812,36,Staff Expenses Claim
DFE,Skills Funding Agency,02/11/2016,Other Travel,Intervention,Agency Staff Member,SCLAIM_46816,5.5,Staff Expenses Claim
DFE,Skills Funding Agency,02/11/2016,Communications Team Expenditure,Chief Executive Office - Executive Office,PIXELTRIX LTD,SPINVB_33130,914.4,Purchase Invoice
DFE,Skills Funding Agency,02/11/2016,Professional Services,Funding & Programmes - Executive Office,LEIDOS INNOVATIONS UK LTD,SPINVB_32955,71365.52,Purchase Invoice
DFE,Skills Funding Agency,02/11/2016,Professional Services,HR - Human Resources,HEALTH MANAGEMENT LTD,SPINVB_33119,120,Purchase Invoice
DFE,Skills Funding Agency,02/11/2016,Professional Services,HR - Human Resources,HEALTH MANAGEMENT LTD,SPINVB_33120,38.4,Purchase Invoice
DFE,Skills Funding Agency,02/11/2016,Professional Services,Operations ICT - Information & Communication Technology - Technical,CAPGEMINI UK PLC,SPINVB_33135,70937.04,Purchase Invoice
DFE,Skills Funding Agency,02/11/2016,Implementation,Operations ICT - Technical Design Authority,BARCLAYS,SPINVB_33105,104850,Purchase Invoice
DFE,Skills Funding Agency,02/11/2016,Implementation,Operations ICT - Technical Design Authority,BARCLAYS,SPINVB_33106,98250,Purchase Invoice
DFE,Skills Funding Agency,02/11/2016,Managed IT Service,Funding & Programmes - Funding Systems and Information,TRIBAL EDUCATION LTD,SPCRNB_1202,-2875.2,Purchase Credit Note
DFE,Skills Funding Agency,02/11/2016,Managed IT Service,Funding & Programmes - Funding Systems and Information,TRIBAL EDUCATION LTD,SPINVB_32398,77762.4,Purchase Invoice
DFE,Skills Funding Agency,02/11/2016,Managed IT Service,Operations ICT - Information & Communication Technology - Technical,BAE SYSTEMS APPLIED INTELLIGENCE LIMITED,SPINVB_33116,6597.91,Purchase Invoice
DFE,Skills Funding Agency,02/11/2016,Managed IT Service,Operations ICT - Mission IT / Business As Usual Major Releases,INFOR GLOBAL SOLUTIONS MIDLANDS V CO,SPINVB_33115,1807.52,Purchase Invoice
DFE,Skills Funding Agency,02/11/2016,Licences,Operations ICT - Technical Design Authority,SOFTWARE BOX LTD,SPINVB_33114,7291.2,Purchase Invoice
DFE,Skills Funding Agency,02/11/2016,Software Maintenance & Repair,Operations ICT - Business IT - Citizen Services,LEIDOS INNOVATIONS UK LTD,SPINVB_33124,1581.29,Purchase Invoice
DFE,Skills Funding Agency,02/11/2016,Software Maintenance & Repair,Operations ICT - Mission IT / Business As Usual Major Releases,CAPGEMINI UK PLC,SPCRNB_1203,-49175.42,Purchase Credit Note
DFE,Skills Funding Agency,02/11/2016,Software Maintenance & Repair,Operations ICT - Mission IT / Business As Usual Major Releases,CAPGEMINI UK PLC,SPINVB_33137,49175.42,Purchase Invoice
DFE,Skills Funding Agency,04/11/2016,Temporary Staff,Apprenticeships & Delivery Services - Executive Office,CAPITA BUSINESS SERVICES LTD,IPINVELECT3_2155,3228.42,Purchase Invoice
DFE,Skills Funding Agency,04/11/2016,Temporary Staff,Apprenticeships & Delivery Services - Executive Office,HAYS SPECIALIST RECRUITMENT LTD,IPINVELECT3_2149,7566.66,Purchase Invoice
DFE,Skills Funding Agency,04/11/2016,Temporary Staff,Apprenticeships & Delivery Services - Executive Office,PARITY RESOURCES LTD,IPINVELECT3_2153,14628,Purchase Invoice
DFE,Skills Funding Agency,04/11/2016,Temporary Staff,Chief Executive Office - Executive Office,HAYS SPECIALIST RECRUITMENT LTD,IPINVELECT3_2149,2576.7,Purchase Invoice
DFE,Skills Funding Agency,04/11/2016,Temporary Staff,Chief Executive Office - Executive Office,PARITY RESOURCES LTD,IPINVELECT3_2148,6327.25,Purchase Invoice
DFE,Skills Funding Agency,04/11/2016,Temporary Staff,Chief Executive Office - Executive Office,SF RECRUITMENT LTD,SPINVB_33149,1646.7,Purchase Invoice
DFE,Skills Funding Agency,04/11/2016,Temporary Staff,Chief Executive Office - Executive Office,SF RECRUITMENT LTD,SPINVB_33150,1646.7,Purchase Invoice
DFE,Skills Funding Agency,04/11/2016,Temporary Staff,Operations Finance - Executive Office,HAYS SPECIALIST RECRUITMENT LTD,IPINVELECT3_2149,2400,Purchase Invoice
DFE,Skills Funding Agency,04/11/2016,Temporary Staff,Operations Finance - Executive Office,PARITY RESOURCES LTD,IPINVELECT3_2148,13396.62,Purchase Invoice
DFE,Skills Funding Agency,04/11/2016,Temporary Staff,Operations Finance - Executive Office,PARITY RESOURCES LTD,IPINVELECT3_2152,2309.77,Purchase Invoice
DFE,Skills Funding Agency,04/11/2016,Temporary Staff,Operations Finance - Executive Office,PARITY RESOURCES LTD,IPINVELECT3_2153,2309.76,Purchase Invoice
DFE,Skills Funding Agency,04/11/2016,Temporary Staff,Operations Finance - Executive Office,SF RECRUITMENT LTD,SPINVB_32933,2196,Purchase Invoice
DFE,Skills Funding Agency,04/11/2016,Temporary Staff,Operations Finance - Executive Office,SF RECRUITMENT LTD,SPINVB_33025,2196,Purchase Invoice
DFE,Skills Funding Agency,04/11/2016,Temporary Staff,Funding & Programmes - Executive Office,CAPITA BUSINESS SERVICES LTD,IPINVELECT3_2155,15079.9,Purchase Invoice
DFE,Skills Funding Agency,04/11/2016,Temporary Staff,Funding & Programmes - Executive Office,HAYS SPECIALIST RECRUITMENT LTD,IPINVELECT3_2149,20160.53,Purchase Invoice
DFE,Skills Funding Agency,04/11/2016,Temporary Staff,Funding & Programmes - Executive Office,PARITY RESOURCES LTD,IPINVELECT3_2148,6673.44,Purchase Invoice
DFE,Skills Funding Agency,04/11/2016,Temporary Staff,Funding & Programmes - Executive Office,PARITY RESOURCES LTD,IPINVELECT3_2152,11170.88,Purchase Invoice
DFE,Skills Funding Agency,04/11/2016,Temporary Staff,Funding & Programmes - Executive Office,PARITY RESOURCES LTD,IPINVELECT3_2153,6777.52,Purchase Invoice
DFE,Skills Funding Agency,04/11/2016,Temporary Staff,Funding & Programmes - Delivery & Performance,PARITY RESOURCES LTD,IPINVELECT3_2152,2064,Purchase Invoice
DFE,Skills Funding Agency,04/11/2016,Temporary Staff,Operations ICT - Information & Communication Technology - Technical,CAPITA BUSINESS SERVICES LTD,IPINVELECT3_2155,10053.48,Purchase Invoice
DFE,Skills Funding Agency,04/11/2016,Temporary Staff,Operations ICT - Information & Communication Technology - Technical,HAYS SPECIALIST RECRUITMENT LTD,IPINVELECT3_2149,3885.9,Purchase Invoice
DFE,Skills Funding Agency,04/11/2016,Temporary Staff,Operations ICT - Information & Communication Technology - Technical,LA INTERNATIONAL,SPINVB_33151,2556.9,Purchase Invoice
DFE,Skills Funding Agency,04/11/2016,Temporary Staff,Operations ICT - Information & Communication Technology - Technical,LA INTERNATIONAL,SPINVB_33152,2556.9,Purchase Invoice
DFE,Skills Funding Agency,04/11/2016,Temporary Staff,Operations ICT - Information & Communication Technology - Technical,LA INTERNATIONAL,SPINVB_33153,2556.9,Purchase Invoice
DFE,Skills Funding Agency,04/11/2016,Temporary Staff,Operations ICT - Information & Communication Technology - Technical,PARITY RESOURCES LTD,IPINVELECT3_2148,31635.03,Purchase Invoice
DFE,Skills Funding Agency,04/11/2016,Temporary Staff,Operations ICT - Information & Communication Technology - Technical,PARITY RESOURCES LTD,IPINVELECT3_2152,2735.42,Purchase Invoice
DFE,Skills Funding Agency,04/11/2016,Temporary Staff,Operations ICT - Information & Communication Technology - Technical,PARITY RESOURCES LTD,IPINVELECT3_2153,3017.34,Purchase Invoice
DFE,Skills Funding Agency,04/11/2016,Temporary Staff,Operations ICT - Technical Design Authority,PARITY RESOURCES LTD,IPINVELECT3_2148,3310.5,Purchase Invoice
DFE,Skills Funding Agency,04/11/2016,Temporary Staff,Operations ICT - Technical Design Authority,PARITY RESOURCES LTD,IPINVELECT3_2152,6621,Purchase Invoice
DFE,Skills Funding Agency,04/11/2016,Temporary Staff,Operations ICT - Projects,CAPITA BUSINESS SERVICES LTD,IPINVELECT3_2155,24895.02,Purchase Invoice
DFE,Skills Funding Agency,04/11/2016,Temporary Staff,Transformation & Corporate Strategy,PARITY RESOURCES LTD,IPINVELECT3_2153,547.08,Purchase Invoice
DFE,Skills Funding Agency,04/11/2016,Temporary Staff,Transaction Unit,BAKER TILLY MANAGEMENT LTD,SPINVB_33005,11559.5,Purchase Invoice
DFE,Skills Funding Agency,04/11/2016,Temporary Staff,Transaction Unit,GOODMAN MASSON RECRUITMENT SERVICES LTD,SPINVB_33159,490.42,Purchase Invoice
DFE,Skills Funding Agency,04/11/2016,Temporary Staff,Transaction Unit,PARITY RESOURCES LTD,IPINVELECT3_2148,2999.28,Purchase Invoice
DFE,Skills Funding Agency,04/11/2016,Catering Contracts,Chief Executive Office - Executive Office,WESTBURY STREET HOLDINGS,SPINVB_33111,7897.56,Purchase Invoice
DFE,Skills Funding Agency,04/11/2016,Catering Contracts,Chief Executive Office - Executive Office,WESTBURY STREET HOLDINGS,SPINVB_33112,54.43,Purchase Invoice
DFE,Skills Funding Agency,04/11/2016,Communications Team Expenditure,Chief Executive Office - Executive Office,GORKANA GROUP LTD,SPINVB_33167,6739.2,Purchase Invoice
DFE,Skills Funding Agency,04/11/2016,Landline Telephone Service,Operations ICT - Information & Communication Technology - Technical,IDN TELECOM LTD,IPINVELECT3_2156,464.81,Purchase Invoice
DFE,Skills Funding Agency,04/11/2016,Mobile Telephones,Operations ICT - Information & Communication Technology - Technical,TELEFONICA O2 UK LTD,IPINVELECT3_2154,398.52,Purchase Invoice
DFE,Skills Funding Agency,04/11/2016,Professional Services,Operations ICT - Technical Design Authority,SPECIALIST COMPUTER CENTRES PLC,SPINVB_33140,1423.8,Purchase Invoice
DFE,Skills Funding Agency,04/11/2016,Hosting,Operations ICT - Technical Design Authority,CGI IT UK LIMITED,SPINVB_33160,172958.27,Purchase Invoice
DFE,Skills Funding Agency,04/11/2016,Hosting,Operations ICT - Technical Design Authority,SPECIALIST COMPUTER CENTRES PLC,SPINVB_33141,61.2,Purchase Invoice
DFE,Skills Funding Agency,04/11/2016,Hosting,Operations ICT - Business IT - Citizen Services,CGI IT UK LIMITED,SPINVB_33161,6618.95,Purchase Invoice
DFE,Skills Funding Agency,04/11/2016,Managed IT Service,Funding & Programmes - Executive Office,ANALYSE-CONCEPT LTD,SPINVB_33126,33600,Purchase Invoice
DFE,Skills Funding Agency,04/11/2016,Managed IT Service,Operations ICT - Information & Communication Technology - Technical,SCROLL LLP,SPINVB_33121,2452.8,Purchase Invoice
DFE,Skills Funding Agency,04/11/2016,Licences,Operations ICT - Information & Communication Technology - Technical,VALIANTYS LIMITED,SPINVB_33143,1680,Purchase Invoice
DFE,Skills Funding Agency,04/11/2016,Software Maintenance & Repair,Operations ICT - Business IT - Citizen Services,LEIDOS INNOVATIONS UK LTD,SPINVB_33125,170.66,Purchase Invoice
DFE,Skills Funding Agency,04/11/2016,Software Maintenance & Repair,Operations ICT - Business IT - Citizen Services,LEIDOS INNOVATIONS UK LTD,SPINVB_33156,118643.86,Purchase Invoice
DFE,Skills Funding Agency,04/11/2016,Software Maintenance & Repair,Operations ICT - Business IT - Citizen Services,HOTCOURSES DATA LTD,SPINVB_33144,17648.4,Purchase Invoice
DFE,Skills Funding Agency,04/11/2016,Software Maintenance & Repair,Operations ICT - Mission IT / Business As Usual Major Releases,CAPGEMINI UK PLC,SPINVB_33134,104081.29,Purchase Invoice
DFE,Skills Funding Agency,04/11/2016,Software Maintenance & Repair,Operations ICT - Mission IT / Business As Usual Major Releases,CAPGEMINI UK PLC,SPINVB_33136,5644.08,Purchase Invoice
DFE,Skills Funding Agency,08/11/2016,Temporary Staff,Apprenticeships & Delivery Services - Executive Office,HAYS SPECIALIST RECRUITMENT LTD,IPINVELECT3_2158,3855.28,Purchase Invoice
DFE,Skills Funding Agency,08/11/2016,Temporary Staff,Chief Executive Office - Executive Office,HAYS SPECIALIST RECRUITMENT LTD,IPINVELECT3_2158,2352.54,Purchase Invoice
DFE,Skills Funding Agency,08/11/2016,Temporary Staff,Operations Finance - Executive Office,HAYS SPECIALIST RECRUITMENT LTD,IPINVELECT3_2158,2160,Purchase Invoice
DFE,Skills Funding Agency,08/11/2016,Temporary Staff,Operations Finance - Executive Office,SF RECRUITMENT LTD,SPINVB_32877,2196,Purchase Invoice
DFE,Skills Funding Agency,08/11/2016,Temporary Staff,Operations Finance - Executive Office,SF RECRUITMENT LTD,SPINVB_32878,2196,Purchase Invoice
DFE,Skills Funding Agency,08/11/2016,Temporary Staff,Operations Finance - Executive Office,SF RECRUITMENT LTD,SPINVB_32879,2196,Purchase Invoice
DFE,Skills Funding Agency,08/11/2016,Temporary Staff,Operations Finance - Executive Office,SF RECRUITMENT LTD,SPINVB_32880,2196,Purchase Invoice
DFE,Skills Funding Agency,08/11/2016,Temporary Staff,Operations Finance - Executive Office,SF RECRUITMENT LTD,SPINVB_32881,2196,Purchase Invoice
DFE,Skills Funding Agency,08/11/2016,Temporary Staff,Operations Finance - Executive Office,SF RECRUITMENT LTD,SPINVB_32882,1756.8,Purchase Invoice
DFE,Skills Funding Agency,08/11/2016,Temporary Staff,Operations Finance - Executive Office,SF RECRUITMENT LTD,SPINVB_32883,1463.04,Purchase Invoice
DFE,Skills Funding Agency,08/11/2016,Temporary Staff,Operations Finance - Executive Office,SF RECRUITMENT LTD,SPINVB_32884,1463.04,Purchase Invoice
DFE,Skills Funding Agency,08/11/2016,Temporary Staff,Operations Finance - Executive Office,SF RECRUITMENT LTD,SPINVB_32885,1463.04,Purchase Invoice
DFE,Skills Funding Agency,08/11/2016,Temporary Staff,Operations Finance - Executive Office,SF RECRUITMENT LTD,SPINVB_32886,1170.43,Purchase Invoice
DFE,Skills Funding Agency,08/11/2016,Temporary Staff,Operations Finance - Executive Office,SF RECRUITMENT LTD,SPINVB_32887,1463.04,Purchase Invoice
DFE,Skills Funding Agency,08/11/2016,Temporary Staff,Operations Finance - Executive Office,SF RECRUITMENT LTD,SPINVB_32939,1463.04,Purchase Invoice
DFE,Skills Funding Agency,08/11/2016,Temporary Staff,Operations Finance - Executive Office,SF RECRUITMENT LTD,SPINVB_33026,1463.04,Purchase Invoice
DFE,Skills Funding Agency,08/11/2016,Temporary Staff,Operations Finance - Executive Office,SF RECRUITMENT LTD,SPINVB_33083,1756.8,Purchase Invoice
DFE,Skills Funding Agency,08/11/2016,Temporary Staff,Operations Finance - Executive Office,SF RECRUITMENT LTD,SPINVB_33146,2196,Purchase Invoice
DFE,Skills Funding Agency,08/11/2016,Temporary Staff,Funding & Programmes - Executive Office,HAYS SPECIALIST RECRUITMENT LTD,IPINVELECT3_2158,12851.28,Purchase Invoice
DFE,Skills Funding Agency,08/11/2016,Temporary Staff,Operations ICT - Information & Communication Technology - Technical,HAYS SPECIALIST RECRUITMENT LTD,IPINVELECT3_2158,5001.9,Purchase Invoice
DFE,Skills Funding Agency,08/11/2016,Temporary Staff,Operations ICT - Information & Communication Technology - Technical,KELLY SERVICES UK LTD,SPINVB_33210,1021.64,Purchase Invoice
DFE,Skills Funding Agency,08/11/2016,Temporary Staff,Operations ICT - Information & Communication Technology - Technical,LA INTERNATIONAL,SPINVB_33164,2848.5,Purchase Invoice
DFE,Skills Funding Agency,08/11/2016,Temporary Staff,Operations ICT - Information & Communication Technology - Technical,METHODS PROFESSIONAL SERVICES LTD,SPINVB_33201,8758.01,Purchase Invoice
DFE,Skills Funding Agency,08/11/2016,Temporary Staff,Operations ICT - Technical Design Authority,LA INTERNATIONAL,SPINVB_33165,4350,Purchase Invoice
DFE,Skills Funding Agency,08/11/2016,Temporary Staff,Transaction Unit,BAKER TILLY MANAGEMENT LTD,SPINVB_33168,25975.5,Purchase Invoice
DFE,Skills Funding Agency,08/11/2016,Rail Warrants & Tickets,Chief Executive Office - Executive Office,NORTHERN EDUCATION ASSOCIATES LTD,SPINVNO_3896,136.25,Purchase Invoice
DFE,Skills Funding Agency,08/11/2016,Landline Telephone Service,Operations ICT - Business IT - Agency Services,CGI IT UK LIMITED,SPINVB_33163,4670.4,Purchase Invoice
DFE,Skills Funding Agency,08/11/2016,Professional Services,Operations ICT - Technical Design Authority,SPECIALIST COMPUTER CENTRES PLC,SPINVB_33220,3432,Purchase Invoice
DFE,Skills Funding Agency,08/11/2016,Hosting,Operations ICT - Mission IT / Business As Usual Major Releases,BIRST INC.,SPINVB_33157,175,Purchase Invoice
DFE,Skills Funding Agency,08/11/2016,Managed IT Service,Apprenticeships & Delivery Services - Executive Office,ORANGE BUS LIMITED,SPINVB_33028,660.55,Purchase Invoice
DFE,Skills Funding Agency,08/11/2016,Managed IT Service,Apprenticeships & Delivery Services - Executive Office,ORANGE BUS LIMITED,SPINVB_33138,13860,Purchase Invoice
DFE,Skills Funding Agency,08/11/2016,Managed IT Service,Operations ICT - Service Integration & Management,BAE SYSTEMS APPLIED INTELLIGENCE LIMITED,SPINVB_33195,3567.65,Purchase Invoice
DFE,Skills Funding Agency,08/11/2016,Licences,Operations ICT - Business IT - Agency Services,SCARISTA LTD,SPINVB_33183,223.09,Purchase Invoice
DFE,Skills Funding Agency,08/11/2016,Software Maintenance & Repair,Operations ICT - Business IT - Agency Services,CGI IT UK LIMITED,SPINVB_33162,186970.8,Purchase Invoice
DFE,Skills Funding Agency,08/11/2016,Software Maintenance & Repair,Operations ICT - Project Delivery,BOTTOMLINE TECHNOLOGIES EUROPE LTD,SPINVB_33154,2640,Purchase Invoice
DFE,Skills Funding Agency,08/11/2016,Support Services,Data Science,LEIDOS INNOVATIONS UK LTD,SPINVB_33131,11256.92,Purchase Invoice
DFE,Skills Funding Agency,08/11/2016,Service Charges,Chief Executive Office - Executive Office,HOMES & COMMUNITIES AGENCY,SPINVB_33202,19639.04,Purchase Invoice
DFE,Skills Funding Agency,08/11/2016,Archiving,Chief Executive Office - Executive Office,IRON MOUNTAIN UK LTD,IPINVELECT3_2157,14162.28,Purchase Invoice
DFE,Skills Funding Agency,09/11/2016,Temporary Staff,Apprenticeships & Delivery Services - Executive Office,CENTRE4 RESOURCES LIMITED,SPINVB_33225,11880,Purchase Invoice
DFE,Skills Funding Agency,09/11/2016,Temporary Staff,Apprenticeships & Delivery Services - Executive Office,SMART SOURCING PLC,SPINVB_33211,13828.5,Purchase Invoice
DFE,Skills Funding Agency,09/11/2016,Temporary Staff,Operations ICT - Information & Communication Technology - Technical,CADENCE PARTNERSHIP LLP,SPINVB_33166,19845,Purchase Invoice
DFE,Skills Funding Agency,09/11/2016,Temporary Staff,Operations ICT - Information & Communication Technology - Technical,BAE SYSTEMS APPLIED INTELLIGENCE LIMITED,SPINVB_33200,16440,Purchase Invoice
DFE,Skills Funding Agency,09/11/2016,Temporary Staff,Operations ICT - Information & Communication Technology - Technical,EXPERIS LIMITED,SPINVB_33236,12768.96,Purchase Invoice
DFE,Skills Funding Agency,09/11/2016,Temporary Staff,Operations ICT - Information & Communication Technology - Technical,SMART SOURCING PLC,SPINVB_33212,10693.06,Purchase Invoice
DFE,Skills Funding Agency,09/11/2016,Temporary Staff,Operations ICT - Technical Design Authority,LA INTERNATIONAL,SPINVB_33208,6171.84,Purchase Invoice
DFE,Skills Funding Agency,09/11/2016,Eye Tests,Funding & Programmes - Executive Office,Agency Staff Member,SCLAIM_46915,70,Staff Expenses Claim
DFE,Skills Funding Agency,09/11/2016,Diesel Car Mileage,Apprenticeships & Delivery Services - Executive Office,Agency Staff Member,SCLAIM_46862,315,Staff Expenses Claim
DFE,Skills Funding Agency,09/11/2016,Diesel Car Mileage,Apprenticeships & Delivery Services - Executive Office,Agency Staff Member,SCLAIM_46861,215.1,Staff Expenses Claim
DFE,Skills Funding Agency,09/11/2016,Diesel Car Mileage,Apprenticeships & Delivery Services - Executive Office,Agency Staff Member,SCLAIM_46911,54,Staff Expenses Claim
DFE,Skills Funding Agency,09/11/2016,Diesel Car Mileage,Apprenticeships & Delivery Services - Executive Office,Agency Staff Member,SCLAIM_46912,7.2,Staff Expenses Claim
DFE,Skills Funding Agency,09/11/2016,Diesel Car Mileage,Apprenticeships & Delivery Services - Executive Office,Agency Staff Member,SCLAIM_46913,54,Staff Expenses Claim
DFE,Skills Funding Agency,09/11/2016,Diesel Car Mileage,Apprenticeships & Delivery Services - Executive Office,Agency Staff Member,SCLAIM_46875,154.8,Staff Expenses Claim
DFE,Skills Funding Agency,09/11/2016,Diesel Car Mileage,Large Companies Unit,Agency Staff Member,SCLAIM_46900,315,Staff Expenses Claim
DFE,Skills Funding Agency,09/11/2016,Diesel Car Mileage,Employer & Provider Services London Apprenticeships Development,Agency Staff Member,SCLAIM_46882,64.8,Staff Expenses Claim
DFE,Skills Funding Agency,09/11/2016,Diesel Car Mileage,Employer & Provider Services North West,Agency Staff Member,SCLAIM_46909,221.4,Staff Expenses Claim
DFE,Skills Funding Agency,09/11/2016,Diesel Car Mileage,Apprenticeships & Delivery Services - Apprenticeships & Employer Policy Implementation,Agency Staff Member,SCLAIM_46878,22.5,Staff Expenses Claim
DFE,Skills Funding Agency,09/11/2016,Diesel Car Mileage,National Careers & Learner Services,Agency Staff Member,SCLAIM_46916,184.5,Staff Expenses Claim
DFE,Skills Funding Agency,09/11/2016,Diesel Car Mileage,National Careers & Learner Services,Agency Staff Member,SCLAIM_46917,234.45,Staff Expenses Claim
DFE,Skills Funding Agency,09/11/2016,Diesel Car Mileage,National Careers & Learner Services,Agency Staff Member,SCLAIM_46914,431.1,Staff Expenses Claim
DFE,Skills Funding Agency,09/11/2016,Diesel Car Mileage,Operations Finance - Executive Office,Agency Staff Member,SCLAIM_46904,5.4,Staff Expenses Claim
DFE,Skills Funding Agency,09/11/2016,Diesel Car Mileage,Central Delivery Service - Leeds,Agency Staff Member,SCLAIM_46880,276.3,Staff Expenses Claim
DFE,Skills Funding Agency,09/11/2016,Diesel Car Mileage,Central Delivery Service - European Social Fund - Audit Compliance,Agency Staff Member,SCLAIM_46897,3.6,Staff Expenses Claim
DFE,Skills Funding Agency,09/11/2016,Diesel Car Mileage,Central Delivery Service - European Social Fund - Audit Compliance,Agency Staff Member,SCLAIM_46867,250.2,Staff Expenses Claim
DFE,Skills Funding Agency,09/11/2016,Diesel Car Mileage,Central Delivery Service - European Social Fund - Audit Compliance,Agency Staff Member,SCLAIM_46873,244.8,Staff Expenses Claim
DFE,Skills Funding Agency,09/11/2016,Diesel Car Mileage,Central Delivery Service - European Social Fund - Audit Compliance,Agency Staff Member,SCLAIM_46889,135.9,Staff Expenses Claim
DFE,Skills Funding Agency,09/11/2016,Diesel Car Mileage,Funding & Programmes - Provider Management & Intervention Central,Agency Staff Member,SCLAIM_46903,436.5,Staff Expenses Claim
DFE,Skills Funding Agency,09/11/2016,Diesel Car Mileage,Funding & Programmes - Provider Management & Intervention South,Agency Staff Member,SCLAIM_46919,603,Staff Expenses Claim
DFE,Skills Funding Agency,09/11/2016,Diesel Car Mileage,Funding & Programmes - Provider Management & Intervention North,Agency Staff Member,SCLAIM_46905,283.5,Staff Expenses Claim
DFE,Skills Funding Agency,09/11/2016,Diesel Car Mileage,Funding & Programmes - Provider Management & Intervention North,Agency Staff Member,SCLAIM_46859,162,Staff Expenses Claim
DFE,Skills Funding Agency,09/11/2016,Diesel Car Mileage,Funding & Programmes - Provider Management & Intervention North,Agency Staff Member,SCLAIM_46881,252.9,Staff Expenses Claim
DFE,Skills Funding Agency,09/11/2016,Diesel Car Mileage,Funding & Programmes - Provider Management & Intervention North,Agency Staff Member,SCLAIM_46884,267.3,Staff Expenses Claim
DFE,Skills Funding Agency,09/11/2016,Diesel Car Mileage,Funding & Programmes - Provider Management & Intervention North,Agency Staff Member,SCLAIM_46885,301.5,Staff Expenses Claim
DFE,Skills Funding Agency,09/11/2016,Diesel Car Mileage,Intervention,Agency Staff Member,SCLAIM_46872,46.8,Staff Expenses Claim
DFE,Skills Funding Agency,09/11/2016,Diesel Car Mileage,Intervention,Agency Staff Member,SCLAIM_46877,89.1,Staff Expenses Claim
DFE,Skills Funding Agency,09/11/2016,Petrol Car Mileage,Apprenticeships & Delivery Services - Executive Office,Agency Staff Member,SCLAIM_46865,153,Staff Expenses Claim
DFE,Skills Funding Agency,09/11/2016,Petrol Car Mileage,Apprenticeships & Delivery Services - Executive Office,Agency Staff Member,SCLAIM_46869,123.3,Staff Expenses Claim
DFE,Skills Funding Agency,09/11/2016,Petrol Car Mileage,Employer & Provider Services North East & Yorkshire,Agency Staff Member,SCLAIM_46864,153.9,Staff Expenses Claim
DFE,Skills Funding Agency,09/11/2016,Petrol Car Mileage,Employer & Provider Services North East & Yorkshire,Agency Staff Member,SCLAIM_46918,133.2,Staff Expenses Claim
DFE,Skills Funding Agency,09/11/2016,Petrol Car Mileage,Employer & Provider Services North West,Agency Staff Member,SCLAIM_46898,453.6,Staff Expenses Claim
DFE,Skills Funding Agency,09/11/2016,Petrol Car Mileage,Employer & Provider Services North West,Agency Staff Member,SCLAIM_46891,207,Staff Expenses Claim
DFE,Skills Funding Agency,09/11/2016,Petrol Car Mileage,Apprenticeships & Delivery Services - Marketing,Agency Staff Member,SCLAIM_46870,46.8,Staff Expenses Claim
DFE,Skills Funding Agency,09/11/2016,Petrol Car Mileage,Operations Finance - Executive Office,Agency Staff Member,SCLAIM_46901,32.4,Staff Expenses Claim
DFE,Skills Funding Agency,09/11/2016,Petrol Car Mileage,Operations Finance - Executive Office,Agency Staff Member,SCLAIM_46922,69.3,Staff Expenses Claim
DFE,Skills Funding Agency,09/11/2016,Petrol Car Mileage,Operations Finance - Executive Office,Agency Staff Member,SCLAIM_46868,12.6,Staff Expenses Claim
DFE,Skills Funding Agency,09/11/2016,Petrol Car Mileage,Central Delivery Service - Birmingham,Agency Staff Member,SCLAIM_46887,173.7,Staff Expenses Claim
DFE,Skills Funding Agency,09/11/2016,Petrol Car Mileage,Central Delivery Service - European Social Fund - Audit Compliance,Agency Staff Member,SCLAIM_46863,219.6,Staff Expenses Claim
DFE,Skills Funding Agency,09/11/2016,Petrol Car Mileage,Central Delivery Service - European Social Fund - Audit Compliance,Agency Staff Member,SCLAIM_46907,135.9,Staff Expenses Claim
DFE,Skills Funding Agency,09/11/2016,Petrol Car Mileage,Central Delivery Service - European Social Fund - Audit Compliance,Agency Staff Member,SCLAIM_46851,140.4,Staff Expenses Claim
DFE,Skills Funding Agency,09/11/2016,Petrol Car Mileage,Central Delivery Service - European Social Fund - Audit Compliance,Agency Staff Member,SCLAIM_46852,248.4,Staff Expenses Claim
DFE,Skills Funding Agency,09/11/2016,Petrol Car Mileage,Central Delivery Service - European Social Fund - Audit Compliance,Agency Staff Member,SCLAIM_46853,189.9,Staff Expenses Claim
DFE,Skills Funding Agency,09/11/2016,Petrol Car Mileage,Central Delivery Service - European Social Fund - Audit Compliance,Agency Staff Member,SCLAIM_46854,314.1,Staff Expenses Claim
DFE,Skills Funding Agency,09/11/2016,Petrol Car Mileage,Central Delivery Service - European Social Fund - Audit Compliance,Agency Staff Member,SCLAIM_46860,44.1,Staff Expenses Claim
DFE,Skills Funding Agency,09/11/2016,Petrol Car Mileage,Central Delivery Service - European Social Fund - Audit Compliance,Agency Staff Member,SCLAIM_46866,45.9,Staff Expenses Claim
DFE,Skills Funding Agency,09/11/2016,Petrol Car Mileage,Central Delivery Service - European Social Fund - Audit Compliance,Agency Staff Member,SCLAIM_46871,20.7,Staff Expenses Claim
DFE,Skills Funding Agency,09/11/2016,Petrol Car Mileage,Central Delivery Service - European Social Fund - Audit Compliance,Agency Staff Member,SCLAIM_46879,20.7,Staff Expenses Claim
DFE,Skills Funding Agency,09/11/2016,Petrol Car Mileage,Central Delivery Service - European Social Fund - Audit Compliance,Agency Staff Member,SCLAIM_46858,210.6,Staff Expenses Claim
DFE,Skills Funding Agency,09/11/2016,Petrol Car Mileage,Funding & Programmes - Executive Office,Agency Staff Member,SCLAIM_46899,9,Staff Expenses Claim
DFE,Skills Funding Agency,09/11/2016,Petrol Car Mileage,Funding & Programmes - Provider Management & Intervention North,Agency Staff Member,SCLAIM_46908,406.8,Staff Expenses Claim
DFE,Skills Funding Agency,09/11/2016,Petrol Car Mileage,Intervention,Agency Staff Member,SCLAIM_46906,354.6,Staff Expenses Claim
DFE,Skills Funding Agency,09/11/2016,Petrol Car Mileage,Intervention,Agency Staff Member,SCLAIM_46876,263.7,Staff Expenses Claim
DFE,Skills Funding Agency,09/11/2016,Petrol Car Mileage,Intervention,Agency Staff Member,SCLAIM_46883,248.4,Staff Expenses Claim
DFE,Skills Funding Agency,09/11/2016,Petrol Car Mileage,Intervention,Agency Staff Member,SCLAIM_46893,237.6,Staff Expenses Claim
DFE,Skills Funding Agency,09/11/2016,Petrol Car Mileage,Intervention,Agency Staff Member,SCLAIM_46894,149.4,Staff Expenses Claim
DFE,Skills Funding Agency,09/11/2016,Petrol Car Mileage,Intervention,Agency Staff Member,SCLAIM_46895,246.6,Staff Expenses Claim
DFE,Skills Funding Agency,09/11/2016,Petrol Car Mileage,Intervention,Agency Staff Member,SCLAIM_46921,377.1,Staff Expenses Claim
DFE,Skills Funding Agency,09/11/2016,Petrol Car Mileage,Intervention,Agency Staff Member,SCLAIM_46886,77.4,Staff Expenses Claim
DFE,Skills Funding Agency,09/11/2016,Diesel Car Mileage Passenger Supplement,Funding & Programmes - Provider Management & Intervention North,Agency Staff Member,SCLAIM_46885,2.65,Staff Expenses Claim
DFE,Skills Funding Agency,09/11/2016,Petrol Car Mileage Passenger Supplement,Intervention,Agency Staff Member,SCLAIM_46876,10.8,Staff Expenses Claim
DFE,Skills Funding Agency,09/11/2016,Subsistence,Apprenticeships & Delivery Services - Executive Office,Agency Staff Member,SCLAIM_46861,38.49,Staff Expenses Claim
DFE,Skills Funding Agency,09/11/2016,Subsistence,Apprenticeships & Delivery Services - Executive Office,Agency Staff Member,SCLAIM_46911,8.05,Staff Expenses Claim
DFE,Skills Funding Agency,09/11/2016,Subsistence,Apprenticeships & Delivery Services - Executive Office,Agency Staff Member,SCLAIM_46912,3.89,Staff Expenses Claim
DFE,Skills Funding Agency,09/11/2016,Subsistence,Apprenticeships & Delivery Services - Executive Office,Agency Staff Member,SCLAIM_46913,3.85,Staff Expenses Claim
DFE,Skills Funding Agency,09/11/2016,Subsistence,Apprenticeships & Delivery Services - Executive Office,Agency Staff Member,SCLAIM_46869,12.74,Staff Expenses Claim
DFE,Skills Funding Agency,09/11/2016,Subsistence,Apprenticeships & Delivery Services - Executive Office,Agency Staff Member,SCLAIM_46875,9.99,Staff Expenses Claim
DFE,Skills Funding Agency,09/11/2016,Subsistence,Large Companies Unit,Agency Staff Member,SCLAIM_46900,95,Staff Expenses Claim
DFE,Skills Funding Agency,09/11/2016,Subsistence,Employer & Provider Services London,Agency Staff Member,SCLAIM_46855,21.25,Staff Expenses Claim
DFE,Skills Funding Agency,09/11/2016,Subsistence,Employer & Provider Services London,Agency Staff Member,SCLAIM_46856,5,Staff Expenses Claim
DFE,Skills Funding Agency,09/11/2016,Subsistence,Employer & Provider Services North East & Yorkshire,Agency Staff Member,SCLAIM_46864,16.85,Staff Expenses Claim
DFE,Skills Funding Agency,09/11/2016,Subsistence,Employer & Provider Services North East & Yorkshire,Agency Staff Member,SCLAIM_46918,18.85,Staff Expenses Claim
DFE,Skills Funding Agency,09/11/2016,Subsistence,Employer & Provider Services North West,Agency Staff Member,SCLAIM_46896,76.6,Staff Expenses Claim
DFE,Skills Funding Agency,09/11/2016,Subsistence,Employer & Provider Services North West,Agency Staff Member,SCLAIM_46892,48.69,Staff Expenses Claim
DFE,Skills Funding Agency,09/11/2016,Subsistence,Apprenticeships & Delivery Services - Apprenticeships & Employer Policy Implementation,Agency Staff Member,SCLAIM_46878,57.4,Staff Expenses Claim
DFE,Skills Funding Agency,09/11/2016,Subsistence,Apprenticeships & Delivery Services - Marketing,Agency Staff Member,SCLAIM_46870,9.3,Staff Expenses Claim
DFE,Skills Funding Agency,09/11/2016,Subsistence,National Careers & Learner Services,Agency Staff Member,SCLAIM_46890,84.9,Staff Expenses Claim
DFE,Skills Funding Agency,09/11/2016,Subsistence,National Careers & Learner Services,Agency Staff Member,SCLAIM_46917,20,Staff Expenses Claim
DFE,Skills Funding Agency,09/11/2016,Subsistence,National Careers & Learner Services,Agency Staff Member,SCLAIM_46874,16.3,Staff Expenses Claim
DFE,Skills Funding Agency,09/11/2016,Subsistence,National Careers & Learner Services,Agency Staff Member,SCLAIM_46914,36.83,Staff Expenses Claim
DFE,Skills Funding Agency,09/11/2016,Subsistence,Operations Finance - Executive Office,Agency Staff Member,SCLAIM_46922,6.15,Staff Expenses Claim
DFE,Skills Funding Agency,09/11/2016,Subsistence,Operations Finance - Executive Office,Agency Staff Member,SCLAIM_46868,13.37,Staff Expenses Claim
DFE,Skills Funding Agency,09/11/2016,Subsistence,Operations Finance - Executive Office,Agency Staff Member,SCLAIM_46904,28.72,Staff Expenses Claim
DFE,Skills Funding Agency,09/11/2016,Subsistence,Central Delivery Service - Birmingham,Agency Staff Member,SCLAIM_46887,18.2,Staff Expenses Claim
DFE,Skills Funding Agency,09/11/2016,Subsistence,Central Delivery Service - Leeds,Agency Staff Member,SCLAIM_46857,34.35,Staff Expenses Claim
DFE,Skills Funding Agency,09/11/2016,Subsistence,Central Delivery Service - Leeds,Agency Staff Member,SCLAIM_46880,5.2,Staff Expenses Claim
DFE,Skills Funding Agency,09/11/2016,Subsistence,Central Delivery Service - European Social Fund - Audit Compliance,Agency Staff Member,SCLAIM_46897,6.6,Staff Expenses Claim
DFE,Skills Funding Agency,09/11/2016,Subsistence,Central Delivery Service - European Social Fund - Audit Compliance,Agency Staff Member,SCLAIM_46863,27.2,Staff Expenses Claim
DFE,Skills Funding Agency,09/11/2016,Subsistence,Central Delivery Service - European Social Fund - Audit Compliance,Agency Staff Member,SCLAIM_46907,37.79,Staff Expenses Claim
DFE,Skills Funding Agency,09/11/2016,Subsistence,Central Delivery Service - European Social Fund - Audit Compliance,Agency Staff Member,SCLAIM_46867,37.58,Staff Expenses Claim
DFE,Skills Funding Agency,09/11/2016,Subsistence,Central Delivery Service - European Social Fund - Audit Compliance,Agency Staff Member,SCLAIM_46873,21.05,Staff Expenses Claim
DFE,Skills Funding Agency,09/11/2016,Subsistence,Central Delivery Service - European Social Fund - Audit Compliance,Agency Staff Member,SCLAIM_46851,6.97,Staff Expenses Claim
DFE,Skills Funding Agency,09/11/2016,Subsistence,Central Delivery Service - European Social Fund - Audit Compliance,Agency Staff Member,SCLAIM_46852,5.1,Staff Expenses Claim
DFE,Skills Funding Agency,09/11/2016,Subsistence,Central Delivery Service - European Social Fund - Audit Compliance,Agency Staff Member,SCLAIM_46853,1.9,Staff Expenses Claim
DFE,Skills Funding Agency,09/11/2016,Subsistence,Central Delivery Service - European Social Fund - Audit Compliance,Agency Staff Member,SCLAIM_46854,9.65,Staff Expenses Claim
DFE,Skills Funding Agency,09/11/2016,Subsistence,Central Delivery Service - European Social Fund - Audit Compliance,Agency Staff Member,SCLAIM_46889,2.49,Staff Expenses Claim
DFE,Skills Funding Agency,09/11/2016,Subsistence,Central Delivery Service - European Social Fund - Audit Compliance,Agency Staff Member,SCLAIM_46860,5.02,Staff Expenses Claim
DFE,Skills Funding Agency,09/11/2016,Subsistence,Central Delivery Service - European Social Fund - Audit Compliance,Agency Staff Member,SCLAIM_46858,52.95,Staff Expenses Claim
DFE,Skills Funding Agency,09/11/2016,Subsistence,Funding & Programmes - Executive Office,Agency Staff Member,SCLAIM_46899,18.34,Staff Expenses Claim
DFE,Skills Funding Agency,09/11/2016,Subsistence,Funding & Programmes - Provider Management & Intervention North,Agency Staff Member,SCLAIM_46859,11.95,Staff Expenses Claim
DFE,Skills Funding Agency,09/11/2016,Rail Warrants & Tickets,Large Companies Unit,Agency Staff Member,SCLAIM_46900,16.1,Staff Expenses Claim
DFE,Skills Funding Agency,09/11/2016,Rail Warrants & Tickets,Employer & Provider Services London,Agency Staff Member,SCLAIM_46855,9.6,Staff Expenses Claim
DFE,Skills Funding Agency,09/11/2016,Rail Warrants & Tickets,Employer & Provider Services London,Agency Staff Member,SCLAIM_46856,4.8,Staff Expenses Claim
DFE,Skills Funding Agency,09/11/2016,Rail Warrants & Tickets,Operations Finance - Executive Office,Agency Staff Member,SCLAIM_46868,52.6,Staff Expenses Claim
DFE,Skills Funding Agency,09/11/2016,Rail Warrants & Tickets,Operations Finance - Executive Office,Agency Staff Member,SCLAIM_46902,154.8,Staff Expenses Claim
DFE,Skills Funding Agency,09/11/2016,Self-Drive Car Hire,Employer & Provider Services North West,Agency Staff Member,SCLAIM_46891,30,Staff Expenses Claim
DFE,Skills Funding Agency,09/11/2016,Self-Drive Car Hire,Apprenticeships & Delivery Services - Apprenticeships & Employer Policy Implementation,Agency Staff Member,SCLAIM_46878,17.7,Staff Expenses Claim
DFE,Skills Funding Agency,09/11/2016,Self-Drive Car Hire,Central Delivery Service - European Social Fund - Audit Compliance,Agency Staff Member,SCLAIM_46873,59.05,Staff Expenses Claim
DFE,Skills Funding Agency,09/11/2016,Self-Drive Car Hire,Central Delivery Service - European Social Fund - Audit Compliance,Agency Staff Member,SCLAIM_46889,37,Staff Expenses Claim
DFE,Skills Funding Agency,09/11/2016,Self-Drive Car Hire,Central Delivery Service - European Social Fund - Audit Compliance,Agency Staff Member,SCLAIM_46850,23.74,Staff Expenses Claim
DFE,Skills Funding Agency,09/11/2016,Self-Drive Car Hire,Central Delivery Service - European Social Fund - Audit Compliance,Agency Staff Member,SCLAIM_46858,67,Staff Expenses Claim
DFE,Skills Funding Agency,09/11/2016,Self-Drive Car Hire,Funding & Programmes - Provider Management & Intervention North,Agency Staff Member,SCLAIM_46908,50.71,Staff Expenses Claim
DFE,Skills Funding Agency,09/11/2016,Taxis,Apprenticeships & Delivery Services - Executive Office,Agency Staff Member,SCLAIM_46912,20,Staff Expenses Claim
DFE,Skills Funding Agency,09/11/2016,Taxis,Employer & Provider Services London,Agency Staff Member,SCLAIM_46855,10,Staff Expenses Claim
DFE,Skills Funding Agency,09/11/2016,Taxis,Employer & Provider Services North West,Agency Staff Member,SCLAIM_46896,9,Staff Expenses Claim
DFE,Skills Funding Agency,09/11/2016,Taxis,Employer & Provider Services North West,Agency Staff Member,SCLAIM_46892,62.9,Staff Expenses Claim
DFE,Skills Funding Agency,09/11/2016,Taxis,National Careers & Learner Services,Agency Staff Member,SCLAIM_46890,44,Staff Expenses Claim
DFE,Skills Funding Agency,09/11/2016,Taxis,Operations Finance - Executive Office,Agency Staff Member,SCLAIM_46922,73.2,Staff Expenses Claim
DFE,Skills Funding Agency,09/11/2016,Taxis,Operations Finance - Executive Office,Agency Staff Member,SCLAIM_46904,8.8,Staff Expenses Claim
DFE,Skills Funding Agency,09/11/2016,Taxis,Central Delivery Service - Birmingham,Agency Staff Member,SCLAIM_46887,4,Staff Expenses Claim
DFE,Skills Funding Agency,09/11/2016,Taxis,Central Delivery Service - European Social Fund - Audit Compliance,Agency Staff Member,SCLAIM_46867,17.2,Staff Expenses Claim
DFE,Skills Funding Agency,09/11/2016,Taxis,Funding & Programmes - Executive Office,Agency Staff Member,SCLAIM_46899,6.2,Staff Expenses Claim
DFE,Skills Funding Agency,09/11/2016,Taxis,Data Science,Agency Staff Member,SCLAIM_46910,14,Staff Expenses Claim
DFE,Skills Funding Agency,09/11/2016,Other Travel,Apprenticeships & Delivery Services - Executive Office,Agency Staff Member,SCLAIM_46861,7.7,Staff Expenses Claim
DFE,Skills Funding Agency,09/11/2016,Other Travel,Apprenticeships & Delivery Services - Executive Office,Agency Staff Member,SCLAIM_46911,17.4,Staff Expenses Claim
DFE,Skills Funding Agency,09/11/2016,Other Travel,Apprenticeships & Delivery Services - Executive Office,Agency Staff Member,SCLAIM_46912,10.4,Staff Expenses Claim
DFE,Skills Funding Agency,09/11/2016,Other Travel,Apprenticeships & Delivery Services - Executive Office,Agency Staff Member,SCLAIM_46913,17.4,Staff Expenses Claim
DFE,Skills Funding Agency,09/11/2016,Other Travel,Apprenticeships & Delivery Services - Executive Office,Agency Staff Member,SCLAIM_46875,50.5,Staff Expenses Claim
DFE,Skills Funding Agency,09/11/2016,Other Travel,Large Companies Unit,Agency Staff Member,SCLAIM_46900,44.5,Staff Expenses Claim
DFE,Skills Funding Agency,09/11/2016,Other Travel,Employer & Provider Services London Apprenticeships Development,Agency Staff Member,SCLAIM_46882,68,Staff Expenses Claim
DFE,Skills Funding Agency,09/11/2016,Other Travel,Employer & Provider Services North East & Yorkshire,Agency Staff Member,SCLAIM_46864,18.6,Staff Expenses Claim
DFE,Skills Funding Agency,09/11/2016,Other Travel,Employer & Provider Services North East & Yorkshire,Agency Staff Member,SCLAIM_46918,23.4,Staff Expenses Claim
DFE,Skills Funding Agency,09/11/2016,Other Travel,Employer & Provider Services North West,Agency Staff Member,SCLAIM_46898,77,Staff Expenses Claim
DFE,Skills Funding Agency,09/11/2016,Other Travel,Employer & Provider Services North West,Agency Staff Member,SCLAIM_46891,90.3,Staff Expenses Claim
DFE,Skills Funding Agency,09/11/2016,Other Travel,Employer & Provider Services North West,Agency Staff Member,SCLAIM_46909,55.5,Staff Expenses Claim
DFE,Skills Funding Agency,09/11/2016,Other Travel,Apprenticeships & Delivery Services - Apprenticeships & Employer Policy Implementation,Agency Staff Member,SCLAIM_46878,17.5,Staff Expenses Claim
DFE,Skills Funding Agency,09/11/2016,Other Travel,Apprenticeships & Delivery Services - Marketing,Agency Staff Member,SCLAIM_46870,12,Staff Expenses Claim
DFE,Skills Funding Agency,09/11/2016,Other Travel,National Careers & Learner Services,Agency Staff Member,SCLAIM_46916,2,Staff Expenses Claim
DFE,Skills Funding Agency,09/11/2016,Other Travel,National Careers & Learner Services,Agency Staff Member,SCLAIM_46917,17.8,Staff Expenses Claim
DFE,Skills Funding Agency,09/11/2016,Other Travel,National Careers & Learner Services,Agency Staff Member,SCLAIM_46914,107,Staff Expenses Claim
DFE,Skills Funding Agency,09/11/2016,Other Travel,Operations Finance - Executive Office,Agency Staff Member,SCLAIM_46922,2,Staff Expenses Claim
DFE,Skills Funding Agency,09/11/2016,Other Travel,Operations Finance - Executive Office,Agency Staff Member,SCLAIM_46868,8,Staff Expenses Claim
DFE,Skills Funding Agency,09/11/2016,Other Travel,Operations Finance - Executive Office,Agency Staff Member,SCLAIM_46904,3.3,Staff Expenses Claim
DFE,Skills Funding Agency,09/11/2016,Other Travel,Central Delivery Service - Birmingham,Agency Staff Member,SCLAIM_46887,4,Staff Expenses Claim
DFE,Skills Funding Agency,09/11/2016,Other Travel,Central Delivery Service - Leeds,Agency Staff Member,SCLAIM_46880,15,Staff Expenses Claim
DFE,Skills Funding Agency,09/11/2016,Other Travel,Central Delivery Service - European Social Fund - Audit Compliance,Agency Staff Member,SCLAIM_46897,8.8,Staff Expenses Claim
DFE,Skills Funding Agency,09/11/2016,Other Travel,Central Delivery Service - European Social Fund - Audit Compliance,Agency Staff Member,SCLAIM_46863,12,Staff Expenses Claim
DFE,Skills Funding Agency,09/11/2016,Other Travel,Central Delivery Service - European Social Fund - Audit Compliance,Agency Staff Member,SCLAIM_46907,52,Staff Expenses Claim
DFE,Skills Funding Agency,09/11/2016,Other Travel,Central Delivery Service - European Social Fund - Audit Compliance,Agency Staff Member,SCLAIM_46867,18.3,Staff Expenses Claim
DFE,Skills Funding Agency,09/11/2016,Other Travel,Central Delivery Service - European Social Fund - Audit Compliance,Agency Staff Member,SCLAIM_46853,16.5,Staff Expenses Claim
DFE,Skills Funding Agency,09/11/2016,Other Travel,Central Delivery Service - European Social Fund - Audit Compliance,Agency Staff Member,SCLAIM_46889,33.4,Staff Expenses Claim
DFE,Skills Funding Agency,09/11/2016,Other Travel,Central Delivery Service - European Social Fund - Audit Compliance,Agency Staff Member,SCLAIM_46858,48.2,Staff Expenses Claim
DFE,Skills Funding Agency,09/11/2016,Other Travel,Funding & Programmes - Executive Office,Agency Staff Member,SCLAIM_46899,9.8,Staff Expenses Claim
DFE,Skills Funding Agency,09/11/2016,Other Travel,Funding & Programmes - Provider Management & Intervention South,Agency Staff Member,SCLAIM_46919,18.6,Staff Expenses Claim
DFE,Skills Funding Agency,09/11/2016,Other Travel,Funding & Programmes - Provider Management & Intervention North,Agency Staff Member,SCLAIM_46905,8.8,Staff Expenses Claim
DFE,Skills Funding Agency,09/11/2016,Other Travel,Funding & Programmes - Provider Management & Intervention North,Agency Staff Member,SCLAIM_46859,28,Staff Expenses Claim
DFE,Skills Funding Agency,09/11/2016,Other Travel,Funding & Programmes - Provider Management & Intervention North,Agency Staff Member,SCLAIM_46881,23.5,Staff Expenses Claim
DFE,Skills Funding Agency,09/11/2016,Other Travel,Funding & Programmes - Provider Management & Intervention North,Agency Staff Member,SCLAIM_46884,19.5,Staff Expenses Claim
DFE,Skills Funding Agency,09/11/2016,Other Travel,Funding & Programmes - Provider Management & Intervention North,Agency Staff Member,SCLAIM_46885,17.5,Staff Expenses Claim
DFE,Skills Funding Agency,09/11/2016,Other Travel,Funding & Programmes - Provider Management & Intervention North,Agency Staff Member,SCLAIM_46908,20,Staff Expenses Claim
DFE,Skills Funding Agency,09/11/2016,Other Travel,Intervention,Agency Staff Member,SCLAIM_46906,36.1,Staff Expenses Claim
DFE,Skills Funding Agency,09/11/2016,Other Travel,Intervention,Agency Staff Member,SCLAIM_46876,3,Staff Expenses Claim
DFE,Skills Funding Agency,09/11/2016,Postage,Central Delivery Service - European Social Fund - Audit Compliance,Agency Staff Member,SCLAIM_46863,1.28,Staff Expenses Claim
DFE,Skills Funding Agency,09/11/2016,Professional Services,Operations ICT - Technical Design Authority,SPECIALIST COMPUTER CENTRES PLC,SPINVB_33215,3744,Purchase Invoice
DFE,Skills Funding Agency,09/11/2016,Professional Services,Operations ICT - Technical Design Authority,SPECIALIST COMPUTER CENTRES PLC,SPINVB_33216,9360,Purchase Invoice
DFE,Skills Funding Agency,09/11/2016,Professional Services,Operations ICT - Technical Design Authority,SPECIALIST COMPUTER CENTRES PLC,SPINVB_33218,31465.52,Purchase Invoice
DFE,Skills Funding Agency,09/11/2016,Sundry Items,Funding & Programmes - Executive Office,Agency Staff Member,SCLAIM_46920,3,Staff Expenses Claim
DFE,Skills Funding Agency,09/11/2016,Hosting,Operations ICT - Technical Design Authority,FORDWAY SOLUTIONS LIMITED,SPINVB_33185,1080,Purchase Invoice
DFE,Skills Funding Agency,09/11/2016,Hosting,Operations ICT - Technical Design Authority,FORDWAY SOLUTIONS LIMITED,SPINVB_33186,60801.6,Purchase Invoice
DFE,Skills Funding Agency,09/11/2016,Hosting,Operations ICT - Technical Design Authority,FORDWAY SOLUTIONS LIMITED,SPINVB_33188,29718.17,Purchase Invoice
DFE,Skills Funding Agency,09/11/2016,Hosting,Operations ICT - Technical Design Authority,FORDWAY SOLUTIONS LIMITED,SPINVB_33190,7164,Purchase Invoice
DFE,Skills Funding Agency,09/11/2016,Hosting,Operations ICT - Technical Design Authority,FORDWAY SOLUTIONS LIMITED,SPINVB_33191,17280,Purchase Invoice
DFE,Skills Funding Agency,09/11/2016,Hosting,Operations ICT - Technical Design Authority,FORDWAY SOLUTIONS LIMITED,SPINVB_33193,27.6,Purchase Invoice
DFE,Skills Funding Agency,09/11/2016,Hosting,Operations ICT - Technical Design Authority,FORDWAY SOLUTIONS LIMITED,SPINVB_33194,9016.5,Purchase Invoice
DFE,Skills Funding Agency,09/11/2016,Hosting,Operations ICT - Technical Design Authority,SPECIALIST COMPUTER CENTRES PLC,SPINVB_33219,9882.48,Purchase Invoice
DFE,Skills Funding Agency,09/11/2016,Managed IT Service,Funding & Programmes - Executive Office,VALTECH LIMITED,SPINVB_31979,23940,Purchase Invoice
DFE,Skills Funding Agency,09/11/2016,Managed IT Service,Funding & Programmes - Executive Office,VALTECH LIMITED,SPINVB_32223,23940,Purchase Invoice
DFE,Skills Funding Agency,09/11/2016,Managed IT Service,Operations ICT - Information & Communication Technology - Technical,BAE SYSTEMS APPLIED INTELLIGENCE LIMITED,SPINVB_33197,14796,Purchase Invoice
DFE,Skills Funding Agency,09/11/2016,Managed IT Service,Operations ICT - Information & Communication Technology - Technical,BAE SYSTEMS APPLIED INTELLIGENCE LIMITED,SPINVB_33198,11599.2,Purchase Invoice
DFE,Skills Funding Agency,09/11/2016,Managed IT Service,Operations ICT - Technical Design Authority,BAE SYSTEMS APPLIED INTELLIGENCE LIMITED,SPINVB_33196,14796,Purchase Invoice
DFE,Skills Funding Agency,09/11/2016,Managed IT Service,Operations ICT - Technical Design Authority,BAE SYSTEMS APPLIED INTELLIGENCE LIMITED,SPINVB_33199,16440,Purchase Invoice
DFE,Skills Funding Agency,09/11/2016,Licences,Operations ICT - Service Integration & Management,ELASTICSEARCH LTD,SPINVB_33206,29066.4,Purchase Invoice
DFE,Skills Funding Agency,09/11/2016,Software Maintenance & Repair,Operations ICT - Technical Design Authority,FORDWAY SOLUTIONS LIMITED,SPINVB_33187,16858.8,Purchase Invoice
DFE,Skills Funding Agency,10/11/2016,16-18 Apprenticeships - Centralised Contract Management,Main Funding,5 E LTD,AP16R_18018,12080.19,Programme System File
DFE,Skills Funding Agency,10/11/2016,16-18 Apprenticeships - Centralised Contract Management,Main Funding,ACADEMY EDUCATION LTD,AP16R_18336,59649.13,Programme System File
DFE,Skills Funding Agency,10/11/2016,16-18 Apprenticeships - Centralised Contract Management,Main Funding,ACADEMY HAIR & BEAUTY LTD,AP16R_18878,25753.17,Programme System File
DFE,Skills Funding Agency,10/11/2016,16-18 Apprenticeships - Centralised Contract Management,Main Funding,ACACIA TRAINING LTD,AP16R_18019,15483.63,Programme System File
DFE,Skills Funding Agency,10/11/2016,16-18 Apprenticeships - Centralised Contract Management,Main Funding,ACADEMIES ENTERPRISE,AP16R_18098,1249.59,Programme System File
DFE,Skills Funding Agency,10/11/2016,16-18 Apprenticeships - Centralised Contract Management,Main Funding,ACADEMY TRANSFORMATION TRUST,AP16R_18145,2397.14,Programme System File
DFE,Skills Funding Agency,10/11/2016,16-18 Apprenticeships - Centralised Contract Management,Main Funding,ACCESS TRAINING LTD,AP16R_19028,52011.43,Programme System File
DFE,Skills Funding Agency,10/11/2016,16-18 Apprenticeships - Centralised Contract Management,Main Funding,TRN (TRAIN) LIMITED,AP16R_18129,4581.89,Programme System File
DFE,Skills Funding Agency,10/11/2016,16-18 Apprenticeships - Centralised Contract Management,Main Funding,ACHIEVEMENT TRAINING LIMITED,AP16R_18280,30483.96,Programme System File
DFE,Skills Funding Agency,10/11/2016,16-18 Apprenticeships - Centralised Contract Management,Main Funding,APPRENTICE FUNDING ASSISTANT LTD,AP16R_18055,104930.86,Programme System File
DFE,Skills Funding Agency,10/11/2016,16-18 Apprenticeships - Centralised Contract Management,Main Funding,ALDER TRAINING LTD,AP16R_18358,55288.14,Programme System File
DFE,Skills Funding Agency,10/11/2016,16-18 Apprenticeships - Centralised Contract Management,Main Funding,ALL TRADES TRAINING LIMITED,AP16R_18049,3527.07,Programme System File
DFE,Skills Funding Agency,10/11/2016,16-18 Apprenticeships - Centralised Contract Management,Main Funding,ALT VALLEY COMMUNITY TRUST LTD,AP16R_18306,4245.21,Programme System File
DFE,Skills Funding Agency,10/11/2016,16-18 Apprenticeships - Centralised Contract Management,Main Funding,ANDREW COLLINGE TRAINING LTD,AP16R_18468,65106.79,Programme System File
DFE,Skills Funding Agency,10/11/2016,16-18 Apprenticeships - Centralised Contract Management,Main Funding,ANDERSON STOCKLEY ACCREDITED TRAINING LTD,AP16R_19195,10890.16,Programme System File
DFE,Skills Funding Agency,10/11/2016,16-18 Apprenticeships - Centralised Contract Management,Main Funding,ANNE CLARKE ASSOCIATES LTD,AP16R_19155,11872.22,Programme System File
DFE,Skills Funding Agency,10/11/2016,16-18 Apprenticeships - Centralised Contract Management,Main Funding,APPRENTICESHIPS & TRAINING SERVICES CONSORTIUM LIMITED,AP16R_18089,101061.48,Programme System File
DFE,Skills Funding Agency,10/11/2016,16-18 Apprenticeships - Centralised Contract Management,Main Funding,MILLBROOK MANAGEMENT SERVICES LTD,AP16R_18723,37394.39,Programme System File
DFE,Skills Funding Agency,10/11/2016,16-18 Apprenticeships - Centralised Contract Management,Main Funding,WOODSPEEN TRAINING LTD,AP16R_18434,63259.27,Programme System File
DFE,Skills Funding Agency,10/11/2016,16-18 Apprenticeships - Centralised Contract Management,Main Funding,ASTUTE MINDS LTD,AP16R_19123,164428.55,Programme System File
DFE,Skills Funding Agency,10/11/2016,16-18 Apprenticeships - Centralised Contract Management,Main Funding,ASPIRE ACHIEVE ADVANCE LIMITED,AP16R_18070,1295605.82,Programme System File
DFE,Skills Funding Agency,10/11/2016,16-18 Apprenticeships - Centralised Contract Management,Main Funding,ASSET TRAINING & CONSULTANCY LTD,AP16R_18678,59332.57,Programme System File
DFE,Skills Funding Agency,10/11/2016,16-18 Apprenticeships - Centralised Contract Management,Main Funding,AURELIA TRAINING LTD,AP16R_18777,9682.25,Programme System File
DFE,Skills Funding Agency,10/11/2016,16-18 Apprenticeships - Centralised Contract Management,Main Funding,AVANT PARTNERSHIP LTD,AP16R_19163,24870.49,Programme System File
DFE,Skills Funding Agency,10/11/2016,16-18 Apprenticeships - Centralised Contract Management,Main Funding,AVANTA ENTERPRISE LTD,AP16R_18134,60279.86,Programme System File
DFE,Skills Funding Agency,10/11/2016,16-18 Apprenticeships - Centralised Contract Management,Main Funding,AXIA SOLUTIONS LTD,AP16R_18797,36774.01,Programme System File
DFE,Skills Funding Agency,10/11/2016,16-18 Apprenticeships - Centralised Contract Management,Main Funding,ATG TRAINING,AP16R_18490,67180.79,Programme System File
DFE,Skills Funding Agency,10/11/2016,16-18 Apprenticeships - Centralised Contract Management,Main Funding,BABINGTON BUSINESS COLLEGE LTD,AP16R_18590,297376.7,Programme System File
DFE,Skills Funding Agency,10/11/2016,16-18 Apprenticeships - Centralised Contract Management,Main Funding,BABCOCK SKILLS DEVELOPMENT & TRAINING LTD,AP16R_18126,101794.92,Programme System File
DFE,Skills Funding Agency,10/11/2016,16-18 Apprenticeships - Centralised Contract Management,Main Funding,BAE SYSTEMS PLC,AP16R_18657,347897.69,Programme System File
DFE,Skills Funding Agency,10/11/2016,16-18 Apprenticeships - Centralised Contract Management,Main Funding,BALTIC TRAINING SERVICES LTD,AP16R_19118,461895.28,Programme System File
DFE,Skills Funding Agency,10/11/2016,16-18 Apprenticeships - Centralised Contract Management,Main Funding,BARNARDOS,AP16R_18786,18608.23,Programme System File
DFE,Skills Funding Agency,10/11/2016,16-18 Apprenticeships - Centralised Contract Management,Main Funding,INDEPENDENT TRAINING SERVICES LTD,AP16R_18485,54049.8,Programme System File
DFE,Skills Funding Agency,10/11/2016,16-18 Apprenticeships - Centralised Contract Management,Main Funding,BARCHESTER HEALTHCARE LTD,AP16R_18711,8775.77,Programme System File
DFE,Skills Funding Agency,10/11/2016,16-18 Apprenticeships - Centralised Contract Management,Main Funding,BASINGSTOKE YOUTH ACTION TRUST LTD,AP16R_18941,18483.57,Programme System File
DFE,Skills Funding Agency,10/11/2016,16-18 Apprenticeships - Centralised Contract Management,Main Funding,BC ARCH LTD T/A ARCH APPRENTICES,AP16R_18173,213950.15,Programme System File
DFE,Skills Funding Agency,10/11/2016,16-18 Apprenticeships - Centralised Contract Management,Main Funding,BIRMINGHAM ELECTRICAL TRAINING LTD,AP16R_18930,50373.78,Programme System File
DFE,Skills Funding Agency,10/11/2016,16-18 Apprenticeships - Centralised Contract Management,Main Funding,BESTLAND SOLUTIONS LTD,AP16R_19112,40561.81,Programme System File
DFE,Skills Funding Agency,10/11/2016,16-18 Apprenticeships - Centralised Contract Management,Main Funding,BE TOTALLY YOU,AP16R_19121,8972.8,Programme System File
DFE,Skills Funding Agency,10/11/2016,16-18 Apprenticeships - Centralised Contract Management,Main Funding,BE WISER INSURANCE SERVICES LIMITED,AP16R_18161,11366.11,Programme System File
DFE,Skills Funding Agency,10/11/2016,16-18 Apprenticeships - Centralised Contract Management,Main Funding,BEXLEY YOUTH TRAINING GROUP,AP16R_19071,77651.39,Programme System File
DFE,Skills Funding Agency,10/11/2016,16-18 Apprenticeships - Centralised Contract Management,Main Funding,BCTG LIMITED,AP16R_18881,285984.75,Programme System File
DFE,Skills Funding Agency,10/11/2016,16-18 Apprenticeships - Centralised Contract Management,Main Funding,BL TRAINING LTD,AP16R_18512,84442.04,Programme System File
DFE,Skills Funding Agency,10/11/2016,16-18 Apprenticeships - Centralised Contract Management,Main Funding,BLUE ARROW LTD,AP16R_18178,462.49,Programme System File
DFE,Skills Funding Agency,10/11/2016,16-18 Apprenticeships - Centralised Contract Management,Main Funding,BUSINESS MANAGEMENT RESOURCES UK LTD,AP16R_18245,3586.74,Programme System File
DFE,Skills Funding Agency,10/11/2016,16-18 Apprenticeships - Centralised Contract Management,Main Funding,BRITISH NUCLEAR FUELS PLC,AP16R_19053,13805.15,Programme System File
DFE,Skills Funding Agency,10/11/2016,16-18 Apprenticeships - Centralised Contract Management,Main Funding,BOSCH AUTOMOTIVE SERVICE SOLUTIONS LTD,AP16R_18159,130332.03,Programme System File
DFE,Skills Funding Agency,10/11/2016,16-18 Apprenticeships - Centralised Contract Management,Main Funding,BOWLING COLLEGE,AP16R_19048,398.41,Programme System File
DFE,Skills Funding Agency,10/11/2016,16-18 Apprenticeships - Centralised Contract Management,Main Funding,BPP HOLDINGS PLC,AP16R_19193,235654.7,Programme System File
DFE,Skills Funding Agency,10/11/2016,16-18 Apprenticeships - Centralised Contract Management,Main Funding,BRITISH PRINTING INDUSTRIES FEDERATION LTD,AP16R_19182,37185.53,Programme System File
DFE,Skills Funding Agency,10/11/2016,16-18 Apprenticeships - Centralised Contract Management,Main Funding,BRITISH GAS SERVICES LIMITED,AP16R_19160,1755.32,Programme System File
DFE,Skills Funding Agency,10/11/2016,16-18 Apprenticeships - Centralised Contract Management,Main Funding,BRITISH TELECOM PLC,AP16R_18048,98338.34,Programme System File
DFE,Skills Funding Agency,10/11/2016,16-18 Apprenticeships - Centralised Contract Management,Main Funding,BRINSWORTH TRAINING LIMITED,AP16R_19162,57752.08,Programme System File
DFE,Skills Funding Agency,10/11/2016,16-18 Apprenticeships - Centralised Contract Management,Main Funding,THE BRITISH RACING SCHOOL,AP16R_18182,39783.94,Programme System File
DFE,Skills Funding Agency,10/11/2016,16-18 Apprenticeships - Centralised Contract Management,Main Funding,B SKILL LTD,AP16R_18546,32648.77,Programme System File
DFE,Skills Funding Agency,10/11/2016,16-18 Apprenticeships - Centralised Contract Management,Main Funding,APPRIS CHARITY LIMITED,AP16R_18141,95003.87,Programme System File
DFE,Skills Funding Agency,10/11/2016,16-18 Apprenticeships - Centralised Contract Management,Main Funding,CABLECOM TRAINING LTD,AP16R_18249,7037.22,Programme System File
DFE,Skills Funding Agency,10/11/2016,16-18 Apprenticeships - Centralised Contract Management,Main Funding,CAPITA PLC,AP16R_18239,121653.12,Programme System File
DFE,Skills Funding Agency,10/11/2016,16-18 Apprenticeships - Centralised Contract Management,Main Funding,CAPITAL ENGINEERING GROUP HOLDINGS LTD,AP16R_19154,35622.41,Programme System File
DFE,Skills Funding Agency,10/11/2016,16-18 Apprenticeships - Centralised Contract Management,Main Funding,CARE UK COMMUNITY PARTNERSHIPS LTD,AP16R_18179,4494.47,Programme System File
DFE,Skills Funding Agency,10/11/2016,16-18 Apprenticeships - Centralised Contract Management,Main Funding,CARILLION CONSTRUCTION LTD,AP16R_18246,336535.74,Programme System File
DFE,Skills Funding Agency,10/11/2016,16-18 Apprenticeships - Centralised Contract Management,Main Funding,CARE TRAINING EAST MIDLANDS LIMITED,AP16R_18244,45707.86,Programme System File
DFE,Skills Funding Agency,10/11/2016,16-18 Apprenticeships - Centralised Contract Management,Main Funding,CATCH 22 CHARITY LTD,AP16R_18037,104664.05,Programme System File
DFE,Skills Funding Agency,10/11/2016,16-18 Apprenticeships - Centralised Contract Management,Main Funding,CENTRAL TRAINING ACADEMY LTD,AP16R_18263,212644.28,Programme System File
DFE,Skills Funding Agency,10/11/2016,16-18 Apprenticeships - Centralised Contract Management,Main Funding,ACACIA TRAINING & DEVELOPMENT LTD,AP16R_18874,44539.61,Programme System File
DFE,Skills Funding Agency,10/11/2016,16-18 Apprenticeships - Centralised Contract Management,Main Funding,CHAMBER TRAINING HUMBER LTD,AP16R_18272,39549.65,Programme System File
DFE,Skills Funding Agency,10/11/2016,16-18 Apprenticeships - Centralised Contract Management,Main Funding,CHAPMAN BENNETT ASSOCIATES LIMITED,AP16R_18023,13905.04,Programme System File
DFE,Skills Funding Agency,10/11/2016,16-18 Apprenticeships - Centralised Contract Management,Main Funding,CHEYNES MANAGEMENT LTD,AP16R_19021,169019.82,Programme System File
DFE,Skills Funding Agency,10/11/2016,16-18 Apprenticeships - Centralised Contract Management,Main Funding,CHILTERN TRAINING LTD,AP16R_18259,78894.87,Programme System File
DFE,Skills Funding Agency,10/11/2016,16-18 Apprenticeships - Centralised Contract Management,Main Funding,CHILDRENS LINKS,AP16R_18255,21259.98,Programme System File
DFE,Skills Funding Agency,10/11/2016,16-18 Apprenticeships - Centralised Contract Management,Main Funding,CITB CONSTRUCTIONSKILLS,AP16R_18261,2679148.82,Programme System File
DFE,Skills Funding Agency,10/11/2016,16-18 Apprenticeships - Centralised Contract Management,Main Funding,CITROEN UK LTD,AP16R_19114,66554.57,Programme System File
DFE,Skills Funding Agency,10/11/2016,16-18 Apprenticeships - Centralised Contract Management,Main Funding,CITY GATEWAY LTD,AP16R_19128,12332.41,Programme System File
DFE,Skills Funding Agency,10/11/2016,16-18 Apprenticeships - Centralised Contract Management,Main Funding,CLARKSON EVANS TRAINING LIMITED,AP16R_18035,20034.03,Programme System File
DFE,Skills Funding Agency,10/11/2016,16-18 Apprenticeships - Centralised Contract Management,Main Funding,ALLIANCE LEARNING LTD,AP16R_18401,95645.3,Programme System File
DFE,Skills Funding Agency,10/11/2016,16-18 Apprenticeships - Centralised Contract Management,Main Funding,CLEVELAND YOUTH ASSOCIATION,AP16R_18780,21750.22,Programme System File
DFE,Skills Funding Agency,10/11/2016,16-18 Apprenticeships - Centralised Contract Management,Main Funding,COLLEGE OF ANIMAL WELFARE LTD,AP16R_18295,24812.1,Programme System File
DFE,Skills Funding Agency,10/11/2016,16-18 Apprenticeships - Centralised Contract Management,Main Funding,CARE LEARNING CENTRE ISLE OF WIGHT LTD,AP16R_18885,4544.65,Programme System File
DFE,Skills Funding Agency,10/11/2016,16-18 Apprenticeships - Centralised Contract Management,Main Funding,COMMUNITY TRAINING SERVICES LTD,AP16R_18284,10112.27,Programme System File
DFE,Skills Funding Agency,10/11/2016,16-18 Apprenticeships - Centralised Contract Management,Main Funding,COMPASS GROUP UK & IRELAND LTD,AP16R_19197,5643.41,Programme System File
DFE,Skills Funding Agency,10/11/2016,16-18 Apprenticeships - Centralised Contract Management,Main Funding,CONSORTIA TRAINING LIMITED,AP16R_18087,69965.81,Programme System File
DFE,Skills Funding Agency,10/11/2016,16-18 Apprenticeships - Centralised Contract Management,Main Funding,COVET LTD,AP16R_18091,36210.25,Programme System File
DFE,Skills Funding Agency,10/11/2016,16-18 Apprenticeships - Centralised Contract Management,Main Funding,CRACKERJACK TRAINING LTD,AP16R_18298,57757.72,Programme System File
DFE,Skills Funding Agency,10/11/2016,16-18 Apprenticeships - Centralised Contract Management,Main Funding,LOOKFANTASTIC TRAINING LIMITED,AP16R_18209,42389.97,Programme System File
DFE,Skills Funding Agency,10/11/2016,16-18 Apprenticeships - Centralised Contract Management,Main Funding,CREATIVE PROCESS,AP16R_19192,39668.51,Programme System File
DFE,Skills Funding Agency,10/11/2016,16-18 Apprenticeships - Centralised Contract Management,Main Funding,CSM CONSULTING LTD,AP16R_18312,62467.74,Programme System File
DFE,Skills Funding Agency,10/11/2016,16-18 Apprenticeships - Centralised Contract Management,Main Funding,COVENTRY & WARWICKSHIRE CHAMBERS OF COMMERCE TRAINING LIMITED,AP16R_18267,84418.31,Programme System File
DFE,Skills Funding Agency,10/11/2016,16-18 Apprenticeships - Centralised Contract Management,Main Funding,DAMAR LTD,AP16R_18322,234272.21,Programme System File
DFE,Skills Funding Agency,10/11/2016,16-18 Apprenticeships - Centralised Contract Management,Main Funding,DART LTD,AP16R_18319,49838.83,Programme System File
DFE,Skills Funding Agency,10/11/2016,16-18 Apprenticeships - Centralised Contract Management,Main Funding,DAVIDSON TRAINING UK LIMITED,AP16R_18332,14455.37,Programme System File
DFE,Skills Funding Agency,10/11/2016,16-18 Apprenticeships - Centralised Contract Management,Main Funding,DAWN HODGE ASSOCIATES LTD,AP16R_19153,16475.41,Programme System File
DFE,Skills Funding Agency,10/11/2016,16-18 Apprenticeships - Centralised Contract Management,Main Funding,MINISTRY OF DEFENCE,AP16R_19074,2470.24,Programme System File
DFE,Skills Funding Agency,10/11/2016,16-18 Apprenticeships - Centralised Contract Management,Main Funding,DERBY BUSINESS COLLEGE,AP16R_18699,9096.09,Programme System File
DFE,Skills Funding Agency,10/11/2016,16-18 Apprenticeships - Centralised Contract Management,Main Funding,DHL INTERNATIONAL UK LTD,AP16C_4147,-11815.3,Programme System File
DFE,Skills Funding Agency,10/11/2016,16-18 Apprenticeships - Centralised Contract Management,Main Funding,DHL INTERNATIONAL UK LTD,AP16R_18021,11856.65,Programme System File
DFE,Skills Funding Agency,10/11/2016,16-18 Apprenticeships - Centralised Contract Management,Main Funding,DIDAC LTD,AP16R_18333,16724.08,Programme System File
DFE,Skills Funding Agency,10/11/2016,16-18 Apprenticeships - Centralised Contract Management,Main Funding,DIMENSIONS TRAINING SOLUTIONS LTD,AP16R_18334,15987.02,Programme System File
DFE,Skills Funding Agency,10/11/2016,16-18 Apprenticeships - Centralised Contract Management,Main Funding,D MANTLE LIMITED,AP16R_18068,13449.47,Programme System File
DFE,Skills Funding Agency,10/11/2016,16-18 Apprenticeships - Centralised Contract Management,Main Funding,DONCASTER ROTHERHAM & DISTRICT MOTOR TRADES GROUP TRAINING ASSOCIATION LTD,AP16R_18343,42853.29,Programme System File
DFE,Skills Funding Agency,10/11/2016,16-18 Apprenticeships - Centralised Contract Management,Main Funding,EAST LINDSEY INFORMATION TECHNOLOGY CENTRE,AP16R_18380,44690.6,Programme System File
DFE,Skills Funding Agency,10/11/2016,16-18 Apprenticeships - Centralised Contract Management,Main Funding,EDEN TRAINING SOLUTIONS LTD,AP16R_18053,41441.47,Programme System File
DFE,Skills Funding Agency,10/11/2016,16-18 Apprenticeships - Centralised Contract Management,Main Funding,EEF LTD,AP16R_18033,152970.98,Programme System File
DFE,Skills Funding Agency,10/11/2016,16-18 Apprenticeships - Centralised Contract Management,Main Funding,ECONOMIC SOLUTIONS LTD,AP16R_18566,571550.3,Programme System File
DFE,Skills Funding Agency,10/11/2016,16-18 Apprenticeships - Centralised Contract Management,Main Funding,ENGLAND & WALES CRICKET BOARD LTD,AP16R_19098,16230.37,Programme System File
DFE,Skills Funding Agency,10/11/2016,16-18 Apprenticeships - Centralised Contract Management,Main Funding,SOCIAL ENTERPRISE KENT CIC,AP16R_18060,25086.22,Programme System File
DFE,Skills Funding Agency,10/11/2016,16-18 Apprenticeships - Centralised Contract Management,Main Funding,EON UK PLC,AP16R_19189,6525.49,Programme System File
DFE,Skills Funding Agency,10/11/2016,16-18 Apprenticeships - Centralised Contract Management,Main Funding,EQL SOLUTIONS LTD,AP16R_18150,196563.67,Programme System File
DFE,Skills Funding Agency,10/11/2016,16-18 Apprenticeships - Centralised Contract Management,Main Funding,ESG (SKILLS) LIMITED,AP16R_18105,387808.79,Programme System File
DFE,Skills Funding Agency,10/11/2016,16-18 Apprenticeships - Centralised Contract Management,Main Funding,E TRAINING LTD,AP16R_18353,6909.43,Programme System File
DFE,Skills Funding Agency,10/11/2016,16-18 Apprenticeships - Centralised Contract Management,Main Funding,EDUCATION & TRAINING SKILLS LTD,AP16R_18354,23336.13,Programme System File
DFE,Skills Funding Agency,10/11/2016,16-18 Apprenticeships - Centralised Contract Management,Main Funding,EXPEDIENT TRAINING SERVICES LTD,AP16R_18224,1748.98,Programme System File
DFE,Skills Funding Agency,10/11/2016,16-18 Apprenticeships - Centralised Contract Management,Main Funding,FOOTBALL ASSOCIATION PREMIER LEAGUE LTD,AP16R_18364,131086.08,Programme System File
DFE,Skills Funding Agency,10/11/2016,16-18 Apprenticeships - Centralised Contract Management,Main Funding,FAREPORT TRAINING ORGANISATION LTD,AP16R_18373,54248.04,Programme System File
DFE,Skills Funding Agency,10/11/2016,16-18 Apprenticeships - Centralised Contract Management,Main Funding,FNTC TRAINING & CONSULTANCY LTD,AP16R_18376,38124.12,Programme System File
DFE,Skills Funding Agency,10/11/2016,16-18 Apprenticeships - Centralised Contract Management,Main Funding,FINNING (UK) LTD,AP16R_15944,-21331.57,Programme System File
DFE,Skills Funding Agency,10/11/2016,16-18 Apprenticeships - Centralised Contract Management,Main Funding,FINNING (UK) LTD,AP16R_18378,35705.1,Programme System File
DFE,Skills Funding Agency,10/11/2016,16-18 Apprenticeships - Centralised Contract Management,Main Funding,FINMECCANICA UK LTD,AP16R_19137,43466.12,Programme System File
DFE,Skills Funding Agency,10/11/2016,16-18 Apprenticeships - Centralised Contract Management,Main Funding,FIRST CITY TRAINING LTD,AP16R_19054,2896.19,Programme System File
DFE,Skills Funding Agency,10/11/2016,16-18 Apprenticeships - Centralised Contract Management,Main Funding,FOCUS TRAINING & DEVELOPMENT LTD,AP16R_19047,6064.68,Programme System File
DFE,Skills Funding Agency,10/11/2016,16-18 Apprenticeships - Centralised Contract Management,Main Funding,FOCUS TRAINING (SW) LTD,AP16R_18044,42776.19,Programme System File
DFE,Skills Funding Agency,10/11/2016,16-18 Apprenticeships - Centralised Contract Management,Main Funding,FRANCESCO GROUP HOLDINGS LTD,AP16R_18367,51432.63,Programme System File
DFE,Skills Funding Agency,10/11/2016,16-18 Apprenticeships - Centralised Contract Management,Main Funding,KAPLAN FINANCIAL LIMITED,AP16R_18721,302527.77,Programme System File
DFE,Skills Funding Agency,10/11/2016,16-18 Apprenticeships - Centralised Contract Management,Main Funding,G B TRAINING UK LTD,AP16R_18385,23435.27,Programme System File
DFE,Skills Funding Agency,10/11/2016,16-18 Apprenticeships - Centralised Contract Management,Main Funding,FIRST4SKILLS LIMITED,AP16R_18138,448692.65,Programme System File
DFE,Skills Funding Agency,10/11/2016,16-18 Apprenticeships - Centralised Contract Management,Main Funding,GEN II ENGINEERING & TECHNOLOGY TRAINING LTD,AP16R_18394,321333.6,Programme System File
DFE,Skills Funding Agency,10/11/2016,16-18 Apprenticeships - Centralised Contract Management,Main Funding,GHQ TRAINING LTD,AP16R_19086,32637.28,Programme System File
DFE,Skills Funding Agency,10/11/2016,16-18 Apprenticeships - Centralised Contract Management,Main Funding,GI GROUP RECRUITMENT LTD,AP16R_18147,13308.68,Programme System File
DFE,Skills Funding Agency,10/11/2016,16-18 Apprenticeships - Centralised Contract Management,Main Funding,JOBWISE TRAINING LTD,AP16R_18495,43161.14,Programme System File
DFE,Skills Funding Agency,10/11/2016,16-18 Apprenticeships - Centralised Contract Management,Main Funding,GLOUCESTERSHIRE ENGINEERING TRAINING LTD,AP16R_18386,76741.2,Programme System File
DFE,Skills Funding Agency,10/11/2016,16-18 Apprenticeships - Centralised Contract Management,Main Funding,TRAINING PLUS (MERSEYSIDE) LTD,AP16R_18912,52700.13,Programme System File
DFE,Skills Funding Agency,10/11/2016,16-18 Apprenticeships - Centralised Contract Management,Main Funding,GORDON FRANKS TRAINING LIMITED,AP16R_18162,19582.02,Programme System File
DFE,Skills Funding Agency,10/11/2016,16-18 Apprenticeships - Centralised Contract Management,Main Funding,GP STRATEGIES TRAINING LTD,AP16R_18116,200124.19,Programme System File
DFE,Skills Funding Agency,10/11/2016,16-18 Apprenticeships - Centralised Contract Management,Main Funding,GREENBANK SERVICES LTD,AP16R_18040,540.12,Programme System File
DFE,Skills Funding Agency,10/11/2016,16-18 Apprenticeships - Centralised Contract Management,Main Funding,GREENWICH LEISURE LTD,AP16R_18186,10042.21,Programme System File
DFE,Skills Funding Agency,10/11/2016,16-18 Apprenticeships - Centralised Contract Management,Main Funding,GR & MM BLACKLEDGE PLC,AP16R_19094,7032.48,Programme System File
DFE,Skills Funding Agency,10/11/2016,16-18 Apprenticeships - Centralised Contract Management,Main Funding,HADDON TRAINING LTD,AP16R_18398,176162.09,Programme System File
DFE,Skills Funding Agency,10/11/2016,16-18 Apprenticeships - Centralised Contract Management,Main Funding,HAIR & BEAUTY INDUSTRY TRAINING LTD,AP16R_18205,33597.89,Programme System File
DFE,Skills Funding Agency,10/11/2016,16-18 Apprenticeships - Centralised Contract Management,Main Funding,HALFORDS LTD,AP16R_18169,29597.37,Programme System File
DFE,Skills Funding Agency,10/11/2016,16-18 Apprenticeships - Centralised Contract Management,Main Funding,HAWK MANAGEMENT UK LTD,AP16R_19044,178056.38,Programme System File
DFE,Skills Funding Agency,10/11/2016,16-18 Apprenticeships - Centralised Contract Management,Main Funding,HAYS TRAVEL LIMITED,AP16R_18051,94520.16,Programme System File
DFE,Skills Funding Agency,10/11/2016,16-18 Apprenticeships - Centralised Contract Management,Main Funding,HEADMASTERS PARTNERSHIP LTD,AP16R_19034,67783.98,Programme System File
DFE,Skills Funding Agency,10/11/2016,16-18 Apprenticeships - Centralised Contract Management,Main Funding,HEART OF ENGLAND TRAINING LTD,AP16R_18424,166918.32,Programme System File
DFE,Skills Funding Agency,10/11/2016,16-18 Apprenticeships - Centralised Contract Management,Main Funding,HEATHERCROFT TRAINING SERVICES LTD,AP16R_18426,39042.93,Programme System File
DFE,Skills Funding Agency,10/11/2016,16-18 Apprenticeships - Centralised Contract Management,Main Funding,HEALTH & SAFETY TRAINING LTD,AP16R_19146,766.1,Programme System File
DFE,Skills Funding Agency,10/11/2016,16-18 Apprenticeships - Centralised Contract Management,Main Funding,HEALTH EDUCATION NORTH EAST,AP16R_18140,72585.72,Programme System File
DFE,Skills Funding Agency,10/11/2016,16-18 Apprenticeships - Centralised Contract Management,Main Funding,HEREFORDSHIRE GROUP TRAINING ASSOCIATION LTD,AP16R_18436,92320.94,Programme System File
DFE,Skills Funding Agency,10/11/2016,16-18 Apprenticeships - Centralised Contract Management,Main Funding,HILLINGDON TRAINING LTD,AP16R_18445,47857.14,Programme System File
DFE,Skills Funding Agency,10/11/2016,16-18 Apprenticeships - Centralised Contract Management,Main Funding,HIT TRAINING LTD,AP16R_19090,243805.68,Programme System File
DFE,Skills Funding Agency,10/11/2016,16-18 Apprenticeships - Centralised Contract Management,Main Funding,HOB SALON LIMITED,AP16R_18158,42657.84,Programme System File
DFE,Skills Funding Agency,10/11/2016,16-18 Apprenticeships - Centralised Contract Management,Main Funding,HOLTS ACADEMY OF JEWELLERY LIMITED,AP16R_18135,2134.72,Programme System File
DFE,Skills Funding Agency,10/11/2016,16-18 Apprenticeships - Centralised Contract Management,Main Funding,HONDA MOTOR EUROPE LTD,AP16R_19081,39240.22,Programme System File
DFE,Skills Funding Agency,10/11/2016,16-18 Apprenticeships - Centralised Contract Management,Main Funding,HOOPLE LTD,AP16R_18124,15746.64,Programme System File
DFE,Skills Funding Agency,10/11/2016,16-18 Apprenticeships - Centralised Contract Management,Main Funding,BABCOCK TRAINING LTD,AP16R_18440,759462.13,Programme System File
DFE,Skills Funding Agency,10/11/2016,16-18 Apprenticeships - Centralised Contract Management,Main Funding,HOSPITALITY TRAINING PARTNERSHIP IOW LTD,AP16R_18443,85592.78,Programme System File
DFE,Skills Funding Agency,10/11/2016,16-18 Apprenticeships - Centralised Contract Management,Main Funding,HOUSE OF CLIVE HAIR & BEAUTY LTD,AP16R_18753,185347.3,Programme System File
DFE,Skills Funding Agency,10/11/2016,16-18 Apprenticeships - Centralised Contract Management,Main Funding,RIVERSIDE TRAINING LTD,AP16R_18747,20369.56,Programme System File
DFE,Skills Funding Agency,10/11/2016,16-18 Apprenticeships - Centralised Contract Management,Main Funding,BRITISH ARMY,AP16R_18099,790598.38,Programme System File
DFE,Skills Funding Agency,10/11/2016,16-18 Apprenticeships - Centralised Contract Management,Main Funding,HSBC BANK PLC,AP16R_19080,30800.99,Programme System File
DFE,Skills Funding Agency,10/11/2016,16-18 Apprenticeships - Centralised Contract Management,Main Funding,HUDDERSFIELD TEXTILE TRAINING LTD,AP16R_18451,30239.62,Programme System File
DFE,Skills Funding Agency,10/11/2016,16-18 Apprenticeships - Centralised Contract Management,Main Funding,HUDSON & HUGHES TRAINING LTD,AP16R_18455,7429.73,Programme System File
DFE,Skills Funding Agency,10/11/2016,16-18 Apprenticeships - Centralised Contract Management,Main Funding,HULL BUSINESS TRAINING CENTRE LTD,AP16R_18462,41935.82,Programme System File
DFE,Skills Funding Agency,10/11/2016,16-18 Apprenticeships - Centralised Contract Management,Main Funding,HUMBERSIDE ENGINEERING TRAINING ASSOCIATION LTD,AP16R_18453,148616.33,Programme System File
DFE,Skills Funding Agency,10/11/2016,16-18 Apprenticeships - Centralised Contract Management,Main Funding,HUMBER LEARNING CONSORTIUM,AP16R_18459,21849,Programme System File
DFE,Skills Funding Agency,10/11/2016,16-18 Apprenticeships - Centralised Contract Management,Main Funding,INTEC BUSINESS COLLEGES PLC,AP16R_18465,60828.62,Programme System File
DFE,Skills Funding Agency,10/11/2016,16-18 Apprenticeships - Centralised Contract Management,Main Funding,ICON VOCATIONAL TRAINING LTD,AP16R_18469,53854.56,Programme System File
DFE,Skills Funding Agency,10/11/2016,16-18 Apprenticeships - Centralised Contract Management,Main Funding,IMPACT LEARNING & DATA SOLUTIONS LTD,AP16R_19168,3113.01,Programme System File
DFE,Skills Funding Agency,10/11/2016,16-18 Apprenticeships - Centralised Contract Management,Main Funding,IN-COMM TRAINING AND BUSINESS SERVICES LTD,AP16R_18481,51262.52,Programme System File
DFE,Skills Funding Agency,10/11/2016,16-18 Apprenticeships - Centralised Contract Management,Main Funding,INSPIRE TO INDEPENDENCE (i2i) LTD,AP16R_19072,6262.38,Programme System File
DFE,Skills Funding Agency,10/11/2016,16-18 Apprenticeships - Centralised Contract Management,Main Funding,INTER TRAINING SERVICES LTD,AP16R_18472,25307.69,Programme System File
DFE,Skills Funding Agency,10/11/2016,16-18 Apprenticeships - Centralised Contract Management,Main Funding,INTUITIONS LTD,AP16R_18477,50078.28,Programme System File
DFE,Skills Funding Agency,10/11/2016,16-18 Apprenticeships - Centralised Contract Management,Main Funding,INTERACTIVE DEVELOPMENT EDUCATION LTD,AP16R_19096,7802.42,Programme System File
DFE,Skills Funding Agency,10/11/2016,16-18 Apprenticeships - Centralised Contract Management,Main Funding,INTROTRAIN (ACE) LTD,AP16R_18112,84302.25,Programme System File
DFE,Skills Funding Agency,10/11/2016,16-18 Apprenticeships - Centralised Contract Management,Main Funding,SMART TRAINING & RECRUITMENT LTD,AP16R_18782,64494.65,Programme System File
DFE,Skills Funding Agency,10/11/2016,16-18 Apprenticeships - Centralised Contract Management,Main Funding,IPS INTERNATIONAL LTD,AP16R_18482,97726.75,Programme System File
DFE,Skills Funding Agency,10/11/2016,16-18 Apprenticeships - Centralised Contract Management,Main Funding,ISIS TRAINING SERVICES LTD,AP16R_18487,84345.81,Programme System File
DFE,Skills Funding Agency,10/11/2016,16-18 Apprenticeships - Centralised Contract Management,Main Funding,ITEC NORTH EAST LTD,AP16R_18491,37988.46,Programme System File
DFE,Skills Funding Agency,10/11/2016,16-18 Apprenticeships - Centralised Contract Management,Main Funding,ITS TRAINING LIMITED,AP16R_18121,19323.69,Programme System File
DFE,Skills Funding Agency,10/11/2016,16-18 Apprenticeships - Centralised Contract Management,Main Funding,IXION GROUP CONTRACTS LTD,AP16R_18109,82277.13,Programme System File
DFE,Skills Funding Agency,10/11/2016,16-18 Apprenticeships - Centralised Contract Management,Main Funding,JANCETT CHILDCARE & JACE TRAINING LIMITED,AP16R_18148,46273.39,Programme System File
DFE,Skills Funding Agency,10/11/2016,16-18 Apprenticeships - Centralised Contract Management,Main Funding,JARVIS TRAINING MANAGEMENT LTD,AP16R_18493,98516.26,Programme System File
DFE,Skills Funding Agency,10/11/2016,16-18 Apprenticeships - Centralised Contract Management,Main Funding,JBC COMPUTER TRAINING LIMITED,AP16R_19125,2183.48,Programme System File
DFE,Skills Funding Agency,10/11/2016,16-18 Apprenticeships - Centralised Contract Management,Main Funding,THE JCB ACADEMY TRUST,AP16R_18069,101038.99,Programme System File
DFE,Skills Funding Agency,10/11/2016,16-18 Apprenticeships - Centralised Contract Management,Main Funding,JGA LTD,AP16R_18866,51431.11,Programme System File
DFE,Skills Funding Agency,10/11/2016,16-18 Apprenticeships - Centralised Contract Management,Main Funding,JOINT LEARNING PARTNERSHIP LTD,AP16R_18505,30753.77,Programme System File
DFE,Skills Funding Agency,10/11/2016,16-18 Apprenticeships - Centralised Contract Management,Main Funding,JTL,AP16R_18509,1162753.4,Programme System File
DFE,Skills Funding Agency,10/11/2016,16-18 Apprenticeships - Centralised Contract Management,Main Funding,K & G HAIR LLP,AP16R_18094,28430.66,Programme System File
DFE,Skills Funding Agency,10/11/2016,16-18 Apprenticeships - Centralised Contract Management,Main Funding,ASPIRATION TRAINING LTD,AP16R_18634,72043.69,Programme System File
DFE,Skills Funding Agency,10/11/2016,16-18 Apprenticeships - Centralised Contract Management,Main Funding,KEITS TRAINING SERVICES LTD,AP16R_18502,272851.96,Programme System File
DFE,Skills Funding Agency,10/11/2016,16-18 Apprenticeships - Centralised Contract Management,Main Funding,KENTUCKY FRIED CHICKEN GREAT BRITAIN LTD,AP16R_18079,22195.63,Programme System File
DFE,Skills Funding Agency,10/11/2016,16-18 Apprenticeships - Centralised Contract Management,Main Funding,KEY TRAINING LTD,AP16R_18506,284207.48,Programme System File
DFE,Skills Funding Agency,10/11/2016,16-18 Apprenticeships - Centralised Contract Management,Main Funding,BRIGHT HORIZONS FAMILY SOLUTIONS LTD,AP16R_18508,14161.35,Programme System File
DFE,Skills Funding Agency,10/11/2016,16-18 Apprenticeships - Centralised Contract Management,Main Funding,KIRKDALE INDUSTRIAL TRAINING SERVICES LTD,AP16R_18525,85698.19,Programme System File
DFE,Skills Funding Agency,10/11/2016,16-18 Apprenticeships - Centralised Contract Management,Main Funding,KWIK FIT GB LTD,AP16R_18526,83375.29,Programme System File
DFE,Skills Funding Agency,10/11/2016,16-18 Apprenticeships - Centralised Contract Management,Main Funding,MARITIME & ENGINEERING COLLEGE NORTH WEST,AP16R_18537,61169.13,Programme System File
DFE,Skills Funding Agency,10/11/2016,16-18 Apprenticeships - Centralised Contract Management,Main Funding,JOHN LAING TRAINING LTD,AP16R_18230,24242.15,Programme System File
DFE,Skills Funding Agency,10/11/2016,16-18 Apprenticeships - Centralised Contract Management,Main Funding,LANCASTER TRAINING SERVICES LTD,AP16R_18527,26648.85,Programme System File
DFE,Skills Funding Agency,10/11/2016,16-18 Apprenticeships - Centralised Contract Management,Main Funding,JAGUAR LAND ROVER HOLDINGS LTD,AP16R_19046,104565.2,Programme System File
DFE,Skills Funding Agency,10/11/2016,16-18 Apprenticeships - Centralised Contract Management,Main Funding,LAWN TENNIS ASSOCIATION LTD,AP16R_19170,71354.34,Programme System File
DFE,Skills Funding Agency,10/11/2016,16-18 Apprenticeships - Centralised Contract Management,Main Funding,LEARNING CURVE JAA LIMITED,AP16R_19025,109341.4,Programme System File
DFE,Skills Funding Agency,10/11/2016,16-18 Apprenticeships - Centralised Contract Management,Main Funding,LEARNING PARTNERSHIP FOR CORNWALL AND THE ISLES OF SCILLY LIMITED,AP16R_18869,23288.65,Programme System File
DFE,Skills Funding Agency,10/11/2016,16-18 Apprenticeships - Centralised Contract Management,Main Funding,LESLIE FRANCES HAIR FASHIONS LTD,AP16R_18549,28858.57,Programme System File
DFE,Skills Funding Agency,10/11/2016,16-18 Apprenticeships - Centralised Contract Management,Main Funding,LIFETIME TRAINING GROUP LTD,AP16R_18227,856521.51,Programme System File
DFE,Skills Funding Agency,10/11/2016,16-18 Apprenticeships - Centralised Contract Management,Main Funding,LIFESKILLS SOLUTIONS LTD,AP16R_18556,46640.44,Programme System File
DFE,Skills Funding Agency,10/11/2016,16-18 Apprenticeships - Centralised Contract Management,Main Funding,LIGA (UK) LTD,AP16R_18111,38727.89,Programme System File
DFE,Skills Funding Agency,10/11/2016,16-18 Apprenticeships - Centralised Contract Management,Main Funding,LAGAT LTD,AP16R_18532,31501.1,Programme System File
DFE,Skills Funding Agency,10/11/2016,16-18 Apprenticeships - Centralised Contract Management,Main Funding,LITS LTD,AP16R_18530,5218.54,Programme System File
DFE,Skills Funding Agency,10/11/2016,16-18 Apprenticeships - Centralised Contract Management,Main Funding,LITE STOCKPORT LTD,AP16R_19032,17993.19,Programme System File
DFE,Skills Funding Agency,10/11/2016,16-18 Apprenticeships - Centralised Contract Management,Main Funding,LIVERPOOL CHAMBER TRAINING LTD,AP16R_18057,43839.36,Programme System File
DFE,Skills Funding Agency,10/11/2016,16-18 Apprenticeships - Centralised Contract Management,Main Funding,LOCOMOTIVATION LTD,AP16R_18554,18421.7,Programme System File
DFE,Skills Funding Agency,10/11/2016,16-18 Apprenticeships - Centralised Contract Management,Main Funding,LONDON VESTA COLLEGE LIMITED,AP16R_19199,9751.26,Programme System File
DFE,Skills Funding Agency,10/11/2016,16-18 Apprenticeships - Centralised Contract Management,Main Funding,LONDON SKILLS & DEVELOPMENT NETWORK LIMITED,AP16R_19158,2835.46,Programme System File
DFE,Skills Funding Agency,10/11/2016,16-18 Apprenticeships - Centralised Contract Management,Main Funding,LEARNING SKILLS PARTNERSHIP LIMITED,AP16R_18093,76950.09,Programme System File
DFE,Skills Funding Agency,10/11/2016,16-18 Apprenticeships - Centralised Contract Management,Main Funding,LUNN POLY LTD,AP16R_18576,15734.6,Programme System File
DFE,Skills Funding Agency,10/11/2016,16-18 Apprenticeships - Centralised Contract Management,Main Funding,MAINSTREAM TRAINING LTD,AP16R_19043,10336.43,Programme System File
DFE,Skills Funding Agency,10/11/2016,16-18 Apprenticeships - Centralised Contract Management,Main Funding,MANTRA LEARNING LTD,AP16R_18574,38794.39,Programme System File
DFE,Skills Funding Agency,10/11/2016,16-18 Apprenticeships - Centralised Contract Management,Main Funding,MARDELL ASSOCIATES LTD,AP16R_18801,96377.43,Programme System File
DFE,Skills Funding Agency,10/11/2016,16-18 Apprenticeships - Centralised Contract Management,Main Funding,MARR CORPORTATION LIMITED,AP16R_19187,74832.75,Programme System File
DFE,Skills Funding Agency,10/11/2016,16-18 Apprenticeships - Centralised Contract Management,Main Funding,MATRIX TRAINING & DEVELOPMENT LTD,AP16R_18577,14007.04,Programme System File
DFE,Skills Funding Agency,10/11/2016,16-18 Apprenticeships - Centralised Contract Management,Main Funding,MCARTHUR DEAN TRAINING LTD,AP16R_18581,55209.43,Programme System File
DFE,Skills Funding Agency,10/11/2016,16-18 Apprenticeships - Centralised Contract Management,Main Funding,MEADOWHALL TRAINING LIMITED,AP16R_19064,62737.17,Programme System File
DFE,Skills Funding Agency,10/11/2016,16-18 Apprenticeships - Centralised Contract Management,Main Funding,MERCIA PARTNERSHIP UK LTD,AP16R_18585,14471.81,Programme System File
DFE,Skills Funding Agency,10/11/2016,16-18 Apprenticeships - Centralised Contract Management,Main Funding,MERCEDES-BENZ UK LTD,AP16R_19176,230049.95,Programme System File
DFE,Skills Funding Agency,10/11/2016,16-18 Apprenticeships - Centralised Contract Management,Main Funding,MICHAEL JOHN OF LIVERPOOL,AP16R_19102,43871.23,Programme System File
DFE,Skills Funding Agency,10/11/2016,16-18 Apprenticeships - Centralised Contract Management,Main Funding,MICHAELJOHN TRAINING,AP16R_19104,47575.33,Programme System File
DFE,Skills Funding Agency,10/11/2016,16-18 Apprenticeships - Centralised Contract Management,Main Funding,MI COMPUTSOLUTIONS INCORPORATED,AP16R_19109,5403.37,Programme System File
DFE,Skills Funding Agency,10/11/2016,16-18 Apprenticeships - Centralised Contract Management,Main Funding,MIDLAND GROUP TRAINING SERVICES LTD,AP16R_18602,93480.09,Programme System File
DFE,Skills Funding Agency,10/11/2016,16-18 Apprenticeships - Centralised Contract Management,Main Funding,DOOSAN BABCOCK LTD,AP16R_18592,56427.07,Programme System File
DFE,Skills Funding Agency,10/11/2016,16-18 Apprenticeships - Centralised Contract Management,Main Funding,MITIE GROUP PLC,AP16R_19198,2941.6,Programme System File
DFE,Skills Funding Agency,10/11/2016,16-18 Apprenticeships - Centralised Contract Management,Main Funding,MITCHELLS & BUTLERS PLC,AP16R_18181,3597.38,Programme System File
DFE,Skills Funding Agency,10/11/2016,16-18 Apprenticeships - Centralised Contract Management,Main Funding,MOBILE CARE QUALIFICATIONS LTD,AP16R_18594,13731.68,Programme System File
DFE,Skills Funding Agency,10/11/2016,16-18 Apprenticeships - Centralised Contract Management,Main Funding,MOMENTUM TRAINING & CONSULTANCY LTD,AP16R_18155,30640.38,Programme System File
DFE,Skills Funding Agency,10/11/2016,16-18 Apprenticeships - Centralised Contract Management,Main Funding,M I T SKILLS LIMITED,AP16R_18599,197560.34,Programme System File
DFE,Skills Funding Agency,10/11/2016,16-18 Apprenticeships - Centralised Contract Management,Main Funding,MOTOR INSURANCE REPAIR RESEARCH CENTRE,AP16R_18877,28722.84,Programme System File
DFE,Skills Funding Agency,10/11/2016,16-18 Apprenticeships - Centralised Contract Management,Main Funding,MPOWER TRAINING SOLUTIONS LTD,AP16R_19190,6619.79,Programme System File
DFE,Skills Funding Agency,10/11/2016,16-18 Apprenticeships - Centralised Contract Management,Main Funding,NACRO,AP16R_18615,22778.07,Programme System File
DFE,Skills Funding Agency,10/11/2016,16-18 Apprenticeships - Centralised Contract Management,Main Funding,NATIONAL BUSINESS COLLEGE LIMITED,AP16R_18211,26017.09,Programme System File
DFE,Skills Funding Agency,10/11/2016,16-18 Apprenticeships - Centralised Contract Management,Main Funding,YMCA TRAINING,AP16R_18940,98892.69,Programme System File
DFE,Skills Funding Agency,10/11/2016,16-18 Apprenticeships - Centralised Contract Management,Main Funding,NATIONAL TYRE SERVICE LTD,AP16R_18616,8828.54,Programme System File
DFE,Skills Funding Agency,10/11/2016,16-18 Apprenticeships - Centralised Contract Management,Main Funding,NATIONAL GRID PLC,AP16R_18619,28347.26,Programme System File
DFE,Skills Funding Agency,10/11/2016,16-18 Apprenticeships - Centralised Contract Management,Main Funding,N & B TRAINING CO LTD,AP16R_18611,19077.7,Programme System File
DFE,Skills Funding Agency,10/11/2016,16-18 Apprenticeships - Centralised Contract Management,Main Funding,NORTH EAST EMPLOYMENT & TRAINING AGENCY LTD,AP16R_18617,17693.62,Programme System File
DFE,Skills Funding Agency,10/11/2016,16-18 Apprenticeships - Centralised Contract Management,Main Funding,NESTOR PRIMECARE SERVICES LIMITED,AP16R_18043,489.93,Programme System File
DFE,Skills Funding Agency,10/11/2016,16-18 Apprenticeships - Centralised Contract Management,Main Funding,NHTA LTD,AP16R_18626,44249.21,Programme System File
DFE,Skills Funding Agency,10/11/2016,16-18 Apprenticeships - Centralised Contract Management,Main Funding,NISSAN MOTOR MANUFACTURING (UK) LTD,AP16R_18031,27546.7,Programme System File
DFE,Skills Funding Agency,10/11/2016,16-18 Apprenticeships - Centralised Contract Management,Main Funding,NORTHAMPTONSHIRE INDUSTRIAL TRAINING ASSOCIATION LTD,AP16R_18629,100683.3,Programme System File
DFE,Skills Funding Agency,10/11/2016,16-18 Apprenticeships - Centralised Contract Management,Main Funding,NLT TRAINING SERVICES LTD,AP16R_18632,62555.03,Programme System File
DFE,Skills Funding Agency,10/11/2016,16-18 Apprenticeships - Centralised Contract Management,Main Funding,NORFOLK TRAINING SERVICES LTD,AP16R_18638,47282.11,Programme System File
DFE,Skills Funding Agency,10/11/2016,16-18 Apprenticeships - Centralised Contract Management,Main Funding,NORTH LANCS TRAINING GROUP LTD,AP16R_18646,244385.63,Programme System File
DFE,Skills Funding Agency,10/11/2016,16-18 Apprenticeships - Centralised Contract Management,Main Funding,NORTH WEST COMMUNITY SERVICES TRAINING LIMITED,AP16R_18659,25482.11,Programme System File
DFE,Skills Funding Agency,10/11/2016,16-18 Apprenticeships - Centralised Contract Management,Main Funding,NORTH WEST TRAINING COUNCIL,AP16R_18665,55812.79,Programme System File
DFE,Skills Funding Agency,10/11/2016,16-18 Apprenticeships - Centralised Contract Management,Main Funding,DERBYSHIRE & NOTTINGHAMSHIRE CHAMBER OF COMMERCE & INDUSTRY,AP16R_18317,35662.46,Programme System File
DFE,Skills Funding Agency,10/11/2016,16-18 Apprenticeships - Centralised Contract Management,Main Funding,NORTHERN CARE TRAINING LTD,AP16R_19088,7858.21,Programme System File
DFE,Skills Funding Agency,10/11/2016,16-18 Apprenticeships - Centralised Contract Management,Main Funding,NORTH LIVERPOOL REGENERATION COMPANY LTD,AP16R_19134,35316.01,Programme System File
DFE,Skills Funding Agency,10/11/2016,16-18 Apprenticeships - Centralised Contract Management,Main Funding,NOTTINGHAMSHIRE TRAINING NETWORK,AP16R_18671,7179.62,Programme System File
DFE,Skills Funding Agency,10/11/2016,16-18 Apprenticeships - Centralised Contract Management,Main Funding,VOLUNTARY AND COMMUNITY SECTOR LEARNING AND SKILLS CONSORTIUM,AP16R_18670,12344.91,Programme System File
DFE,Skills Funding Agency,10/11/2016,16-18 Apprenticeships - Centralised Contract Management,Main Funding,STAFF SELECT LTD,AP16R_18034,129519.51,Programme System File
DFE,Skills Funding Agency,10/11/2016,16-18 Apprenticeships - Centralised Contract Management,Main Funding,PROGRESS TO EXCELLENCE LTD,AP16R_18672,36236.55,Programme System File
DFE,Skills Funding Agency,10/11/2016,16-18 Apprenticeships - Centralised Contract Management,Main Funding,OLDHAM ENGINEERING GROUP TRAINING ASSOCIATION LTD,AP16R_18206,28479.84,Programme System File
DFE,Skills Funding Agency,10/11/2016,16-18 Apprenticeships - Centralised Contract Management,Main Funding,OMEGA TRAINING SERVICES LTD,AP16R_18684,10898.39,Programme System File
DFE,Skills Funding Agency,10/11/2016,16-18 Apprenticeships - Centralised Contract Management,Main Funding,ORACLE TRAINING CONSULTANTS LTD,AP16R_18685,34096.26,Programme System File
DFE,Skills Funding Agency,10/11/2016,16-18 Apprenticeships - Centralised Contract Management,Main Funding,PARAGON EDUCATION & SKILLS LTD,AP16R_18676,214186.86,Programme System File
DFE,Skills Funding Agency,10/11/2016,16-18 Apprenticeships - Centralised Contract Management,Main Funding,PARTNERSHIP DEVELOPMENT SOLUTIONS LTD,AP16R_18059,44124.6,Programme System File
DFE,Skills Funding Agency,10/11/2016,16-18 Apprenticeships - Centralised Contract Management,Main Funding,PATHWAY FIRST LIMITED,AP16R_19147,29148.22,Programme System File
DFE,Skills Funding Agency,10/11/2016,16-18 Apprenticeships - Centralised Contract Management,Main Funding,PDM TRAINING & CONSULTANCY LTD,AP16R_18680,38800.71,Programme System File
DFE,Skills Funding Agency,10/11/2016,16-18 Apprenticeships - Centralised Contract Management,Main Funding,PEOPLE & BUSINESS DEVELOPMENT LTD,AP16R_19129,25776.8,Programme System File
DFE,Skills Funding Agency,10/11/2016,16-18 Apprenticeships - Centralised Contract Management,Main Funding,PERA TRAINING LTD,AP16R_18143,170416.18,Programme System File
DFE,Skills Funding Agency,10/11/2016,16-18 Apprenticeships - Centralised Contract Management,Main Funding,PERTEMPS PEOPLE DEVELOPMENT GROUP LTD,AP16R_19117,3645.43,Programme System File
DFE,Skills Funding Agency,10/11/2016,16-18 Apprenticeships - Centralised Contract Management,Main Funding,PETA LTD,AP16R_18683,92845,Programme System File
DFE,Skills Funding Agency,10/11/2016,16-18 Apprenticeships - Centralised Contract Management,Main Funding,PGL TRAINING PLUMBING LTD,AP16R_19050,47880.9,Programme System File
DFE,Skills Funding Agency,10/11/2016,16-18 Apprenticeships - Centralised Contract Management,Main Funding,PHILIPS HAIR SALONS LTD,AP16R_18696,28578.11,Programme System File
DFE,Skills Funding Agency,10/11/2016,16-18 Apprenticeships - Centralised Contract Management,Main Funding,PILOT IMS LTD,AP16R_18702,1597.46,Programme System File
DFE,Skills Funding Agency,10/11/2016,16-18 Apprenticeships - Centralised Contract Management,Main Funding,PIZZA HUT (UK) LTD,AP16R_18168,21957.26,Programme System File
DFE,Skills Funding Agency,10/11/2016,16-18 Apprenticeships - Centralised Contract Management,Main Funding,PORTSMOUTH CITY COUNCIL,AP16R_18722,3304.59,Programme System File
DFE,Skills Funding Agency,10/11/2016,16-18 Apprenticeships - Centralised Contract Management,Main Funding,POSITIVE OUTCOMES LTD,AP16R_18729,643705.89,Programme System File
DFE,Skills Funding Agency,10/11/2016,16-18 Apprenticeships - Centralised Contract Management,Main Funding,POULTEC TRAINING LTD,AP16R_18706,40091.22,Programme System File
DFE,Skills Funding Agency,10/11/2016,16-18 Apprenticeships - Centralised Contract Management,Main Funding,PREVISTA LTD,AP16C_4141,-9630.91,Programme System File
DFE,Skills Funding Agency,10/11/2016,16-18 Apprenticeships - Centralised Contract Management,Main Funding,PREVISTA LTD,AP16R_18713,12652.25,Programme System File
DFE,Skills Funding Agency,10/11/2016,16-18 Apprenticeships - Centralised Contract Management,Main Funding,PROJECT MANAGEMENT STAFFORDSHIRE LTD,AP16R_18717,97003.59,Programme System File
DFE,Skills Funding Agency,10/11/2016,16-18 Apprenticeships - Centralised Contract Management,Main Funding,PROSPECTS COLLEGE OF ADVANCED TECHNOLOGY,AP16R_18165,274690.8,Programme System File
DFE,Skills Funding Agency,10/11/2016,16-18 Apprenticeships - Centralised Contract Management,Main Funding,PROFOUND SERVICES LTD,AP16R_19166,15993.6,Programme System File
DFE,Skills Funding Agency,10/11/2016,16-18 Apprenticeships - Centralised Contract Management,Main Funding,PROCO NW LTD,AP16R_19150,59127.07,Programme System File
DFE,Skills Funding Agency,10/11/2016,16-18 Apprenticeships - Centralised Contract Management,Main Funding,SKILLS TO GROUP LTD,AP16R_18731,375520.82,Programme System File
DFE,Skills Funding Agency,10/11/2016,16-18 Apprenticeships - Centralised Contract Management,Main Funding,PTP TRAINING LTD,AP16R_19075,95110.07,Programme System File
DFE,Skills Funding Agency,10/11/2016,16-18 Apprenticeships - Centralised Contract Management,Main Funding,PROVQ LIMITED,AP16R_19156,109546.23,Programme System File
DFE,Skills Funding Agency,10/11/2016,16-18 Apprenticeships - Centralised Contract Management,Main Funding,QA LIMITED,AP16R_18474,659687.68,Programme System File
DFE,Skills Funding Agency,10/11/2016,16-18 Apprenticeships - Centralised Contract Management,Main Funding,QDOS TRAINING LTD,AP16R_19139,10801.99,Programme System File
DFE,Skills Funding Agency,10/11/2016,16-18 Apprenticeships - Centralised Contract Management,Main Funding,BUSY BEES NURSERIES,AP16R_18066,163474.59,Programme System File
DFE,Skills Funding Agency,10/11/2016,16-18 Apprenticeships - Centralised Contract Management,Main Funding,QINETIQ PLC,AP16R_18361,34454.76,Programme System File
DFE,Skills Funding Agency,10/11/2016,16-18 Apprenticeships - Centralised Contract Management,Main Funding,QUBE QUALIFICATIONS AND DEVELOPMENT LTD,AP16R_18734,112022.12,Programme System File
DFE,Skills Funding Agency,10/11/2016,16-18 Apprenticeships - Centralised Contract Management,Main Funding,THE REAL APPRENTICESHIP COMPANY LTD,AP16R_18073,87273.37,Programme System File
DFE,Skills Funding Agency,10/11/2016,16-18 Apprenticeships - Centralised Contract Management,Main Funding,RATHBONE TRAINING,AP16R_18128,113741.65,Programme System File
DFE,Skills Funding Agency,10/11/2016,16-18 Apprenticeships - Centralised Contract Management,Main Funding,RAYTHEON SYSTEMS LTD,AP16R_19201,82380.45,Programme System File
DFE,Skills Funding Agency,10/11/2016,16-18 Apprenticeships - Centralised Contract Management,Main Funding,REDWOOD EDUCATION AND SKILLS LIMITED,AP16R_18077,197628.1,Programme System File
DFE,Skills Funding Agency,10/11/2016,16-18 Apprenticeships - Centralised Contract Management,Main Funding,RELEASE POTENTIAL LIMITED,AP16R_18028,4007.72,Programme System File
DFE,Skills Funding Agency,10/11/2016,16-18 Apprenticeships - Centralised Contract Management,Main Funding,RESOURCES N E LTD,AP16R_18026,96486.74,Programme System File
DFE,Skills Funding Agency,10/11/2016,16-18 Apprenticeships - Centralised Contract Management,Main Funding,REMIT LTD,AP16R_19178,449455.92,Programme System File
DFE,Skills Funding Agency,10/11/2016,16-18 Apprenticeships - Centralised Contract Management,Main Funding,REWARDS TRAINING RECRUITMENT CONSULTANCY LTD,AP16R_18738,83866.52,Programme System File
DFE,Skills Funding Agency,10/11/2016,16-18 Apprenticeships - Centralised Contract Management,Main Funding,REYNOLDS GROUP LTD,AP16R_18872,17640.68,Programme System File
DFE,Skills Funding Agency,10/11/2016,16-18 Apprenticeships - Centralised Contract Management,Main Funding,ROCHDALE TRAINING ASSOCIATION LTD,AP16R_18751,175375.99,Programme System File
DFE,Skills Funding Agency,10/11/2016,16-18 Apprenticeships - Centralised Contract Management,Main Funding,ROCKET TRAINING LTD,AP16R_18756,7011.61,Programme System File
DFE,Skills Funding Agency,10/11/2016,16-18 Apprenticeships - Centralised Contract Management,Main Funding,ROLLS ROYCE PLC,AP16R_18757,78785.47,Programme System File
DFE,Skills Funding Agency,10/11/2016,16-18 Apprenticeships - Centralised Contract Management,Main Funding,MINISTRY OF DEFENCE,AP16R_18097,253912.34,Programme System File
DFE,Skills Funding Agency,10/11/2016,16-18 Apprenticeships - Centralised Contract Management,Main Funding,MINISTRY OF DEFENCE,AP16R_18083,210898.5,Programme System File
DFE,Skills Funding Agency,10/11/2016,16-18 Apprenticeships - Centralised Contract Management,Main Funding,RWP TRAINING LTD,AP16R_18764,72079.96,Programme System File
DFE,Skills Funding Agency,10/11/2016,16-18 Apprenticeships - Centralised Contract Management,Main Funding,SAKS EDUCATION LTD,AP16R_18772,107663.63,Programme System File
DFE,Skills Funding Agency,10/11/2016,16-18 Apprenticeships - Centralised Contract Management,Main Funding,S & B AUTOMOTIVE ACADEMY LTD,AP16R_18768,124606.15,Programme System File
DFE,Skills Funding Agency,10/11/2016,16-18 Apprenticeships - Centralised Contract Management,Main Funding,HAIR ACADEMY SOUTH WEST LIMITED,AP16R_18404,64028.31,Programme System File
DFE,Skills Funding Agency,10/11/2016,16-18 Apprenticeships - Centralised Contract Management,Main Funding,SBC TRAINING LIMITED,AP16R_18101,27279.59,Programme System File
DFE,Skills Funding Agency,10/11/2016,16-18 Apprenticeships - Centralised Contract Management,Main Funding,SEETEC BUSINESS TECHNOLOGY CENTRE LTD,AP16R_18760,18670.34,Programme System File
DFE,Skills Funding Agency,10/11/2016,16-18 Apprenticeships - Centralised Contract Management,Main Funding,SELECT SERVICE PARTNER UK LTD,AP16R_18064,2631.53,Programme System File
DFE,Skills Funding Agency,10/11/2016,16-18 Apprenticeships - Centralised Contract Management,Main Funding,SERCO LTD,AP16R_18775,65214.39,Programme System File
DFE,Skills Funding Agency,10/11/2016,16-18 Apprenticeships - Centralised Contract Management,Main Funding,STOCKPORT ENGINEERING TRAINING ASSOCIATION LTD,AP16R_18834,54091.31,Programme System File
DFE,Skills Funding Agency,10/11/2016,16-18 Apprenticeships - Centralised Contract Management,Main Funding,SUNDERLAND ENGINEERING TRAINING ASSOCIATION LTD,AP16R_18859,28188.26,Programme System File
DFE,Skills Funding Agency,10/11/2016,16-18 Apprenticeships - Centralised Contract Management,Main Funding,SHREWSBURY SIXTH FORM COLLEGE,AP16R_18217,90163.47,Programme System File
DFE,Skills Funding Agency,10/11/2016,16-18 Apprenticeships - Centralised Contract Management,Main Funding,SIEMENS PLC,AP16R_19083,118146.31,Programme System File
DFE,Skills Funding Agency,10/11/2016,16-18 Apprenticeships - Centralised Contract Management,Main Funding,STEPS TO WORK (WALSALL) LIMITED,AP16R_18832,2433.01,Programme System File
DFE,Skills Funding Agency,10/11/2016,16-18 Apprenticeships - Centralised Contract Management,Main Funding,SKILLS FOR HEALTH LTD,AP16R_18133,6712.87,Programme System File
DFE,Skills Funding Agency,10/11/2016,16-18 Apprenticeships - Centralised Contract Management,Main Funding,SKILLS TRAINING UK LTD,AP16R_18796,16239.91,Programme System File
DFE,Skills Funding Agency,10/11/2016,16-18 Apprenticeships - Centralised Contract Management,Main Funding,SKILLNET LTD,AP16R_18792,359529.83,Programme System File
DFE,Skills Funding Agency,10/11/2016,16-18 Apprenticeships - Centralised Contract Management,Main Funding,SKILLS PARTNERSHIP LTD,AP16R_18795,7472.05,Programme System File
DFE,Skills Funding Agency,10/11/2016,16-18 Apprenticeships - Centralised Contract Management,Main Funding,SKILLS FOR SECURITY LTD,AP16R_19049,33292.89,Programme System File
DFE,Skills Funding Agency,10/11/2016,16-18 Apprenticeships - Centralised Contract Management,Main Funding,SKILLS TEAM LTD,AP16R_19099,634.2,Programme System File
DFE,Skills Funding Agency,10/11/2016,16-18 Apprenticeships - Centralised Contract Management,Main Funding,ACCESS TRAINING EAST MIDLANDS LTD,AP16R_19056,60202.8,Programme System File
DFE,Skills Funding Agency,10/11/2016,16-18 Apprenticeships - Centralised Contract Management,Main Funding,SOFTMIST LTD,AP16R_19159,20018.3,Programme System File
DFE,Skills Funding Agency,10/11/2016,16-18 Apprenticeships - Centralised Contract Management,Main Funding,SOMERSET SKILLS & LEARNING CIC,AP16R_18153,44310.63,Programme System File
DFE,Skills Funding Agency,10/11/2016,16-18 Apprenticeships - Centralised Contract Management,Main Funding,SETA LTD,AP16R_18778,46576.2,Programme System File
DFE,Skills Funding Agency,10/11/2016,16-18 Apprenticeships - Centralised Contract Management,Main Funding,NORTHERN RACING COLLEGE,AP16R_18658,18000,Programme System File
DFE,Skills Funding Agency,10/11/2016,16-18 Apprenticeships - Centralised Contract Management,Main Funding,SPAN TRAINING & DEVELOPMENT LTD,AP16R_19036,54886.11,Programme System File
DFE,Skills Funding Agency,10/11/2016,16-18 Apprenticeships - Centralised Contract Management,Main Funding,SPECSAVERS OPTICAL SUPERSTORES LTD,AP16R_18146,55286.89,Programme System File
DFE,Skills Funding Agency,10/11/2016,16-18 Apprenticeships - Centralised Contract Management,Main Funding,SPRINGBOARD SUNDERLAND TRUST,AP16R_18822,59794.86,Programme System File
DFE,Skills Funding Agency,10/11/2016,16-18 Apprenticeships - Centralised Contract Management,Main Funding,SSE SERVICES PLC,AP16R_18235,68624.06,Programme System File
DFE,Skills Funding Agency,10/11/2016,16-18 Apprenticeships - Centralised Contract Management,Main Funding,START TRAINING LTD,AP16R_19132,10451.04,Programme System File
DFE,Skills Funding Agency,10/11/2016,16-18 Apprenticeships - Centralised Contract Management,Main Funding,STARTING OFF NORTHAMPTON LTD,AP16R_18042,36310.02,Programme System File
DFE,Skills Funding Agency,10/11/2016,16-18 Apprenticeships - Centralised Contract Management,Main Funding,SALFORD & TRAFFORD ENGINEERING GROUP TRAINING ASSOCIATION LTD,AP16R_18826,81661.3,Programme System File
DFE,Skills Funding Agency,10/11/2016,16-18 Apprenticeships - Centralised Contract Management,Main Funding,METSKILL LTD,AP16R_18588,176961.75,Programme System File
DFE,Skills Funding Agency,10/11/2016,16-18 Apprenticeships - Centralised Contract Management,Main Funding,ST HELENS CHAMBER LTD,AP16R_18824,32819.88,Programme System File
DFE,Skills Funding Agency,10/11/2016,16-18 Apprenticeships - Centralised Contract Management,Main Funding,STRAIGHT A TRAINING LTD,AP16R_18843,9737.78,Programme System File
DFE,Skills Funding Agency,10/11/2016,16-18 Apprenticeships - Centralised Contract Management,Main Funding,STUBBING COURT TRAINING LTD,AP16R_18853,35583.46,Programme System File
DFE,Skills Funding Agency,10/11/2016,16-18 Apprenticeships - Centralised Contract Management,Main Funding,SUMMERHOUSE EQUESTRIAN & TRAINING CENTRE LLP,AP16R_18170,85693.77,Programme System File
DFE,Skills Funding Agency,10/11/2016,16-18 Apprenticeships - Centralised Contract Management,Main Funding,SUPERDRUG STORES PLC,AP16R_19131,71764.15,Programme System File
DFE,Skills Funding Agency,10/11/2016,16-18 Apprenticeships - Centralised Contract Management,Main Funding,SOUTH WEST ASSOCIATION OF TRAINING PROVIDERS LIMITED,AP16R_18080,47461.72,Programme System File
DFE,Skills Funding Agency,10/11/2016,16-18 Apprenticeships - Centralised Contract Management,Main Funding,SW DURHAM TRAINING LTD,AP16R_18815,45077.48,Programme System File
DFE,Skills Funding Agency,10/11/2016,16-18 Apprenticeships - Centralised Contract Management,Main Funding,SOUTH WEST REGIONAL ASSESSMENT CENTRE LTD,AP16R_19001,818.23,Programme System File
DFE,Skills Funding Agency,10/11/2016,16-18 Apprenticeships - Centralised Contract Management,Main Funding,SYSCO BUSINESS SKILLS ACADEMY,AP16R_19110,36208.64,Programme System File
DFE,Skills Funding Agency,10/11/2016,16-18 Apprenticeships - Centralised Contract Management,Main Funding,SYSTEM GROUP LTD,AP16R_18851,56306.89,Programme System File
DFE,Skills Funding Agency,10/11/2016,16-18 Apprenticeships - Centralised Contract Management,Main Funding,THE APPRENTICE ACADEMY LIMITED,AP16R_18136,55041.42,Programme System File
DFE,Skills Funding Agency,10/11/2016,16-18 Apprenticeships - Centralised Contract Management,Main Funding,TALENT TRAINING (UK) LLP,AP16R_19184,2536.1,Programme System File
DFE,Skills Funding Agency,10/11/2016,16-18 Apprenticeships - Centralised Contract Management,Main Funding,VOCATIONAL COLLEGE LTD,AP16R_18883,27529.5,Programme System File
DFE,Skills Funding Agency,10/11/2016,16-18 Apprenticeships - Centralised Contract Management,Main Funding,TDR TRAINING LTD,AP16R_18860,336726.71,Programme System File
DFE,Skills Funding Agency,10/11/2016,16-18 Apprenticeships - Centralised Contract Management,Main Funding,TEAM WEARSIDE LTD,AP16R_18864,12508.69,Programme System File
DFE,Skills Funding Agency,10/11/2016,16-18 Apprenticeships - Centralised Contract Management,Main Funding,TEAM ENTERPRISES LTD,AP16R_18862,5084.53,Programme System File
DFE,Skills Funding Agency,10/11/2016,16-18 Apprenticeships - Centralised Contract Management,Main Funding,TTE TRAINING LTD,AP16R_18631,23442.37,Programme System File
DFE,Skills Funding Agency,10/11/2016,16-18 Apprenticeships - Centralised Contract Management,Main Funding,TTE TECHNICAL TRAINING GROUP,AP16R_18898,59749.89,Programme System File
DFE,Skills Funding Agency,10/11/2016,16-18 Apprenticeships - Centralised Contract Management,Main Funding,TESCO STORES LTD,AP16R_18871,6033.55,Programme System File
DFE,Skills Funding Agency,10/11/2016,16-18 Apprenticeships - Centralised Contract Management,Main Funding,THELIGHTBULB LTD,AP16R_18559,41126.18,Programme System File
DFE,Skills Funding Agency,10/11/2016,16-18 Apprenticeships - Centralised Contract Management,Main Funding,DERBYSHIRE NETWORK,AP16R_18889,42939.18,Programme System File
DFE,Skills Funding Agency,10/11/2016,16-18 Apprenticeships - Centralised Contract Management,Main Funding,STEADFAST TRAINING LTD,AP16R_19115,13961.81,Programme System File
DFE,Skills Funding Agency,10/11/2016,16-18 Apprenticeships - Centralised Contract Management,Main Funding,THE CHILDCARE COMPANY LTD,AP16R_19174,37414.52,Programme System File
DFE,Skills Funding Agency,10/11/2016,16-18 Apprenticeships - Centralised Contract Management,Main Funding,THOMAS COOK GROUP UK LIMITED,AP16R_18086,114145.57,Programme System File
DFE,Skills Funding Agency,10/11/2016,16-18 Apprenticeships - Centralised Contract Management,Main Funding,TONI & GUY UK TRAINING LTD,AP16R_19181,186974.53,Programme System File
DFE,Skills Funding Agency,10/11/2016,16-18 Apprenticeships - Centralised Contract Management,Main Funding,ASPIRE TRAINING TEAM,AP16R_18892,34459.94,Programme System File
DFE,Skills Funding Agency,10/11/2016,16-18 Apprenticeships - Centralised Contract Management,Main Funding,TOTAL PEOPLE LTD,AP16R_19143,582934.65,Programme System File
DFE,Skills Funding Agency,10/11/2016,16-18 Apprenticeships - Centralised Contract Management,Main Funding,TOYOTAGB PLC,AP16R_19078,79327.23,Programme System File
DFE,Skills Funding Agency,10/11/2016,16-18 Apprenticeships - Centralised Contract Management,Main Funding,T Q WORKFORCE DEVELOPMENT LTD,AP16R_19070,16651.56,Programme System File
DFE,Skills Funding Agency,10/11/2016,16-18 Apprenticeships - Centralised Contract Management,Main Funding,TRAINING 2000 LTD,AP16R_18900,266487.07,Programme System File
DFE,Skills Funding Agency,10/11/2016,16-18 Apprenticeships - Centralised Contract Management,Main Funding,TRAINING FOR TODAY LTD,AP16R_18903,59237.47,Programme System File
DFE,Skills Funding Agency,10/11/2016,16-18 Apprenticeships - Centralised Contract Management,Main Funding,TRAINING SERVICES 2000 LTD,AP16R_18917,125227.12,Programme System File
DFE,Skills Funding Agency,10/11/2016,16-18 Apprenticeships - Centralised Contract Management,Main Funding,TRANSWORLD PUBLICATIONS SERVICES LTD,AP16R_18726,3064.53,Programme System File
DFE,Skills Funding Agency,10/11/2016,16-18 Apprenticeships - Centralised Contract Management,Main Funding,TRAIND UP RAILWAY RESOURCING LTD,AP16R_19062,30291.46,Programme System File
DFE,Skills Funding Agency,10/11/2016,16-18 Apprenticeships - Centralised Contract Management,Main Funding,TRAVIS PERKINS PLC,AP16R_18039,918.57,Programme System File
DFE,Skills Funding Agency,10/11/2016,16-18 Apprenticeships - Centralised Contract Management,Main Funding,TRAINING STRATEGIES LTD,AP16R_18197,30157.11,Programme System File
DFE,Skills Funding Agency,10/11/2016,16-18 Apprenticeships - Centralised Contract Management,Main Funding,TRAINING FUTURES (UK) LTD,AP16R_18076,3336.5,Programme System File
DFE,Skills Funding Agency,10/11/2016,16-18 Apprenticeships - Centralised Contract Management,Main Funding,OUTSOURCE VOCATIONAL LEARNING LTD,AP16R_19172,121199.7,Programme System File
DFE,Skills Funding Agency,10/11/2016,16-18 Apprenticeships - Centralised Contract Management,Main Funding,TRAINING & RECRUITMENT PARTNERSHIP LTD,AP16R_18895,10205.72,Programme System File
DFE,Skills Funding Agency,10/11/2016,16-18 Apprenticeships - Centralised Contract Management,Main Funding,TRAINING SYNERGY LIMITED,AP16R_18115,30739.4,Programme System File
DFE,Skills Funding Agency,10/11/2016,16-18 Apprenticeships - Centralised Contract Management,Main Funding,TYNE NORTH TRAINING LTD,AP16R_18902,106606.39,Programme System File
DFE,Skills Funding Agency,10/11/2016,16-18 Apprenticeships - Centralised Contract Management,Main Funding,URBAN FUTURES LONDON LIMITED,AP16R_19141,3406.31,Programme System File
DFE,Skills Funding Agency,10/11/2016,16-18 Apprenticeships - Centralised Contract Management,Main Funding,UK TRAINING & DEVELOPMENT LTD,AP16R_18905,68908.43,Programme System File
DFE,Skills Funding Agency,10/11/2016,16-18 Apprenticeships - Centralised Contract Management,Main Funding,UNITED UTILITIES WATER LTD,AP16R_18231,26168.68,Programme System File
DFE,Skills Funding Agency,10/11/2016,16-18 Apprenticeships - Centralised Contract Management,Main Funding,UNIVERSITY OF SHEFFIELD,AP16R_18926,113207.18,Programme System File
DFE,Skills Funding Agency,10/11/2016,16-18 Apprenticeships - Centralised Contract Management,Main Funding,VECTOR AEROSPACE INTERNATIONAL,AP16R_19202,3201.81,Programme System File
DFE,Skills Funding Agency,10/11/2016,16-18 Apprenticeships - Centralised Contract Management,Main Funding,VEOLIA ENVIRONNEMENT DEVELOPMENT CENTRE LTD,AP16R_18233,3090.32,Programme System File
DFE,Skills Funding Agency,10/11/2016,16-18 Apprenticeships - Centralised Contract Management,Main Funding,VIRTUAL COLLEGE GROUP PLC,AP16R_18880,11855.29,Programme System File
DFE,Skills Funding Agency,10/11/2016,16-18 Apprenticeships - Centralised Contract Management,Main Funding,VIRGIN MEDIA LTD,AP16R_19196,8546.75,Programme System File
DFE,Skills Funding Agency,10/11/2016,16-18 Apprenticeships - Centralised Contract Management,Main Funding,VISION EXPRESS (UK) LIMITED,AP16R_18144,10272.19,Programme System File
DFE,Skills Funding Agency,10/11/2016,16-18 Apprenticeships - Centralised Contract Management,Main Funding,VOCATIONAL TRAINING SERVICES CARE SECTOR LTD,AP16R_19041,14194.79,Programme System File
DFE,Skills Funding Agency,10/11/2016,16-18 Apprenticeships - Centralised Contract Management,Main Funding,VOYAGE GROUP LTD,AP16R_18062,1283.61,Programme System File
DFE,Skills Funding Agency,10/11/2016,16-18 Apprenticeships - Centralised Contract Management,Main Funding,VQ SOLUTIONS,AP16R_19169,27104.16,Programme System File
DFE,Skills Funding Agency,10/11/2016,16-18 Apprenticeships - Centralised Contract Management,Main Funding,WALSALL HEALTHCARE NHS TRUST,AP16C_4145,-34966.48,Programme System File
DFE,Skills Funding Agency,10/11/2016,16-18 Apprenticeships - Centralised Contract Management,Main Funding,WALSALL HEALTHCARE NHS TRUST,AP16R_19060,34966.48,Programme System File
DFE,Skills Funding Agency,10/11/2016,16-18 Apprenticeships - Centralised Contract Management,Main Funding,WEST BERKSHIRE TRAINING CONSORTIUM,AP16R_18938,126280.1,Programme System File
DFE,Skills Funding Agency,10/11/2016,16-18 Apprenticeships - Centralised Contract Management,Main Funding,WEBS TRAINING LTD,AP16R_18948,44825.42,Programme System File
DFE,Skills Funding Agency,10/11/2016,16-18 Apprenticeships - Centralised Contract Management,Main Funding,WEIR TRAINING LTD,AP16R_18953,14918.65,Programme System File
DFE,Skills Funding Agency,10/11/2016,16-18 Apprenticeships - Centralised Contract Management,Main Funding,WEST ANGLIA TRAINING ASSOCIATION LIMITED,AP16R_18957,26808.77,Programme System File
DFE,Skills Funding Agency,10/11/2016,16-18 Apprenticeships - Centralised Contract Management,Main Funding,WEST YORKSHIRE LEARNING PROVIDERS LTD,AP16R_19058,96729.77,Programme System File
DFE,Skills Funding Agency,10/11/2016,16-18 Apprenticeships - Centralised Contract Management,Main Funding,WALTHAM FOREST CHAMBER OF COMMERCE TRAINING TRUST LTD,AP16R_18936,47658.16,Programme System File
DFE,Skills Funding Agency,10/11/2016,16-18 Apprenticeships - Centralised Contract Management,Main Funding,WHITBREAD PLC,AP16R_19019,8078.2,Programme System File
DFE,Skills Funding Agency,10/11/2016,16-18 Apprenticeships - Centralised Contract Management,Main Funding,WINCANTON GROUP LTD,AP16R_19130,472.47,Programme System File
DFE,Skills Funding Agency,10/11/2016,16-18 Apprenticeships - Centralised Contract Management,Main Funding,WOLSELEY UK LTD,AP16R_18180,1713.18,Programme System File
DFE,Skills Funding Agency,10/11/2016,16-18 Apprenticeships - Centralised Contract Management,Main Funding,W S TRAINING LTD,AP16R_18983,98995.59,Programme System File
DFE,Skills Funding Agency,10/11/2016,16-18 Apprenticeships - Centralised Contract Management,Main Funding,WILTSHIRE TRANSPORT TRAINING & DEVELOPMENT LTD,AP16R_19020,16174.13,Programme System File
DFE,Skills Funding Agency,10/11/2016,16-18 Apprenticeships - Centralised Contract Management,Main Funding,XTP INTERNATIONAL LTD,AP16R_18719,540.7,Programme System File
DFE,Skills Funding Agency,10/11/2016,16-18 Apprenticeships - Centralised Contract Management,Main Funding,YH TRAINING SERVICES LTD,AP16R_18987,85710.94,Programme System File
DFE,Skills Funding Agency,10/11/2016,16-18 Apprenticeships - Centralised Contract Management,Main Funding,YORKSHIRE COLLEGE OF BEAUTY LTD,AP16R_19067,38923.9,Programme System File
DFE,Skills Funding Agency,10/11/2016,16-18 Apprenticeships - Centralised Contract Management,Main Funding,YORKSHIRE TRAINING PARTNERSHIP LTD,AP16R_18991,23116.2,Programme System File
DFE,Skills Funding Agency,10/11/2016,16-18 Apprenticeships - Centralised Contract Management,Main Funding,YOUNGSAVE CO LTD,AP16R_18606,30590.89,Programme System File
DFE,Skills Funding Agency,10/11/2016,16-18 Apprenticeships - Centralised Contract Management,Main Funding,INGEUS TRAINING LTD,AP16R_18995,34061.68,Programme System File
DFE,Skills Funding Agency,10/11/2016,16-18 Apprenticeships - Centralised Contract Management,Main Funding,ABINGDON & WITNEY COLLEGE,AP16R_18765,59736.71,Programme System File
DFE,Skills Funding Agency,10/11/2016,16-18 Apprenticeships - Centralised Contract Management,Main Funding,ACCRINGTON & ROSSENDALE COLLEGE,AP16R_18258,62311.78,Programme System File
DFE,Skills Funding Agency,10/11/2016,16-18 Apprenticeships - Centralised Contract Management,Main Funding,AMERSHAM & WYCOMBE COLLEGE,AP16R_18457,28543.07,Programme System File
DFE,Skills Funding Agency,10/11/2016,16-18 Apprenticeships - Centralised Contract Management,Main Funding,ASKHAM BRYAN COLLEGE,AP16R_18568,116046.62,Programme System File
DFE,Skills Funding Agency,10/11/2016,16-18 Apprenticeships - Centralised Contract Management,Main Funding,AYLESBURY COLLEGE,AP16R_18841,131939.89,Programme System File
DFE,Skills Funding Agency,10/11/2016,16-18 Apprenticeships - Centralised Contract Management,Main Funding,BARNFIELD COLLEGE,AP16R_18863,61221.88,Programme System File
DFE,Skills Funding Agency,10/11/2016,16-18 Apprenticeships - Centralised Contract Management,Main Funding,BARKING & DAGENHAM COLLEGE,AP16R_18754,130898.54,Programme System File
DFE,Skills Funding Agency,10/11/2016,16-18 Apprenticeships - Centralised Contract Management,Main Funding,BASINGSTOKE COLLEGE,AP16R_18908,350530.58,Programme System File
DFE,Skills Funding Agency,10/11/2016,16-18 Apprenticeships - Centralised Contract Management,Main Funding,BLACKBURN COLLEGE,AP16R_19040,108234.46,Programme System File
DFE,Skills Funding Agency,10/11/2016,16-18 Apprenticeships - Centralised Contract Management,Main Funding,BEDFORD COLLEGE,AP16R_18996,285122.9,Programme System File
DFE,Skills Funding Agency,10/11/2016,16-18 Apprenticeships - Centralised Contract Management,Main Funding,EAST RIDING COLLEGE,AP16R_18345,53991.16,Programme System File
DFE,Skills Funding Agency,10/11/2016,16-18 Apprenticeships - Centralised Contract Management,Main Funding,BEXHILL COLLEGE,AP16R_19051,1792.65,Programme System File
DFE,Skills Funding Agency,10/11/2016,16-18 Apprenticeships - Centralised Contract Management,Main Funding,BLACKPOOL & FLYDE COLLEGE,AP16R_19061,130214,Programme System File
DFE,Skills Funding Agency,10/11/2016,16-18 Apprenticeships - Centralised Contract Management,Main Funding,BISHOP BURTON COLLEGE,AP16R_19018,66593.49,Programme System File
DFE,Skills Funding Agency,10/11/2016,16-18 Apprenticeships - Centralised Contract Management,Main Funding,BRACKNELL & WOKINGHAM COLLEGE,AP16R_18030,54229.54,Programme System File
DFE,Skills Funding Agency,10/11/2016,16-18 Apprenticeships - Centralised Contract Management,Main Funding,UNIVERSITY COLLEGE BIRMINGHAM,AP16R_18897,42754.27,Programme System File
DFE,Skills Funding Agency,10/11/2016,16-18 Apprenticeships - Centralised Contract Management,Main Funding,BARNSLEY COLLEGE,AP16R_18875,266704.82,Programme System File
DFE,Skills Funding Agency,10/11/2016,16-18 Apprenticeships - Centralised Contract Management,Main Funding,BOLTON COMMUNITY COLLEGE,AP16R_19105,109267.07,Programme System File
DFE,Skills Funding Agency,10/11/2016,16-18 Apprenticeships - Centralised Contract Management,Main Funding,BOSTON COLLEGE,AP16R_19127,82121.8,Programme System File
DFE,Skills Funding Agency,10/11/2016,16-18 Apprenticeships - Centralised Contract Management,Main Funding,BOURNEMOUTH & POOLE COLLEGE,AP16R_19138,266750.33,Programme System File
DFE,Skills Funding Agency,10/11/2016,16-18 Apprenticeships - Centralised Contract Management,Main Funding,BROOKLANDS TECHNICAL COLLEGE,AP16R_18130,837575.01,Programme System File
DFE,Skills Funding Agency,10/11/2016,16-18 Apprenticeships - Centralised Contract Management,Main Funding,BRIDGWATER COLLEGE,AP16R_18189,405516.13,Programme System File
DFE,Skills Funding Agency,10/11/2016,16-18 Apprenticeships - Centralised Contract Management,Main Funding,BERKSHIRE COLLEGE OF AGRICULTURE,AP16R_19029,15912.45,Programme System File
DFE,Skills Funding Agency,10/11/2016,16-18 Apprenticeships - Centralised Contract Management,Main Funding,BRADFORD COLLEGE,AP16R_18107,254822.34,Programme System File
DFE,Skills Funding Agency,10/11/2016,16-18 Apprenticeships - Centralised Contract Management,Main Funding,BROMLEY COLLEGE OF FURTHER & HIGHER EDUCATION,AP16R_18212,229272.75,Programme System File
DFE,Skills Funding Agency,10/11/2016,16-18 Apprenticeships - Centralised Contract Management,Main Funding,BURNLEY COLLEGE,AP16R_18185,143929.27,Programme System File
DFE,Skills Funding Agency,10/11/2016,16-18 Apprenticeships - Centralised Contract Management,Main Funding,BROCKENHURST COLLEGE,AP16R_18085,32196.45,Programme System File
DFE,Skills Funding Agency,10/11/2016,16-18 Apprenticeships - Centralised Contract Management,Main Funding,BROOKSBY MELTON COLLEGE,AP16R_18152,25670.12,Programme System File
DFE,Skills Funding Agency,10/11/2016,16-18 Apprenticeships - Centralised Contract Management,Main Funding,CITY COLLEGE BRIGHTON & HOVE,AP16R_18266,47498.78,Programme System File
DFE,Skills Funding Agency,10/11/2016,16-18 Apprenticeships - Centralised Contract Management,Main Funding,BISHOP AUCKLAND COLLEGE,AP16R_18963,52850.75,Programme System File
DFE,Skills Funding Agency,10/11/2016,16-18 Apprenticeships - Centralised Contract Management,Main Funding,BURTON & SOUTH DERBYSHIRE COLLEGE,AP16R_18237,171888.28,Programme System File
DFE,Skills Funding Agency,10/11/2016,16-18 Apprenticeships - Centralised Contract Management,Main Funding,BURY COLLEGE,AP16R_18242,146332.54,Programme System File
DFE,Skills Funding Agency,10/11/2016,16-18 Apprenticeships - Centralised Contract Management,Main Funding,BOURNVILLE COLLEGE OF HIGHER EDUCATION,AP16R_19149,71530.43,Programme System File
DFE,Skills Funding Agency,10/11/2016,16-18 Apprenticeships - Centralised Contract Management,Main Funding,CARSHALTON COLLEGE,AP16R_18254,58525.98,Programme System File
DFE,Skills Funding Agency,10/11/2016,16-18 Apprenticeships - Centralised Contract Management,Main Funding,CARLISLE COLLEGE,AP16R_18251,90767.03,Programme System File
DFE,Skills Funding Agency,10/11/2016,16-18 Apprenticeships - Centralised Contract Management,Main Funding,CALDERDALE COLLEGE,AP16R_18252,76944.99,Programme System File
DFE,Skills Funding Agency,10/11/2016,16-18 Apprenticeships - Centralised Contract Management,Main Funding,CAMBRIDGE REGIONAL COLLEGE,AP16R_18203,264793.28,Programme System File
DFE,Skills Funding Agency,10/11/2016,16-18 Apprenticeships - Centralised Contract Management,Main Funding,CAPEL MANOR COLLEGE,AP16R_18218,19205.67,Programme System File
DFE,Skills Funding Agency,10/11/2016,16-18 Apprenticeships - Centralised Contract Management,Main Funding,CENTRAL SUSSEX COLLEGE,AP16R_18304,128793.46,Programme System File
DFE,Skills Funding Agency,10/11/2016,16-18 Apprenticeships - Centralised Contract Management,Main Funding,CHELMSFORD COLLEGE,AP16R_18275,71358.5,Programme System File
DFE,Skills Funding Agency,10/11/2016,16-18 Apprenticeships - Centralised Contract Management,Main Funding,CHICHESTER COLLEGE,AP16R_18993,172494.07,Programme System File
DFE,Skills Funding Agency,10/11/2016,16-18 Apprenticeships - Centralised Contract Management,Main Funding,CHESTERFIELD COLLEGE,AP16R_18278,342120.69,Programme System File
DFE,Skills Funding Agency,10/11/2016,16-18 Apprenticeships - Centralised Contract Management,Main Funding,CIRENCESTER TERTIARY COLLEGE,AP16R_18265,38256.34,Programme System File
DFE,Skills Funding Agency,10/11/2016,16-18 Apprenticeships - Centralised Contract Management,Main Funding,NEW COLLEGE NOTTINGHAM,AP16R_18219,130053.26,Programme System File
DFE,Skills Funding Agency,10/11/2016,16-18 Apprenticeships - Centralised Contract Management,Main Funding,COLCHESTER INSTITUTE,AP16R_18292,247405.81,Programme System File
DFE,Skills Funding Agency,10/11/2016,16-18 Apprenticeships - Centralised Contract Management,Main Funding,COLLEGE OF NORTH WEST LONDON,AP16R_18299,28990.28,Programme System File
DFE,Skills Funding Agency,10/11/2016,16-18 Apprenticeships - Centralised Contract Management,Main Funding,REDCAR & CLEVELAND COLLEGE,AP16R_18750,27786.23,Programme System File
DFE,Skills Funding Agency,10/11/2016,16-18 Apprenticeships - Centralised Contract Management,Main Funding,COLLEGE OF NORTH EAST LONDON,AP16R_18297,41862.38,Programme System File
DFE,Skills Funding Agency,10/11/2016,16-18 Apprenticeships - Centralised Contract Management,Main Funding,CANTERBURY COLLEGE,AP16R_18174,79689.82,Programme System File
DFE,Skills Funding Agency,10/11/2016,16-18 Apprenticeships - Centralised Contract Management,Main Funding,STEPHENSON COLLEGE,AP16R_18828,244763.77,Programme System File
DFE,Skills Funding Agency,10/11/2016,16-18 Apprenticeships - Centralised Contract Management,Main Funding,CORNWALL COLLEGE,AP16R_18287,449176.81,Programme System File
DFE,Skills Funding Agency,10/11/2016,16-18 Apprenticeships - Centralised Contract Management,Main Funding,CRAVEN COLLEGE,AP16R_18300,159254.78,Programme System File
DFE,Skills Funding Agency,10/11/2016,16-18 Apprenticeships - Centralised Contract Management,Main Funding,CROYDON COLLEGE,AP16R_18309,38480.51,Programme System File
DFE,Skills Funding Agency,10/11/2016,16-18 Apprenticeships - Centralised Contract Management,Main Funding,CITY OF BRISTOL COLLEGE,AP16R_18279,155357.67,Programme System File
DFE,Skills Funding Agency,10/11/2016,16-18 Apprenticeships - Centralised Contract Management,Main Funding,CITY OF SUNDERLAND COLLEGE,AP16R_18282,102900.73,Programme System File
DFE,Skills Funding Agency,10/11/2016,16-18 Apprenticeships - Centralised Contract Management,Main Funding,CITY OF BATH COLLEGE,AP16R_18277,107809.45,Programme System File
DFE,Skills Funding Agency,10/11/2016,16-18 Apprenticeships - Centralised Contract Management,Main Funding,CITY COLLEGE COVENTRY,AP16R_18271,79476.88,Programme System File
DFE,Skills Funding Agency,10/11/2016,16-18 Apprenticeships - Centralised Contract Management,Main Funding,THE CITY OF LIVERPOOL COLLEGE,AP16R_18553,104678.44,Programme System File
DFE,Skills Funding Agency,10/11/2016,16-18 Apprenticeships - Centralised Contract Management,Main Funding,CITY OF WESTMINSTER COLLEGE,AP16R_18286,27961.29,Programme System File
DFE,Skills Funding Agency,10/11/2016,16-18 Apprenticeships - Centralised Contract Management,Main Funding,DARLINGTON COLLEGE,AP16R_18330,105412.49,Programme System File
DFE,Skills Funding Agency,10/11/2016,16-18 Apprenticeships - Centralised Contract Management,Main Funding,DERWENTSIDE COLLEGE,AP16R_18329,100992.07,Programme System File
DFE,Skills Funding Agency,10/11/2016,16-18 Apprenticeships - Centralised Contract Management,Main Funding,DERBY COLLEGE,AP16R_18314,294714.08,Programme System File
DFE,Skills Funding Agency,10/11/2016,16-18 Apprenticeships - Centralised Contract Management,Main Funding,DONCASTER COLLEGE,AP16R_18339,164756.28,Programme System File
DFE,Skills Funding Agency,10/11/2016,16-18 Apprenticeships - Centralised Contract Management,Main Funding,DUDLEY COLLEGE OF TECHNOLOGY,AP16R_19006,488227.77,Programme System File
DFE,Skills Funding Agency,10/11/2016,16-18 Apprenticeships - Centralised Contract Management,Main Funding,CENTRAL BEDFORDSHIRE COLLEGE,AP16R_18348,32066.39,Programme System File
DFE,Skills Funding Agency,10/11/2016,16-18 Apprenticeships - Centralised Contract Management,Main Funding,DURHAM COUNTY COUNCIL,AP16R_18350,7205.56,Programme System File
DFE,Skills Funding Agency,10/11/2016,16-18 Apprenticeships - Centralised Contract Management,Main Funding,EAST BERKSHIRE COLLEGE,AP16R_18360,131374.46,Programme System File
DFE,Skills Funding Agency,10/11/2016,16-18 Apprenticeships - Centralised Contract Management,Main Funding,EPPING FOREST COLLEGE,AP16R_18363,28138.26,Programme System File
DFE,Skills Funding Agency,10/11/2016,16-18 Apprenticeships - Centralised Contract Management,Main Funding,EASTON & OTLEY COLLEGE,AP16R_18123,69666.6,Programme System File
DFE,Skills Funding Agency,10/11/2016,16-18 Apprenticeships - Centralised Contract Management,Main Funding,EASTLEIGH COLLEGE,AP16R_18352,110855.8,Programme System File
DFE,Skills Funding Agency,10/11/2016,16-18 Apprenticeships - Centralised Contract Management,Main Funding,EAST SURREY COLLEGE,AP16R_18349,65171.81,Programme System File
DFE,Skills Funding Agency,10/11/2016,16-18 Apprenticeships - Centralised Contract Management,Main Funding,EXETER COLLEGE,AP16R_18371,416060.8,Programme System File
DFE,Skills Funding Agency,10/11/2016,16-18 Apprenticeships - Centralised Contract Management,Main Funding,FAREHAM COLLEGE,AP16R_19013,156057.9,Programme System File
DFE,Skills Funding Agency,10/11/2016,16-18 Apprenticeships - Centralised Contract Management,Main Funding,FARNBOROUGH COLLEGE,AP16R_18375,102477.57,Programme System File
DFE,Skills Funding Agency,10/11/2016,16-18 Apprenticeships - Centralised Contract Management,Main Funding,FRANKLIN COLLEGE,AP16R_18369,7613.5,Programme System File
DFE,Skills Funding Agency,10/11/2016,16-18 Apprenticeships - Centralised Contract Management,Main Funding,FURNESS COLLEGE,AP16R_18213,50062.97,Programme System File
DFE,Skills Funding Agency,10/11/2016,16-18 Apprenticeships - Centralised Contract Management,Main Funding,GATESHEAD COLLEGE,AP16R_18387,100774.22,Programme System File
DFE,Skills Funding Agency,10/11/2016,16-18 Apprenticeships - Centralised Contract Management,Main Funding,GATESHEAD COUNCIL,AP16R_18392,44791.61,Programme System File
DFE,Skills Funding Agency,10/11/2016,16-18 Apprenticeships - Centralised Contract Management,Main Funding,GLOUCESTERSHIRE COLLEGE OF ARTS & TECHNOLOGY,AP16R_18396,221889.09,Programme System File
DFE,Skills Funding Agency,10/11/2016,16-18 Apprenticeships - Centralised Contract Management,Main Funding,GRANTHAM COLLEGE,AP16R_18389,50450.88,Programme System File
DFE,Skills Funding Agency,10/11/2016,16-18 Apprenticeships - Centralised Contract Management,Main Funding,GRIMSBY INSTITUTE OF FURTHER & HIGHER EDUCATION,AP16R_19009,144406.21,Programme System File
DFE,Skills Funding Agency,10/11/2016,16-18 Apprenticeships - Centralised Contract Management,Main Funding,GUILDFORD COLLEGE OF FURTHER & HIGHER EDUCATION,AP16R_18393,72488.52,Programme System File
DFE,Skills Funding Agency,10/11/2016,16-18 Apprenticeships - Centralised Contract Management,Main Funding,GREAT YARMOUTH COLLEGE,AP16R_18191,45219.29,Programme System File
DFE,Skills Funding Agency,10/11/2016,16-18 Apprenticeships - Centralised Contract Management,Main Funding,HADLOW COLLEGE,AP16R_18402,17637.72,Programme System File
DFE,Skills Funding Agency,10/11/2016,16-18 Apprenticeships - Centralised Contract Management,Main Funding,HAVERING COLLEGE OF FURTHER & HIGHER EDUCATION,AP16R_18420,99898.66,Programme System File
DFE,Skills Funding Agency,10/11/2016,16-18 Apprenticeships - Centralised Contract Management,Main Funding,HALESOWEN COLLEGE,AP16R_18409,28437.68,Programme System File
DFE,Skills Funding Agency,10/11/2016,16-18 Apprenticeships - Centralised Contract Management,Main Funding,EALING HAMMERSMITH & WEST LONDON COLLEGE,AP16R_18356,44153.68,Programme System File
DFE,Skills Funding Agency,10/11/2016,16-18 Apprenticeships - Centralised Contract Management,Main Funding,HAMPSHIRE COUNTY COUNCIL,AP16R_18413,5439.92,Programme System File
DFE,Skills Funding Agency,10/11/2016,16-18 Apprenticeships - Centralised Contract Management,Main Funding,HARROW COLLEGE,AP16R_18418,14909.54,Programme System File
DFE,Skills Funding Agency,10/11/2016,16-18 Apprenticeships - Centralised Contract Management,Main Funding,SUSSEX COAST COLLEGE,AP16R_18417,219441.65,Programme System File
DFE,Skills Funding Agency,10/11/2016,16-18 Apprenticeships - Centralised Contract Management,Main Funding,RIVERSIDE COLLEGE HALTON,AP16R_18407,79118.19,Programme System File
DFE,Skills Funding Agency,10/11/2016,16-18 Apprenticeships - Centralised Contract Management,Main Funding,HUGH BAIRD COLLEGE,AP16R_18458,66379.55,Programme System File
DFE,Skills Funding Agency,10/11/2016,16-18 Apprenticeships - Centralised Contract Management,Main Funding,HENLEY COLLEGE COVENTRY,AP16R_18431,41309.54,Programme System File
DFE,Skills Funding Agency,10/11/2016,16-18 Apprenticeships - Centralised Contract Management,Main Funding,HENLEY COLLEGE,AP16R_18432,49776.53,Programme System File
DFE,Skills Funding Agency,10/11/2016,16-18 Apprenticeships - Centralised Contract Management,Main Funding,HEREFORDSHIRE & LUDLOW COLLEGE,AP16R_18430,218900.89,Programme System File
DFE,Skills Funding Agency,10/11/2016,16-18 Apprenticeships - Centralised Contract Management,Main Funding,HIGHBURY COLLEGE,AP16R_19010,151903.16,Programme System File
DFE,Skills Funding Agency,10/11/2016,16-18 Apprenticeships - Centralised Contract Management,Main Funding,HOPWOOD HALL COLLEGE,AP16R_18439,35572.06,Programme System File
DFE,Skills Funding Agency,10/11/2016,16-18 Apprenticeships - Centralised Contract Management,Main Funding,HARTLEPOOL COLLEGE OF HIGHER EDUCATION,AP16R_18421,151417.82,Programme System File
DFE,Skills Funding Agency,10/11/2016,16-18 Apprenticeships - Centralised Contract Management,Main Funding,HARTLEPOOL SIXTH FORM COLLEGE,AP16R_18411,2224.24,Programme System File
DFE,Skills Funding Agency,10/11/2016,16-18 Apprenticeships - Centralised Contract Management,Main Funding,HARLOW COLLEGE,AP16R_18415,101167.36,Programme System File
DFE,Skills Funding Agency,10/11/2016,16-18 Apprenticeships - Centralised Contract Management,Main Funding,HARTPURY COLLEGE,AP16R_18414,-25138.02,Programme System File
DFE,Skills Funding Agency,10/11/2016,16-18 Apprenticeships - Centralised Contract Management,Main Funding,HERTFORD REGIONAL COLLEGE,AP16R_18438,162896.01,Programme System File
DFE,Skills Funding Agency,10/11/2016,16-18 Apprenticeships - Centralised Contract Management,Main Funding,KIRKLEES COLLEGE,AP16R_18449,425646.9,Programme System File
DFE,Skills Funding Agency,10/11/2016,16-18 Apprenticeships - Centralised Contract Management,Main Funding,HULL COLLEGE,AP16R_18450,376573.43,Programme System File
DFE,Skills Funding Agency,10/11/2016,16-18 Apprenticeships - Centralised Contract Management,Main Funding,HUNTINGDONSHIRE REGIONAL COLLEGE,AP16R_19011,48196.56,Programme System File
DFE,Skills Funding Agency,10/11/2016,16-18 Apprenticeships - Centralised Contract Management,Main Funding,ISLE OF WIGHT COLLEGE,AP16R_18488,59093.34,Programme System File
DFE,Skills Funding Agency,10/11/2016,16-18 Apprenticeships - Centralised Contract Management,Main Funding,JOHN LEGGOTT SIXTH FORM COLLEGE,AP16R_18497,2405.12,Programme System File
DFE,Skills Funding Agency,10/11/2016,16-18 Apprenticeships - Centralised Contract Management,Main Funding,JOHN RUSKIN COLLEGE,AP16R_18500,80128.05,Programme System File
DFE,Skills Funding Agency,10/11/2016,16-18 Apprenticeships - Centralised Contract Management,Main Funding,KENDAL COLLEGE,AP16R_18514,177190.75,Programme System File
DFE,Skills Funding Agency,10/11/2016,16-18 Apprenticeships - Centralised Contract Management,Main Funding,KENSINGTON & CHELSEA COLLEGE,AP16R_18518,15563.43,Programme System File
DFE,Skills Funding Agency,10/11/2016,16-18 Apprenticeships - Centralised Contract Management,Main Funding,KINGSTON COLLEGE,AP16R_18516,76944.46,Programme System File
DFE,Skills Funding Agency,10/11/2016,16-18 Apprenticeships - Centralised Contract Management,Main Funding,KINGSTON MAURWARD COLLEGE,AP16R_18520,77448.08,Programme System File
DFE,Skills Funding Agency,10/11/2016,16-18 Apprenticeships - Centralised Contract Management,Main Funding,KNOWSLEY COMMUNITY COLLEGE,AP16R_18522,45891.51,Programme System File
DFE,Skills Funding Agency,10/11/2016,16-18 Apprenticeships - Centralised Contract Management,Main Funding,LAMBETH COLLEGE AT CLAPHAM CENTRE,AP16R_18543,54490.73,Programme System File
DFE,Skills Funding Agency,10/11/2016,16-18 Apprenticeships - Centralised Contract Management,Main Funding,LANCASTER & MORECAMBE COLLEGE,AP16R_18547,55826.95,Programme System File
DFE,Skills Funding Agency,10/11/2016,16-18 Apprenticeships - Centralised Contract Management,Main Funding,LONDON COLLEGE OF BEAUTY THERAPY LTD,AP16R_18570,9674.28,Programme System File
DFE,Skills Funding Agency,10/11/2016,16-18 Apprenticeships - Centralised Contract Management,Main Funding,LEICESTER COLLEGE CO FREEMENS PARK CAMPUS,AP16R_18550,192449.35,Programme System File
DFE,Skills Funding Agency,10/11/2016,16-18 Apprenticeships - Centralised Contract Management,Main Funding,LEEDS COLLEGE OF BUILDING,AP16R_18544,260401.89,Programme System File
DFE,Skills Funding Agency,10/11/2016,16-18 Apprenticeships - Centralised Contract Management,Main Funding,LEEDS CITY COLLEGE,AP16R_18025,118497.47,Programme System File
DFE,Skills Funding Agency,10/11/2016,16-18 Apprenticeships - Centralised Contract Management,Main Funding,LOUGHBOROUGH COLLEGE,AP16R_18573,197442.95,Programme System File
DFE,Skills Funding Agency,10/11/2016,16-18 Apprenticeships - Centralised Contract Management,Main Funding,LESOCO,AP16R_18551,27390.62,Programme System File
DFE,Skills Funding Agency,10/11/2016,16-18 Apprenticeships - Centralised Contract Management,Main Funding,MACCLESFIELD COLLEGE,AP16R_18583,39795.6,Programme System File
DFE,Skills Funding Agency,10/11/2016,16-18 Apprenticeships - Centralised Contract Management,Main Funding,MANCHESTER COLLEGE,AP16R_19177,111539.74,Programme System File
DFE,Skills Funding Agency,10/11/2016,16-18 Apprenticeships - Centralised Contract Management,Main Funding,MID CHESHIRE COLLEGE,AP16R_18586,58085.71,Programme System File
DFE,Skills Funding Agency,10/11/2016,16-18 Apprenticeships - Centralised Contract Management,Main Funding,MIDDLESBROUGH COLLEGE,AP16R_18596,216593.5,Programme System File
DFE,Skills Funding Agency,10/11/2016,16-18 Apprenticeships - Centralised Contract Management,Main Funding,MIDDLESBROUGH COUNCIL,AP16R_18593,20414.72,Programme System File
DFE,Skills Funding Agency,10/11/2016,16-18 Apprenticeships - Centralised Contract Management,Main Funding,MILTON KEYNES COLLEGE,AP16R_18610,79274.12,Programme System File
DFE,Skills Funding Agency,10/11/2016,16-18 Apprenticeships - Centralised Contract Management,Main Funding,MID KENT COLLEGE,AP16R_18589,153303.03,Programme System File
DFE,Skills Funding Agency,10/11/2016,16-18 Apprenticeships - Centralised Contract Management,Main Funding,MOULTON COLLEGE,AP16R_18604,74645.28,Programme System File
DFE,Skills Funding Agency,10/11/2016,16-18 Apprenticeships - Centralised Contract Management,Main Funding,MYERSCOUGH COLLEGE,AP16R_18607,73569.24,Programme System File
DFE,Skills Funding Agency,10/11/2016,16-18 Apprenticeships - Centralised Contract Management,Main Funding,NORTHAMPTON COLLEGE,AP16R_18910,95643.1,Programme System File
DFE,Skills Funding Agency,10/11/2016,16-18 Apprenticeships - Centralised Contract Management,Main Funding,NORTHBROOK COLLEGE SUSSEX,AP16R_18652,121020.19,Programme System File
DFE,Skills Funding Agency,10/11/2016,16-18 Apprenticeships - Centralised Contract Management,Main Funding,NELSON & COLNE COLLEGE,AP16R_18620,49215.8,Programme System File
DFE,Skills Funding Agency,10/11/2016,16-18 Apprenticeships - Centralised Contract Management,Main Funding,NORTH EAST WORCESTERSHIRE COLLEGE,AP16R_19015,244601.79,Programme System File
DFE,Skills Funding Agency,10/11/2016,16-18 Apprenticeships - Centralised Contract Management,Main Funding,NORTH EAST SURREY COLLEGE OF TECHNOLOGY,AP16R_18649,165567.79,Programme System File
DFE,Skills Funding Agency,10/11/2016,16-18 Apprenticeships - Centralised Contract Management,Main Funding,NEWHAM COLLEGE OF HIGHER EDUCATION,AP16R_18622,71326.73,Programme System File
DFE,Skills Funding Agency,10/11/2016,16-18 Apprenticeships - Centralised Contract Management,Main Funding,NEWCASTLE UNDER LYME COLLEGE,AP16R_18640,203089.3,Programme System File
DFE,Skills Funding Agency,10/11/2016,16-18 Apprenticeships - Centralised Contract Management,Main Funding,NORTH HERTFORDSHIRE COLLEGE,AP16R_18643,134272.68,Programme System File
DFE,Skills Funding Agency,10/11/2016,16-18 Apprenticeships - Centralised Contract Management,Main Funding,COLLEGE OF WEST ANGLIA,AP16R_19004,151080.66,Programme System File
DFE,Skills Funding Agency,10/11/2016,16-18 Apprenticeships - Centralised Contract Management,Main Funding,LINCOLN COLLEGE,AP16R_18562,184197.79,Programme System File
DFE,Skills Funding Agency,10/11/2016,16-18 Apprenticeships - Centralised Contract Management,Main Funding,NORTHUMBERLAND COLLEGE,AP16R_18661,111156.61,Programme System File
DFE,Skills Funding Agency,10/11/2016,16-18 Apprenticeships - Centralised Contract Management,Main Funding,NORWICH CITY COLLEGE,AP16R_18666,218119.64,Programme System File
DFE,Skills Funding Agency,10/11/2016,16-18 Apprenticeships - Centralised Contract Management,Main Funding,WALFORD & NORTH SHROPSHIRE COLLEGE,AP16R_18931,16231.42,Programme System File
DFE,Skills Funding Agency,10/11/2016,16-18 Apprenticeships - Centralised Contract Management,Main Funding,NORTH DEVON COLLEGE,AP16R_18641,115108.86,Programme System File
DFE,Skills Funding Agency,10/11/2016,16-18 Apprenticeships - Centralised Contract Management,Main Funding,NORTH LINDSEY COLLEGE,AP16R_18651,106348.25,Programme System File
DFE,Skills Funding Agency,10/11/2016,16-18 Apprenticeships - Centralised Contract Management,Main Funding,NORTH WARWICKSHIRE & HINCKLEY COLLEGE,AP16R_18655,352886.89,Programme System File
DFE,Skills Funding Agency,10/11/2016,16-18 Apprenticeships - Centralised Contract Management,Main Funding,NEWBURY COLLEGE,AP16R_18633,18248.27,Programme System File
DFE,Skills Funding Agency,10/11/2016,16-18 Apprenticeships - Centralised Contract Management,Main Funding,NEW COLLEGE DURHAM,AP16R_18624,-11211.78,Programme System File
DFE,Skills Funding Agency,10/11/2016,16-18 Apprenticeships - Centralised Contract Management,Main Funding,NORTH WEST KENT COLLEGE,AP16R_18663,92795.07,Programme System File
DFE,Skills Funding Agency,10/11/2016,16-18 Apprenticeships - Centralised Contract Management,Main Funding,NEW COLLEGE SWINDON,AP16R_18625,28560.56,Programme System File
DFE,Skills Funding Agency,10/11/2016,16-18 Apprenticeships - Centralised Contract Management,Main Funding,NEW COLLEGE TELFORD,AP16R_18628,2830.75,Programme System File
DFE,Skills Funding Agency,10/11/2016,16-18 Apprenticeships - Centralised Contract Management,Main Funding,OAKLANDS COLLEGE,AP16R_18679,154887.21,Programme System File
DFE,Skills Funding Agency,10/11/2016,16-18 Apprenticeships - Centralised Contract Management,Main Funding,OLDHAM COLLEGE,AP16R_18870,104879.9,Programme System File
DFE,Skills Funding Agency,10/11/2016,16-18 Apprenticeships - Centralised Contract Management,Main Funding,OXFORD & CHERWELL COLLEGE,AP16R_18692,312542.01,Programme System File
DFE,Skills Funding Agency,10/11/2016,16-18 Apprenticeships - Centralised Contract Management,Main Funding,PETERBOROUGH REGIONAL COLLEGE,AP16R_18694,104022.27,Programme System File
DFE,Skills Funding Agency,10/11/2016,16-18 Apprenticeships - Centralised Contract Management,Main Funding,SALFORD CITY COLLEGE,AP16R_18681,92601.59,Programme System File
DFE,Skills Funding Agency,10/11/2016,16-18 Apprenticeships - Centralised Contract Management,Main Funding,EAST DURHAM COLLEGE,AP16R_18338,45375.53,Programme System File
DFE,Skills Funding Agency,10/11/2016,16-18 Apprenticeships - Centralised Contract Management,Main Funding,PLYMOUTH COLLEGE OF ART & DESIGN,AP16R_18712,7487.12,Programme System File
DFE,Skills Funding Agency,10/11/2016,16-18 Apprenticeships - Centralised Contract Management,Main Funding,PLUMPTON COLLEGE,AP16R_18703,19464.57,Programme System File
DFE,Skills Funding Agency,10/11/2016,16-18 Apprenticeships - Centralised Contract Management,Main Funding,CITY COLLEGE PLYMOUTH,AP16R_18715,365025.05,Programme System File
DFE,Skills Funding Agency,10/11/2016,16-18 Apprenticeships - Centralised Contract Management,Main Funding,PLYMOUTH CITY COUNCIL,AP16R_18708,2949.89,Programme System File
DFE,Skills Funding Agency,10/11/2016,16-18 Apprenticeships - Centralised Contract Management,Main Funding,PRESTON COLLEGE,AP16R_18709,127839.83,Programme System File
DFE,Skills Funding Agency,10/11/2016,16-18 Apprenticeships - Centralised Contract Management,Main Funding,PRIOR PURSGLOVE COLLEGE,AP16R_18177,2130.18,Programme System File
DFE,Skills Funding Agency,10/11/2016,16-18 Apprenticeships - Centralised Contract Management,Main Funding,PORTSMOUTH COLLEGE,AP16R_18725,41594.05,Programme System File
DFE,Skills Funding Agency,10/11/2016,16-18 Apprenticeships - Centralised Contract Management,Main Funding,COLLEGE OF RICHARD COLLYER,AP16R_18303,5742.27,Programme System File
DFE,Skills Funding Agency,10/11/2016,16-18 Apprenticeships - Centralised Contract Management,Main Funding,THE UNIVERSITY OF WEST LONDON,AP16R_18873,13823.5,Programme System File
DFE,Skills Funding Agency,10/11/2016,16-18 Apprenticeships - Centralised Contract Management,Main Funding,REDBRIDGE COLLEGE,AP16R_18744,43510.39,Programme System File
DFE,Skills Funding Agency,10/11/2016,16-18 Apprenticeships - Centralised Contract Management,Main Funding,REASEHEATH COLLEGE,AP16R_18740,78156.99,Programme System File
DFE,Skills Funding Agency,10/11/2016,16-18 Apprenticeships - Centralised Contract Management,Main Funding,RICHARD HUISH COLLEGE,AP16R_18741,44873.22,Programme System File
DFE,Skills Funding Agency,10/11/2016,16-18 Apprenticeships - Centralised Contract Management,Main Funding,RICHMOND UPON THAMES COLLEGE,AP16R_18745,71158.14,Programme System File
DFE,Skills Funding Agency,10/11/2016,16-18 Apprenticeships - Centralised Contract Management,Main Funding,RICHMOND UPON THAMES BOROUGH COUNCIL,AP16R_18944,15119.11,Programme System File
DFE,Skills Funding Agency,10/11/2016,16-18 Apprenticeships - Centralised Contract Management,Main Funding,DEARNE VALLEY COLLEGE,AP16R_18308,51261.98,Programme System File
DFE,Skills Funding Agency,10/11/2016,16-18 Apprenticeships - Centralised Contract Management,Main Funding,ROTHERHAM COLLEGE OF ARTS & TECHNOLOGY,AP16R_18194,321560.27,Programme System File
DFE,Skills Funding Agency,10/11/2016,16-18 Apprenticeships - Centralised Contract Management,Main Funding,RUNSHAW COLLEGE,AP16R_18759,71156.25,Programme System File
DFE,Skills Funding Agency,10/11/2016,16-18 Apprenticeships - Centralised Contract Management,Main Funding,SANDWELL COLLEGE,AP16R_18773,147052.17,Programme System File
DFE,Skills Funding Agency,10/11/2016,16-18 Apprenticeships - Centralised Contract Management,Main Funding,SOUTH DOWNS COLLEGE,AP16R_18798,37530.02,Programme System File
DFE,Skills Funding Agency,10/11/2016,16-18 Apprenticeships - Centralised Contract Management,Main Funding,SUSSEX DOWNS COLLEGE,AP16R_18840,94094.45,Programme System File
DFE,Skills Funding Agency,10/11/2016,16-18 Apprenticeships - Centralised Contract Management,Main Funding,SOUTH ESSEX COLLEGE,AP16R_18805,234024.92,Programme System File
DFE,Skills Funding Agency,10/11/2016,16-18 Apprenticeships - Centralised Contract Management,Main Funding,SELBY COLLEGE,AP16R_18770,32659.13,Programme System File
DFE,Skills Funding Agency,10/11/2016,16-18 Apprenticeships - Centralised Contract Management,Main Funding,SEEVIC COLLEGE,AP16R_18762,44795.33,Programme System File
DFE,Skills Funding Agency,10/11/2016,16-18 Apprenticeships - Centralised Contract Management,Main Funding,SHEFFIELD COLLEGE,AP16R_18781,222026.04,Programme System File
DFE,Skills Funding Agency,10/11/2016,16-18 Apprenticeships - Centralised Contract Management,Main Funding,SHIPLEY COLLEGE,AP16R_18788,28060.52,Programme System File
DFE,Skills Funding Agency,10/11/2016,16-18 Apprenticeships - Centralised Contract Management,Main Funding,SOUTHAMPTON CITY COLLEGE,AP16R_18814,77107.99,Programme System File
DFE,Skills Funding Agency,10/11/2016,16-18 Apprenticeships - Centralised Contract Management,Main Funding,SOUTH BIRMINGHAM COLLEGE,AP16R_18789,73310.49,Programme System File
DFE,Skills Funding Agency,10/11/2016,16-18 Apprenticeships - Centralised Contract Management,Main Funding,SOUTH CHESHIRE COLLEGE,AP16R_18791,51678.81,Programme System File
DFE,Skills Funding Agency,10/11/2016,16-18 Apprenticeships - Centralised Contract Management,Main Funding,SOUTH DEVON COLLEGE,AP16R_18794,182872.59,Programme System File
DFE,Skills Funding Agency,10/11/2016,16-18 Apprenticeships - Centralised Contract Management,Main Funding,SOLIHULL COLLEGE,AP16R_18787,137889.74,Programme System File
DFE,Skills Funding Agency,10/11/2016,16-18 Apprenticeships - Centralised Contract Management,Main Funding,CENTRAL COLLEGE NOTTINGHAM,AP16R_18220,269306.83,Programme System File
DFE,Skills Funding Agency,10/11/2016,16-18 Apprenticeships - Centralised Contract Management,Main Funding,TRAFFORD COLLEGE,AP16R_18809,157203.29,Programme System File
DFE,Skills Funding Agency,10/11/2016,16-18 Apprenticeships - Centralised Contract Management,Main Funding,SOUTH GLOUCESTERSHIRE & STROUD COLLEGE,AP16R_18119,301215.59,Programme System File
DFE,Skills Funding Agency,10/11/2016,16-18 Apprenticeships - Centralised Contract Management,Main Funding,SPARSHOLT COLLEGE HAMPSHIRE,AP16R_18821,78762.4,Programme System File
DFE,Skills Funding Agency,10/11/2016,16-18 Apprenticeships - Centralised Contract Management,Main Funding,SOUTHPORT COLLEGE,AP16R_18817,49225.75,Programme System File
DFE,Skills Funding Agency,10/11/2016,16-18 Apprenticeships - Centralised Contract Management,Main Funding,ST HELENS COLLEGE,AP16R_18831,146150.08,Programme System File
DFE,Skills Funding Agency,10/11/2016,16-18 Apprenticeships - Centralised Contract Management,Main Funding,STAFFORD COLLEGE,AP16R_18835,107446.05,Programme System File
DFE,Skills Funding Agency,10/11/2016,16-18 Apprenticeships - Centralised Contract Management,Main Funding,SOUTH THAMES COLLEGE,AP16R_18807,57188.64,Programme System File
DFE,Skills Funding Agency,10/11/2016,16-18 Apprenticeships - Centralised Contract Management,Main Funding,STOKE ON TRENT COLLEGE,AP16R_18837,109733.63,Programme System File
DFE,Skills Funding Agency,10/11/2016,16-18 Apprenticeships - Centralised Contract Management,Main Funding,NEW COLLEGE STAMFORD,AP16R_18823,37520.72,Programme System File
DFE,Skills Funding Agency,10/11/2016,16-18 Apprenticeships - Centralised Contract Management,Main Funding,STOCKTON RIVERSIDE COLLEGE,AP16R_18225,143675.53,Programme System File
DFE,Skills Funding Agency,10/11/2016,16-18 Apprenticeships - Centralised Contract Management,Main Funding,STOCKPORT COLLEGE,AP16R_18833,47145.96,Programme System File
DFE,Skills Funding Agency,10/11/2016,16-18 Apprenticeships - Centralised Contract Management,Main Funding,STRODE COLLEGE,AP16R_18846,98923.47,Programme System File
DFE,Skills Funding Agency,10/11/2016,16-18 Apprenticeships - Centralised Contract Management,Main Funding,STRATFORD UPON AVON COLLEGE,AP16R_18813,26196.25,Programme System File
DFE,Skills Funding Agency,10/11/2016,16-18 Apprenticeships - Centralised Contract Management,Main Funding,ST VINCENT COLLEGE,AP16R_18202,5117.2,Programme System File
DFE,Skills Funding Agency,10/11/2016,16-18 Apprenticeships - Centralised Contract Management,Main Funding,SOUTH TYNESIDE COLLEGE,AP16R_18811,55936.35,Programme System File
DFE,Skills Funding Agency,10/11/2016,16-18 Apprenticeships - Centralised Contract Management,Main Funding,SUFFOLK COLLEGE,AP16R_18856,78961.84,Programme System File
DFE,Skills Funding Agency,10/11/2016,16-18 Apprenticeships - Centralised Contract Management,Main Funding,BIRMINGHAM METROPOLITAN COLLEGE,AP16R_18844,241789.77,Programme System File
DFE,Skills Funding Agency,10/11/2016,16-18 Apprenticeships - Centralised Contract Management,Main Funding,SUTTON LONDON BOROUGH COUNCIL,AP16R_18564,1083.33,Programme System File
DFE,Skills Funding Agency,10/11/2016,16-18 Apprenticeships - Centralised Contract Management,Main Funding,SWINDON COLLEGE CORPORATION,AP16R_18847,104489.36,Programme System File
DFE,Skills Funding Agency,10/11/2016,16-18 Apprenticeships - Centralised Contract Management,Main Funding,TAMESIDE COLLEGE,AP16R_18857,103831.72,Programme System File
DFE,Skills Funding Agency,10/11/2016,16-18 Apprenticeships - Centralised Contract Management,Main Funding,SOUTH STAFFORDSHIRE COLLEGE,AP16R_19186,114444.38,Programme System File
DFE,Skills Funding Agency,10/11/2016,16-18 Apprenticeships - Centralised Contract Management,Main Funding,TELFORD COLLEGE OF ARTS & TECHNOLOGY,AP16R_18868,85792.77,Programme System File
DFE,Skills Funding Agency,10/11/2016,16-18 Apprenticeships - Centralised Contract Management,Main Funding,EAST KENT COLLEGE,AP16R_18876,84744.58,Programme System File
DFE,Skills Funding Agency,10/11/2016,16-18 Apprenticeships - Centralised Contract Management,Main Funding,TOWER HAMLETS COLLEGE,AP16R_18216,76415.82,Programme System File
DFE,Skills Funding Agency,10/11/2016,16-18 Apprenticeships - Centralised Contract Management,Main Funding,TRESHAM INSTITUTE,AP16R_18891,111930.85,Programme System File
DFE,Skills Funding Agency,10/11/2016,16-18 Apprenticeships - Centralised Contract Management,Main Funding,TRURO COLLEGE,AP16R_18894,135247.73,Programme System File
DFE,Skills Funding Agency,10/11/2016,16-18 Apprenticeships - Centralised Contract Management,Main Funding,TYNE METRO COLLEGE,AP16R_19055,37125.04,Programme System File
DFE,Skills Funding Agency,10/11/2016,16-18 Apprenticeships - Centralised Contract Management,Main Funding,UXBRIDGE COLLEGE,AP16R_18922,108965.63,Programme System File
DFE,Skills Funding Agency,10/11/2016,16-18 Apprenticeships - Centralised Contract Management,Main Funding,WALSALL COLLEGE CO ST PAULS STREET CAMPUS,AP16R_18932,446425.93,Programme System File
DFE,Skills Funding Agency,10/11/2016,16-18 Apprenticeships - Centralised Contract Management,Main Funding,WAKEFIELD COLLEGE,AP16R_18924,93171.84,Programme System File
DFE,Skills Funding Agency,10/11/2016,16-18 Apprenticeships - Centralised Contract Management,Main Funding,WALTHAM FOREST COLLEGE,AP16R_18934,37071.6,Programme System File
DFE,Skills Funding Agency,10/11/2016,16-18 Apprenticeships - Centralised Contract Management,Main Funding,WAVERLEY BOROUGH COUNCIL,AP16R_19027,26367.35,Programme System File
DFE,Skills Funding Agency,10/11/2016,16-18 Apprenticeships - Centralised Contract Management,Main Funding,LAKES COLLEGE WEST CUMBRIA,AP16R_18542,115424.33,Programme System File
DFE,Skills Funding Agency,10/11/2016,16-18 Apprenticeships - Centralised Contract Management,Main Funding,WEST CHESHIRE COLLEGE,AP16R_18943,97033.23,Programme System File
DFE,Skills Funding Agency,10/11/2016,16-18 Apprenticeships - Centralised Contract Management,Main Funding,WEST HERTS COLLEGE,AP16R_18946,107074.77,Programme System File
DFE,Skills Funding Agency,10/11/2016,16-18 Apprenticeships - Centralised Contract Management,Main Funding,WEST KENT COLLEGE,AP16R_18950,38695.32,Programme System File
DFE,Skills Funding Agency,10/11/2016,16-18 Apprenticeships - Centralised Contract Management,Main Funding,WESTON COLLEGE,AP16R_18968,219519.27,Programme System File
DFE,Skills Funding Agency,10/11/2016,16-18 Apprenticeships - Centralised Contract Management,Main Funding,WEYMOUTH COLLEGE,AP16R_18962,74704.68,Programme System File
DFE,Skills Funding Agency,10/11/2016,16-18 Apprenticeships - Centralised Contract Management,Main Funding,WIGAN & LEIGH COLLEGE,AP16R_18966,183650.29,Programme System File
DFE,Skills Funding Agency,10/11/2016,16-18 Apprenticeships - Centralised Contract Management,Main Funding,WILTSHIRE COLLEGE,AP16R_18974,172875.28,Programme System File
DFE,Skills Funding Agency,10/11/2016,16-18 Apprenticeships - Centralised Contract Management,Main Funding,WIRRAL METRO COLLEGE,AP16R_18977,145860.08,Programme System File
DFE,Skills Funding Agency,10/11/2016,16-18 Apprenticeships - Centralised Contract Management,Main Funding,WESTMINSTER KINGSWAY COLLEGE,AP16R_18214,120343.59,Programme System File
DFE,Skills Funding Agency,10/11/2016,16-18 Apprenticeships - Centralised Contract Management,Main Funding,WARRINGTON COLLEGIATE,AP16R_18939,78513.37,Programme System File
DFE,Skills Funding Agency,10/11/2016,16-18 Apprenticeships - Centralised Contract Management,Main Funding,WARWICKSHIRE COLLEGE,AP16R_18183,300807.22,Programme System File
DFE,Skills Funding Agency,10/11/2016,16-18 Apprenticeships - Centralised Contract Management,Main Funding,WORTHING COLLEGE,AP16R_18979,55243.64,Programme System File
DFE,Skills Funding Agency,10/11/2016,16-18 Apprenticeships - Centralised Contract Management,Main Funding,WEST THAMES COLLEGE,AP16R_18965,23667.67,Programme System File
DFE,Skills Funding Agency,10/11/2016,16-18 Apprenticeships - Centralised Contract Management,Main Funding,WEST SUFFOLK COLLEGE,AP16R_18959,204483.71,Programme System File
DFE,Skills Funding Agency,10/11/2016,16-18 Apprenticeships - Centralised Contract Management,Main Funding,WEST NOTTINGHAMSHIRE COLLEGE,AP16R_18955,451515.18,Programme System File
DFE,Skills Funding Agency,10/11/2016,16-18 Apprenticeships - Centralised Contract Management,Main Funding,CITY OF WOLVERHAMPTON COLLEGE,AP16R_18972,138535.71,Programme System File
DFE,Skills Funding Agency,10/11/2016,16-18 Apprenticeships - Centralised Contract Management,Main Funding,REGENT COLLEGE,AP16R_18737,4299.48,Programme System File
DFE,Skills Funding Agency,10/11/2016,16-18 Apprenticeships - Centralised Contract Management,Main Funding,XAVERIAN COLLEGE,AP16R_18982,11397.06,Programme System File
DFE,Skills Funding Agency,10/11/2016,16-18 Apprenticeships - Centralised Contract Management,Main Funding,YEOVIL COLLEGE,AP16R_18986,134214.79,Programme System File
DFE,Skills Funding Agency,10/11/2016,16-18 Apprenticeships - Centralised Contract Management,Main Funding,YORK COLLEGE,AP16R_18990,127165.55,Programme System File
DFE,Skills Funding Agency,10/11/2016,16-18 Apprenticeships - Centralised Contract Management,Main Funding,CITY OF YORK COUNCIL,AP16R_18290,6137.03,Programme System File
DFE,Skills Funding Agency,10/11/2016,16-18 Apprenticeships - Centralised Contract Management,Main Funding,HEREWARD COLLEGE OF HIGHER EDUCATION,AP16R_18437,544.36,Programme System File
DFE,Skills Funding Agency,10/11/2016,16-18 Apprenticeships - Centralised Contract Management,Main Funding,THE UNIVERSITY OF KENT,AP16R_18921,3505.87,Programme System File
DFE,Skills Funding Agency,10/11/2016,16-18 Apprenticeships - Centralised Contract Management,Main Funding,MANCHESTER METRO UNIVERSITY,AP16R_18571,34550.38,Programme System File
DFE,Skills Funding Agency,10/11/2016,16-18 Apprenticeships - Centralised Contract Management,Main Funding,SHEFFIELD HALLAM UNIVERSITY,AP16C_4142,-14641.29,Programme System File
DFE,Skills Funding Agency,10/11/2016,16-18 Apprenticeships - Centralised Contract Management,Main Funding,SHEFFIELD HALLAM UNIVERSITY,AP16R_18784,43457.42,Programme System File
DFE,Skills Funding Agency,10/11/2016,16-18 Apprenticeships - Centralised Contract Management,Main Funding,UNIVERSITY OF LINCOLN,AP16R_18923,42058.46,Programme System File
DFE,Skills Funding Agency,10/11/2016,16-18 Apprenticeships - Centralised Contract Management,Main Funding,UNIVERSITY OF DERBY,AP16R_18999,67532.49,Programme System File
DFE,Skills Funding Agency,10/11/2016,16-18 Apprenticeships - Centralised Contract Management,Main Funding,UNIVERSITY OF DURHAM,AP16R_18920,5368.08,Programme System File
DFE,Skills Funding Agency,10/11/2016,16-18 Apprenticeships - Centralised Contract Management,Main Funding,WRITTLE COLLEGE SERVICES LTD,AP16R_18980,25096.02,Programme System File
DFE,Skills Funding Agency,10/11/2016,16-18 Apprenticeships - Centralised Contract Management,Main Funding,BARKING & DAGENHAM LONDON BOROUGH COUNCIL,AP16R_18313,6267.56,Programme System File
DFE,Skills Funding Agency,10/11/2016,16-18 Apprenticeships - Centralised Contract Management,Main Funding,ROYAL BOROUGH OF KINGSTON UPON THAMES COUNCIL,AP16R_18758,32991.16,Programme System File
DFE,Skills Funding Agency,10/11/2016,16-18 Apprenticeships - Centralised Contract Management,Main Funding,BRADFORD CITY COUNCIL,AP16R_19116,5742.96,Programme System File
DFE,Skills Funding Agency,10/11/2016,16-18 Apprenticeships - Centralised Contract Management,Main Funding,BRISTOL CITY COUNCIL,AP16R_18190,114451.97,Programme System File
DFE,Skills Funding Agency,10/11/2016,16-18 Apprenticeships - Centralised Contract Management,Main Funding,BROADLAND DISTRICT COUNCIL,AP16R_18063,74448.18,Programme System File
DFE,Skills Funding Agency,10/11/2016,16-18 Apprenticeships - Centralised Contract Management,Main Funding,BUCKINGHAMSHIRE COUNTY COUNCIL,AP16R_18163,24991.55,Programme System File
DFE,Skills Funding Agency,10/11/2016,16-18 Apprenticeships - Centralised Contract Management,Main Funding,BUILDING CRAFTS COLLEGE,AP16R_19031,26802.69,Programme System File
DFE,Skills Funding Agency,10/11/2016,16-18 Apprenticeships - Centralised Contract Management,Main Funding,CENTRAL BEDFORDSHIRE COUNCIL,AP16R_19191,6086.57,Programme System File
DFE,Skills Funding Agency,10/11/2016,16-18 Apprenticeships - Centralised Contract Management,Main Funding,WESTMINSTER CITY COUNCIL,AP16R_18274,543.09,Programme System File
DFE,Skills Funding Agency,10/11/2016,16-18 Apprenticeships - Centralised Contract Management,Main Funding,CITY OF LONDON ADULT EDUCATION,AP16R_19073,11303.8,Programme System File
DFE,Skills Funding Agency,10/11/2016,16-18 Apprenticeships - Centralised Contract Management,Main Funding,NORTH EAST LINCOLNSHIRE COUNCIL,AP16R_18644,5761.91,Programme System File
DFE,Skills Funding Agency,10/11/2016,16-18 Apprenticeships - Centralised Contract Management,Main Funding,THE CORNWALL COUNCIL,AP16R_18285,7296.92,Programme System File
DFE,Skills Funding Agency,10/11/2016,16-18 Apprenticeships - Centralised Contract Management,Main Funding,COVENTRY CITY COUNCIL,AP16R_18223,28431.37,Programme System File
DFE,Skills Funding Agency,10/11/2016,16-18 Apprenticeships - Centralised Contract Management,Main Funding,CUMBRIA COUNTY COUNCIL,AP16R_18316,954.21,Programme System File
DFE,Skills Funding Agency,10/11/2016,16-18 Apprenticeships - Centralised Contract Management,Main Funding,DARLINGTON BOROUGH COUNCIL,AP16R_18328,20033.54,Programme System File
DFE,Skills Funding Agency,10/11/2016,16-18 Apprenticeships - Centralised Contract Management,Main Funding,DERBY CITY COUNCIL,AP16R_18310,17276.94,Programme System File
DFE,Skills Funding Agency,10/11/2016,16-18 Apprenticeships - Centralised Contract Management,Main Funding,DERBYSHIRE COUNTY COUNCIL,AP16R_18321,12123.14,Programme System File
DFE,Skills Funding Agency,10/11/2016,16-18 Apprenticeships - Centralised Contract Management,Main Funding,DEVON COUNTY COUNCIL,AP16R_18331,122.03,Programme System File
DFE,Skills Funding Agency,10/11/2016,16-18 Apprenticeships - Centralised Contract Management,Main Funding,DONCASTER METRO BOROUGH COUNCIL,AP16R_18342,26163.91,Programme System File
DFE,Skills Funding Agency,10/11/2016,16-18 Apprenticeships - Centralised Contract Management,Main Funding,EAST RIDING OF YORKSHIRE COUNCIL,AP16R_19024,6323.37,Programme System File
DFE,Skills Funding Agency,10/11/2016,16-18 Apprenticeships - Centralised Contract Management,Main Funding,ELATT,AP16R_18340,7197.24,Programme System File
DFE,Skills Funding Agency,10/11/2016,16-18 Apprenticeships - Centralised Contract Management,Main Funding,ENFIELD LONDON BOROUGH COUNCIL,AP16R_18362,3926.83,Programme System File
DFE,Skills Funding Agency,10/11/2016,16-18 Apprenticeships - Centralised Contract Management,Main Funding,ESSEX COUNTY COUNCIL,AP16R_18365,14106.79,Programme System File
DFE,Skills Funding Agency,10/11/2016,16-18 Apprenticeships - Centralised Contract Management,Main Funding,FASHION RETAIL ACADEMY,AP16R_19039,740.55,Programme System File
DFE,Skills Funding Agency,10/11/2016,16-18 Apprenticeships - Centralised Contract Management,Main Funding,GLOUCESTERSHIRE COUNTY COUNCIL,AP16R_18384,3802.52,Programme System File
DFE,Skills Funding Agency,10/11/2016,16-18 Apprenticeships - Centralised Contract Management,Main Funding,HARTLEPOOL BOROUGH COUNCIL,AP16R_18419,1730.21,Programme System File
DFE,Skills Funding Agency,10/11/2016,16-18 Apprenticeships - Centralised Contract Management,Main Funding,KINGSTON UPON HULL CITY COUNCIL,AP16R_18447,136854.83,Programme System File
DFE,Skills Funding Agency,10/11/2016,16-18 Apprenticeships - Centralised Contract Management,Main Funding,KENT COUNTY COUNCIL,AP16R_18498,62861.07,Programme System File
DFE,Skills Funding Agency,10/11/2016,16-18 Apprenticeships - Centralised Contract Management,Main Funding,LEICESTERSHIRE COUNTY COUNCIL,AP16R_18548,5598.29,Programme System File
DFE,Skills Funding Agency,10/11/2016,16-18 Apprenticeships - Centralised Contract Management,Main Funding,HILLINGDON LONDON BOROUGH COUNCIL,AP16R_18188,1260.28,Programme System File
DFE,Skills Funding Agency,10/11/2016,16-18 Apprenticeships - Centralised Contract Management,Main Funding,LONDON BOROUGH OF WALTHAM FOREST,AP16R_18937,4772.4,Programme System File
DFE,Skills Funding Agency,10/11/2016,16-18 Apprenticeships - Centralised Contract Management,Main Funding,BEXLEY LONDON BOROUGH COUNCIL,AP16R_18325,1074.33,Programme System File
DFE,Skills Funding Agency,10/11/2016,16-18 Apprenticeships - Centralised Contract Management,Main Funding,LONDON LEARNING CONSORTIUM C.I.C.,AP16R_19151,6280.77,Programme System File
DFE,Skills Funding Agency,10/11/2016,16-18 Apprenticeships - Centralised Contract Management,Main Funding,LUTON BOROUGH COUNCIL,AP16R_18578,23294.06,Programme System File
DFE,Skills Funding Agency,10/11/2016,16-18 Apprenticeships - Centralised Contract Management,Main Funding,MEDWAY COUNCIL,AP16R_18584,610.96,Programme System File
DFE,Skills Funding Agency,10/11/2016,16-18 Apprenticeships - Centralised Contract Management,Main Funding,MILTON KEYNES COUNCIL,AP16R_18614,323.88,Programme System File
DFE,Skills Funding Agency,10/11/2016,16-18 Apprenticeships - Centralised Contract Management,Main Funding,NEWCASTLE UPON TYNE CITY COUNCIL,AP16R_18637,5582.84,Programme System File
